{"text_format":"1","workbook":"xlsx","n_sheets":11,"sheets":["Table of Contents","Introduction and User's Guide","Step 1 - General Info","Step 2 - Data Collection","Conversion Helper","Step 3 - Data Entry","Audit Data Summary","Stored Data","Sources","Background Calcs","Conversion Factors"],"not_rendered":{"charts":8,"images":0,"macros":1,"external_links":0,"defined_names":188,"comments":0,"pivot_tables":0},"unopened":[],"bounds":{"document_bytes":16777216,"sheet_cells":100000,"rows_first":2000,"rows_last":500,"rows_between":2000,"halvings":0,"cell_chars":16384,"cell_head_chars":4096},"cells_cut":0,"cells_raw":0,"read":"whole","date_system":"1900"}

{"sheet":"Table of Contents","index":0,"n_rows":17,"n_cols":3,"rows_kept":17,"cut":false,"hidden":false,"merged":[[15,1,15,2],[16,1,16,2],[14,1,14,2]]}
[]
[null,"EPA's Food and Packaging Waste Prevention Tool - Table of Contents"]
[]
[null,"Sheet Name","Purpose"]
[null,"Introduction and User's Guide","Provides introductory information about this tool and guides the user through the three main steps of collecting and entering food waste audit data."]
[null,"Step 1 - General Info","Contains several general questions about the facility to be answered by the user."]
[null,"Step 2 - Data Collection","Provides a printable food waste audit log to be used for collecting waste data on site."]
[null,"Step 3 - Data Entry","Contains tables where the user can enter waste data (in pounds) based on information obtained on site."]
[null,"Conversion Helper","Aids the user in converting food waste quantities to units of pounds. Contains several default conversions and allows user-added conversions."]
[null,"Audit Data Summary","Provides a summary of the food waste audit data stored in the tool for the user's facility."]
[null,"Stored Data","Contains a list of food waste audit data stored by the user."]
[null,"Sources","Contains a list of sources for the data and information contained in this tool."]
[]
[null,"Enabling Macros"]
[null,"For this tool to function properly, you must have Microsoft Excel security set to allow macros. Directions for enabling macros in different versions of Excel are provided below:"]
[null,"Excel 2003 and Earlier: Since the Food and Packaging Waste Prevention Tool employs macros, you must have Excel security set to medium (recommended) or low (not recommended). To change this setting, launch Microsoft Excel before opening the Tool. Once in Excel, go to the Tools menu, click on the Macro sub-menu, and then select “Security”. The Security pop-up box will appear. Click on the “Security Level” tab and select medium.  When set to high, macros are automatically disabled; when set to medium, Excel will give you the choice to enable macros; when set to low, macros are always enabled. When Excel security is set to medium, users are asked upon opening the Tool whether to enable macros.  Once they are enabled, the Tool will open."]
[null,"Excel 2007: If Excel’s security settings are set at the default level a Security Warning appears above the formula box in Excel when the Food and Packaging Waste Prevention Tool is initially opened. The Security Warning lets the user know that some active content from the spreadsheet has been disabled, meaning that Excel has prevented the macros in the spreadsheet from functioning.  Since the Tool needs macros in order to function properly, the user must click the “Options” button in the security message and then select, “Enable this content” in the pop-up box. Enabling the macro content for the Tool in this way only enables macros temporarily in Excel but does not change the macro security settings. \nIf the Security Warning does not appear when the Tool is first opened, it may be necessary to change the security settings for macros.  To change the setting, first exit out of the Tool and re-launch Microsoft Excel before opening the Tool  Next, click on the Microsoft Excel icon in the top left of the screen. Scroll to the bottom of the menu and select the “Excel Options” button to the right of the main menu. When the Excel Options box appears, select “Trust Center” in left hand menu of the box.  Next, click the gray “Trust Center Settings” button.  When the Trust Center options box appears, click “Macro Settings” in the left hand menu and select “Disable all macros with notification.”  Once the security level has been adjusted, open the Tool and enable macros in the manner described in the preceding paragraph."]

{"sheet":"Introduction and User's Guide","index":1,"n_rows":16,"n_cols":2,"rows_kept":16,"cut":false,"hidden":false,"merged":[]}
[null,"Welcome to EPA's Food and Packaging Waste Prevention Tool"]
[null,"Introduction"]
[]
[]
[]
[]
[]
[]
[]
[]
[]
[]
[]
[]
[]
[null,"User's Guide"]

{"sheet":"Step 1 - General Info","index":2,"n_rows":36,"n_cols":25,"rows_kept":36,"cut":false,"hidden":false,"merged":[[4,1,4,12],[22,1,22,12],[7,1,7,12],[8,1,10,12],[12,1,12,12],[29,1,29,7],[29,8,29,12],[15,1,15,12],[19,1,19,12],[31,1,31,12],[24,8,24,12],[24,1,24,7],[25,8,25,12],[25,1,25,7],[27,1,27,12],[17,1,17,8]]}
[]
[null,"Step 1: General Information about your facility"]
[null,"Please answer the following questions regarding the facility undergoing the food waste audit. "]
[]
[null,"What type of food service venue is your facility?",null,null,null,null,null,null,null,null,null,null,null,null,null,null,null,null,"Buffet",1]
[null,null,null,null,null,null,null,null,null,null,null,null,null,null,null,null,null,null,"Made-to-order"]
[null,null,null,null,null,null,null,null,null,null,null,null,null,null,null,null,null,null,"Grab-and-go"]
[null,"Please provide an additonal description of your facility type: ",null,null,null,null,null,null,null,null,null,null,null,null,null,null,null,null,"Menu-driven restaurant"]
[null,null,null,null,null,null,null,null,null,null,null,null,null,null,null,null,null,null,"Fast food"]
[null,null,null,null,null,null,null,null,null,null,null,null,null,null,null,null,null,null,"Other"]
[]
[]
[null,"Does your facility use trays for serving food to customers?"]
[null,null,null,null,null,null,null,null,null,null,null,null,null,null,null,null,null,null,"No",1]
[null,null,null,null,null,null,null,null,null,null,null,null,null,null,null,null,null,null,"Yes"]
[null,"Does your facility recycle food packaging? "]
[null,null,null,null,null,null,null,null,null,null,null,null,null,null,null,null,null,null,"No",1,false,false,false,false,false]
[null,"If yes, please check the box next to each packaging material type your facility currently recycles:",null,null,null,null,null,null,null,null,null,null,null,null,null,null,null,null,"Yes"]
[]
[null,"Does your facility compost food packaging and/or food waste? "]
[null,null,null,null,null,null,null,null,null,null,null,null,null,null,null,null,null,null,"No",1]
[null,null,null,null,null,null,null,null,null,null,null,null,null,null,null,null,null,null,"Yes, food packaging only"]
[null,"Does your facility currently donate left-over food to food banks and/or farms for animal feed? If so, please indicate how much per year to each. ",null,null,null,null,null,null,null,null,null,null,null,null,null,null,null,null,"Yes, food waste only"]
[null,null,null,null,null,null,null,null,null,null,null,null,null,null,null,null,null,null,"Yes, both food packaging and food waste"]
[null,"Pounds of food donated to food banks per year:",null,null,null,null,null,null,null,null,null,null,null,null,null,null,null,null,null,1]
[null,"Pounds of food donated to farms per year:",null,null,null,null,null,null,null,null,null,null,null,null,null,null,null,null,"No",1]
[null,null,null,null,null,null,null,null,null,null,null,null,null,null,null,null,null,null,"Yes, to food banks",1]
[null,"Does your facility offer to-go containers for consumers such as disposable coffee cups, clamshell packaging, and styrofoam containers? If so, what is the material type?",null,null,null,null,null,null,null,null,null,null,null,null,null,null,null,null,"Yes, to farms"]
[null,null,null,null,null,null,null,null,null,null,null,null,null,null,null,null,null,null,"Yes, to both"]
[null,"Material type(s) of to-go containers:",null,null,null,null,null,null,null,null,null,null,null,null,null,null,null,null,null,1]
[null,null,null,null,null,null,null,null,null,null,null,null,null,null,null,null,null,null,"No",1]
[null,"Does your facility use a waste pulper to reduce the weight of generated food waste? ",null,null,null,null,null,null,null,null,null,null,null,null,null,null,null,null,"Yes",1]
[]
[]
[null,null,null,null,null,null,null,null,null,null,null,null,null,null,null,null,null,null,"No",1]
[null,null,null,null,null,null,null,null,null,null,null,null,null,null,null,null,null,null,"Yes"]

{"sheet":"Step 2 - Data Collection","index":3,"n_rows":48,"n_cols":5,"rows_kept":48,"cut":false,"hidden":false,"merged":[[20,1,20,3],[10,1,10,4],[19,1,19,3],[40,1,40,3],[22,1,22,3],[42,1,42,3],[38,1,38,3],[2,1,5,3],[7,1,7,4],[18,1,18,3],[8,1,8,4],[11,1,11,4],[28,1,28,3],[29,1,29,3],[9,1,9,4],[41,1,41,3],[31,1,31,3],[21,1,21,3],[32,1,32,3],[39,1,39,3],[30,1,30,3]]}
[]
[null,"Step 2: Printable Data Collection Form"]
[null,"The Data Collection form below is designed to collect food waste information for three different types of food waste occuring in food venues; 1.) Kitchen Food Waste, 2.) Kitchen Packaging Waste, and 3.) Plate Waste.  Please print this form once a day and post for data collection at food venue. Please make sure that the print settings are set to single-sided printing. Data collection forms will be collected by appointed food waste manager and data will be entered on Data Entry tab weekly. Data should not be entered into this tab. THIS FORM SHOULD BE PRINTED FOR DATA COLLECTION PURPOSES ONLY; DATA SHOULD BE ENTERED ON THE DATA ENTRY TAB."]
[]
[]
[]
[]
[null,"Food Waste Audit - Daily Tracking Sheet"]
[null,"Venue:"]
[null,"Date: \n"]
[null,"Record At Least Twice Per Week (recommended daily)"]
[null,"Kitchen Food Waste"]
[null,null,"Amount ","Loss Reason","Destination"]
[null,{"$f":"'Step 3 - Data Entry'!C22","v":"Protein"},null,"Circle one:\n- Prep waste\n- Improperly cooked\n- Stored food expired\n- Arrived spoiled\n- Food sent back by customer \n- Other (write in):","Circle one:\n-  Landfill\n- Recycling\n- Composting\n- Food bank\n- In sink disposal \n- Incinerator\n- Other (write in):"]
[null,{"$f":"'Step 3 - Data Entry'!C23","v":"Grain"},null,"Circle one:\n- Prep waste\n- Improperly cooked\n- Stored food expired\n- Arrived spoiled\n- Food sent back by customer \n- Other (write in):","Circle one:\n-  Landfill\n- Recycling\n- Composting\n- Food bank\n- In sink disposal \n- Incinerator\n- Other (write in):"]
[null,{"$f":"'Step 3 - Data Entry'!C24","v":"Fruits and vegetables"},null,"Circle one:\n- Prep waste\n- Improperly cooked\n- Stored food expired\n- Arrived spoiled\n- Food sent back by customer \n- Other (write in):","Circle one:\n-  Landfill\n- Recycling\n- Composting\n- Food bank\n- In sink disposal \n- Incinerator\n- Other (write in):"]
[null,{"$f":"'Step 3 - Data Entry'!C25","v":"Dairy"},null,"Circle one:\n- Prep waste\n- Improperly cooked\n- Stored food expired\n- Arrived spoiled\n- Food sent back by customer \n- Other (write in):","Circle one:\n-  Landfill\n- Recycling\n- Composting\n- Food bank\n- In sink disposal \n- Incinerator\n- Other (write in):"]
[null,{"$f":"'Step 3 - Data Entry'!C26","v":"Other"},null,"Circle one:\n- Prep waste\n- Improperly cooked\n- Stored food expired\n- Arrived spoiled\n- Food sent back by customer \n- Other (write in):","Circle one:\n-  Landfill\n- Recycling\n- Composting\n- Food bank\n- In sink disposal \n- Incinerator\n- Other (write in):"]
[null,"Food Waste Audit - Daily Tracking Sheet"]
[null,"Venue:"]
[null,"Date: \n"]
[null,"Record At Least Twice Per Week (recommended daily)"]
[null,"Kitchen Packaging Waste (Page 1)"]
[null,null,"Amount ","Destination"]
[null,{"$f":"'Step 3 - Data Entry'!C30","v":"Paper"},null,"Circle one:\n-  Landfill\n- Recycling\n- Composting\n- Food bank\n- In sink disposal \n- Incinerator\n- Other (write in):"]
[null,{"$f":"'Step 3 - Data Entry'!C31","v":"Cardboard"},null,"Circle one:\n-  Landfill\n- Recycling\n- Composting\n- Food bank\n- In sink disposal \n- Incinerator\n- Other (write in):"]
[null,{"$f":"'Step 3 - Data Entry'!C32","v":"Aluminum"},null,"Circle one:\n-  Landfill\n- Recycling\n- Composting\n- Food bank\n- In sink disposal \n- Incinerator\n- Other (write in):"]
[null,{"$f":"'Step 3 - Data Entry'!C33","v":"Steel"},null,"Circle one:\n-  Landfill\n- Recycling\n- Composting\n- Food bank\n- In sink disposal \n- Incinerator\n- Other (write in):"]
[null,"Food Waste Audit - Daily Tracking Sheet"]
[null,"Venue:"]
[null,"Date: \n"]
[null,"Record At Least Twice Per Week (recommended daily)"]
[null,"Kitchen Packaging Waste (Page 2)"]
[null,null,"Amount ","Destination"]
[null,{"$f":"'Step 3 - Data Entry'!C34","v":"Container plastic"},null,"Circle one:\n-  Landfill\n- Recycling\n- Composting\n- Food bank\n- In sink disposal \n- Incinerator\n- Other (write in):"]
[null,{"$f":"'Step 3 - Data Entry'!C35","v":"Other plastic"},null,"Circle one:\n-  Landfill\n- Recycling\n- Composting\n- Food bank\n- In sink disposal \n- Incinerator\n- Other (write in):"]
[null,{"$f":"'Step 3 - Data Entry'!C36","v":"Glass"},null,"Circle one:\n-  Landfill\n- Recycling\n- Composting\n- Food bank\n- In sink disposal \n- Incinerator\n- Other (write in):"]
[null,{"$f":"'Step 3 - Data Entry'!C37","v":"Other"},null,"Circle one:\n-  Landfill\n- Recycling\n- Composting\n- Food bank\n- In sink disposal \n- Incinerator\n- Other (write in):"]
[null,"Food Waste Audit - Daily Tracking Sheet"]
[null,"Venue:"]
[null,"Date: \n"]
[null,"Record At Least Once Per Week (recommended daily)"]
[null,"Plate Waste"]
[null,null,"Amount ","Destination"]
[null,{"$f":"'Step 3 - Data Entry'!C41","v":"Food waste"},null,"Circle one:\n-  Landfill\n- Recycling\n- Composting\n- Food bank\n- In sink disposal \n- Incinerator\n- Other (write in):"]
[null,"Paper cups and straws",null,"Circle one:\n-  Landfill\n- Recycling\n- Composting\n- Food bank\n- In sink disposal \n- Incinerator\n- Other (write in):"]
[null,"To-Go Containers",null,"Circle one:\n-  Landfill\n- Recycling\n- Composting\n- Food bank\n- In sink disposal \n- Incinerator\n- Other (write in):"]
[null,"Disposable Utensils",null,"Circle one:\n-  Landfill\n- Recycling\n- Composting\n- Food bank\n- In sink disposal \n- Incinerator\n- Other (write in):"]

{"sheet":"Conversion Helper","index":4,"n_rows":71,"n_cols":7,"rows_kept":71,"cut":false,"hidden":false,"merged":[[67,1,70,1],[42,1,47,1],[48,1,53,1],[54,1,59,1],[60,1,64,1],[26,1,29,1],[32,1,41,1],[2,1,2,6],[5,1,12,1],[13,1,17,1],[18,1,21,1],[22,1,25,1]]}
[]
[null,"Food and Packaging Waste Weight Conversion Helper"]
[null,"This sheet is designed to help convert food waste quantities listed on the paper data collection sheets to pounds that can be entered on the Data Entry sheet of this spreadsheet. Food waste managers should populate this sheet as the food waste audit progresses. \n\nSome default conversions have been provided (shaded pale blue) but the user can add as many additional conversion factors as needed. Click the \"Add Row\" in the respective food or packaging waste type to add conversion information. Then the user can modfy the number of units so that a total weight is calculated. For example, we have provided a default weight conversion for ground meat per cubic foot. The food waste manager could use this Conversion Helper to calculate the weight of, say, 5 cubic feet of ground meat by typing in the number 5 in the \"Number of Units\" column. "]
[]
[null,"Kitchen Food Waste"," Name","Unit","Weight per Unit (lbs)","Number of Units","Weight (lbs)"]
[null,"Protein",{"$f":"'Conversion Factors'!C5","v":"meat, ground"},{"$f":"'Conversion Factors'!D5","v":"cubic foot"},{"$f":"'Conversion Factors'!E5","v":52.5},1,{"$f":"E6*F6","v":52.5}]
[null,null,null,null,null,null,{"$f":"E7*F7","v":0}]
[null,null,null,null,null,null,{"$f":"E8*F8","v":0}]
[null,null,null,null,null,null,0]
[null,null,null,null,null,null,0]
[null,null,null,null,null,null,0]
[null,null,null,null,null,null,0]
[null,null,null,null,null,null,0]
[null,"Grain",{"$f":"'Conversion Factors'!C8","v":"bread, bulk"},{"$f":"'Conversion Factors'!D8","v":"cubic foot"},{"$f":"'Conversion Factors'!E8","v":18},1,18]
[null,null,null,null,null,null,0]
[null,null,null,null,null,null,0]
[null,null,null,null,null,null,0]
[null,null,null,null,null,null,0]
[null,"Fruit and Vegetable",{"$f":"'Conversion Factors'!C10","v":"produce waste, mixed"},{"$f":"'Conversion Factors'!D10","v":"cubic yard"},{"$f":"'Conversion Factors'!E10","v":1443},1,1443]
[null,null,null,null,null,null,0]
[null,null,null,null,null,null,0]
[null,null,null,null,null,null,0]
[null,"Dairy",{"$f":"'Conversion Factors'!C12","v":"whole milk"},{"$f":"'Conversion Factors'!D12","v":"gallon"},{"$f":"'Conversion Factors'!E12","v":8.6},1,8.6]
[null,null,null,null,null,null,0]
[null,null,null,null,null,null,0]
[null,null,null,null,null,null,0]
[null,"Other",{"$f":"'Conversion Factors'!C14","v":"olive oil"},{"$f":"'Conversion Factors'!D14","v":"cubic foot"},{"$f":"'Conversion Factors'!E14","v":57.1},1,57.1]
[null,null,null,null,null,null,0]
[null,null,null,null,null,null,0]
[null,null,null,null,null,null,0]
[]
[null,"Kitchen Packaging Waste","Waste Name","Unit","Weight per Unit (lbs)","Number of Units","Weight (lbs)"]
[null,"Paper/Cardboard",{"$f":"'Conversion Factors'!C18","v":"egg flats"},{"$f":"'Conversion Factors'!D18","v":"one dozen"},{"$f":"'Conversion Factors'!E18","v":0.12},1,{"$f":"E33*F33","v":0.12}]
[null,null,{"$f":"'Conversion Factors'!C19","v":"paper sacks"},{"$f":"'Conversion Factors'!D19","v":"25# size"},{"$f":"'Conversion Factors'!E19","v":0.5},1,{"$f":"E34*F34","v":0.5}]
[null,null,{"$f":"'Conversion Factors'!C20","v":"paper sacks"},{"$f":"'Conversion Factors'!D20","v":"50# dry goods"},{"$f":"'Conversion Factors'!E20","v":1},1,1]
[null,null,{"$f":"'Conversion Factors'!C21","v":"beverage case"},{"$f":"'Conversion Factors'!D21","v":"6 pack"},{"$f":"'Conversion Factors'!E21","v":0.2},1,0.2]
[null,null,{"$f":"'Conversion Factors'!C22","v":"cereal box"},{"$f":"'Conversion Factors'!D22","v":"average"},{"$f":"'Conversion Factors'!E22","v":0.15},1,0.15]
[null,null,{"$f":"'Conversion Factors'!C23","v":"cardboard beverage case"},{"$f":"'Conversion Factors'!D23","v":"4 six-packs, full case"},{"$f":"'Conversion Factors'!E23","v":0.99},1,0.99]
[null,null,{"$f":"'Conversion Factors'!C24","v":"cardboard box, large"},{"$f":"'Conversion Factors'!D24","v":"48\" x 48\" x 60\""},{"$f":"'Conversion Factors'!E24","v":4},1,4]
[null,null,{"$f":"'Conversion Factors'!C25","v":"cardboard boxes, stacked"},{"$f":"'Conversion Factors'!D25","v":"cubic yard"},{"$f":"'Conversion Factors'!E25","v":50},1,50]
[null,null,null,null,null,null,0]
[null,null,null,null,null,null,0]
[null,"Aluminum/Steel",{"$f":"'Conversion Factors'!C27","v":"aluminum foil, loose"},{"$f":"'Conversion Factors'!D27","v":"cubic yard"},{"$f":"'Conversion Factors'!E27","v":48.1},1,48.1]
[null,null,{"$f":"'Conversion Factors'!C28","v":"aluminum cans, crushed"},{"$f":"'Conversion Factors'!D28","v":"case (24 cans)"},{"$f":"'Conversion Factors'!E28","v":0.89},1,0.89]
[null,null,{"$f":"'Conversion Factors'!C29","v":"aluminum can"},{"$f":"'Conversion Factors'!D29","v":"12-oz can"},{"$f":"'Conversion Factors'!E29","v":0.03},1,0.03]
[null,null,{"$f":"'Conversion Factors'!C30","v":"steel soup can"},{"$f":"'Conversion Factors'!D30","v":"15.5-oz can"},{"$f":"'Conversion Factors'!E30","v":0.11},1,0.11]
[null,null,null,null,null,null,0]
[null,null,null,null,null,null,0]
[null,"Plastic",{"$f":"'Conversion Factors'!C32","v":"gallon milk/juice HDPE container"},{"$f":"'Conversion Factors'!D32","v":"gallon container"},{"$f":"'Conversion Factors'!E32","v":0.22},1,0.22]
[null,null,{"$f":"'Conversion Factors'!C33","v":"8 oz juice HDPE container"},{"$f":"'Conversion Factors'!D33","v":"8 oz container"},{"$f":"'Conversion Factors'!E33","v":0.1},1,0.1]
[null,null,{"$f":"'Conversion Factors'!C34","v":"2 liter PET bottle"},{"$f":"'Conversion Factors'!D34","v":"2 liter bottle"},{"$f":"'Conversion Factors'!E34","v":0.13},1,0.13]
[null,null,{"$f":"'Conversion Factors'!C35","v":"gallon mayo container"},{"$f":"'Conversion Factors'!D35","v":"1 gallon container"},{"$f":"'Conversion Factors'!E35","v":0.42},1,0.42]
[null,null,null,null,null,null,0]
[null,null,null,null,null,null,0]
[null,"Glass",{"$f":"'Conversion Factors'!C37","v":"gallon jug"},{"$f":"'Conversion Factors'!D37","v":"each"},{"$f":"'Conversion Factors'!E37","v":2.4500000000000002},1,2.4500000000000002]
[null,null,{"$f":"'Conversion Factors'!C38","v":"beer bottle"},{"$f":"'Conversion Factors'!D38","v":"each"},{"$f":"'Conversion Factors'!E38","v":0.53},1,0.53]
[null,null,{"$f":"'Conversion Factors'!C39","v":"12 oz beverage"},{"$f":"'Conversion Factors'!D39","v":"case (24 bottles)"},{"$f":"'Conversion Factors'!E39","v":22},1,22]
[null,null,{"$f":"'Conversion Factors'!C40","v":"wine bottle"},{"$f":"'Conversion Factors'!D40","v":"each"},{"$f":"'Conversion Factors'!E40","v":1.08},1,{"$f":"E58*F58","v":1.08}]
[null,null,null,null,null,null,{"$f":"E59*F59","v":0}]
[null,null,null,null,null,null,{"$f":"E60*F60","v":0}]
[null,"Other",null,null,null,null,0]
[null,null,null,null,null,null,0]
[null,null,null,null,null,null,0]
[null,null,null,null,null,null,0]
[null,null,null,null,null,null,0]
[]
[null,"Plate Waste","Waste Name","Unit","Weight per Unit (lbs)","Number of Units","Weight (lbs)"]
[null,"Plate Waste",{"$f":"'Conversion Factors'!C46","v":"18 yard dumpster"},{"$f":"'Conversion Factors'!D46","v":"average"},{"$f":"'Conversion Factors'!E46","v":3000},1,{"$f":"E68*F68","v":3000}]
[null,null,null,null,null,null,{"$f":"E69*F69","v":0}]
[null,null,null,null,null,null,{"$f":"E70*F70","v":0}]
[null,null,null,null,null,null,{"$f":"E71*F71","v":0}]

{"sheet":"Step 3 - Data Entry","index":5,"n_rows":168,"n_cols":43,"rows_kept":168,"cut":false,"hidden":false,"merged":[[163,22,163,23],[159,19,159,20],[163,4,163,5],[163,7,163,8],[163,10,163,11],[163,13,163,14],[163,16,163,17],[163,19,163,20],[160,22,160,23],[162,21,162,23],[162,3,162,5],[162,6,162,8],[162,9,162,11],[162,12,162,14],[162,15,162,17],[162,18,162,20],[159,7,159,8],[159,10,159,11],[159,13,159,14],[159,16,159,17],[160,4,160,5],[160,7,160,8],[160,10,160,11],[160,13,160,14],[142,1,149,1],[151,1,160,1],[143,3,143,5],[158,13,158,14],[159,4,159,5],[154,19,154,20],[155,22,155,23],[152,4,152,5],[152,7,152,8],[158,4,158,5],[158,7,158,8],[158,10,158,11],[152,10,152,11],[152,13,152,14],[154,7,154,8],[157,4,157,5],[160,19,160,20],[157,22,157,23],[157,7,157,8],[157,10,157,11],[157,13,157,14],[157,16,157,17],[156,19,156,20],[159,22,159,23],[129,19,129,20],[121,16,121,17],[101,22,101,23],[128,22,128,23],[127,4,127,5],[127,7,127,8],[126,7,126,8],[126,16,126,17],[125,19,125,20],[127,22,127,23],[128,4,128,5],[128,7,128,8],[128,10,128,11],[128,13,128,14],[128,16,128,17],[128,19,128,20],[127,10,127,11],[125,22,125,23],[126,10,126,11],[126,13,126,14],[126,4,126,5],[127,13,127,14],[127,16,127,17],[127,19,127,20],[129,22,129,23],[153,22,153,23],[131,18,131,20],[151,21,151,23],[90,13,90,14],[97,19,97,20],[97,22,97,23],[109,3,109,24],[121,19,121,20],[121,22,121,23],[101,4,101,5],[121,7,121,8],[121,10,121,11],[121,13,121,14],[101,16,101,17],[121,4,121,5],[101,19,101,20],[90,16,90,17],[97,10,97,11],[90,19,90,20],[97,16,97,17],[94,19,94,20],[95,10,95,11],[95,13,95,14],[90,22,90,23],[98,16,98,17],[98,19,98,20],[98,22,98,23],[97,4,97,5],[97,7,97,8],[95,22,95,23],[96,4,96,5],[96,7,96,8],[95,16,95,17],[160,16,160,17],[156,16,156,17],[158,22,158,23],[157,19,157,20],[158,16,158,17],[158,19,158,20],[156,10,156,11],[156,4,156,5],[156,7,156,8],[156,13,156,14],[156,22,156,23],[133,16,133,17],[153,7,153,8],[153,10,153,11],[153,13,153,14],[132,22,132,23],[153,19,153,20],[129,7,129,8],[129,10,129,11],[129,13,129,14],[131,12,131,14],[131,15,131,17],[142,9,142,11],[142,12,142,14],[142,15,142,17],[132,10,132,11],[139,1,139,24],[140,3,140,24],[132,4,132,5],[132,7,132,8],[129,16,129,17],[141,1,141,2],[131,21,131,23],[142,21,142,23],[136,13,136,14],[122,16,122,17],[122,19,122,20],[123,19,123,20],[126,19,126,20],[122,13,122,14],[126,22,126,23],[123,22,123,23],[123,16,123,17],[124,22,124,23],[112,12,112,14],[112,15,112,17],[112,21,112,23],[120,21,120,23],[120,12,120,14],[120,15,120,17],[120,18,120,20],[101,7,101,8],[101,10,101,11],[101,13,101,14],[102,22,102,23],[108,1,108,24],[102,10,102,11],[102,13,102,14],[102,16,102,17],[111,1,118,1],[104,16,104,17],[102,4,102,5],[102,7,102,8],[104,4,104,5],[102,19,102,20],[104,19,104,20],[105,22,105,23],[112,6,112,8],[124,7,124,8],[124,10,124,11],[124,13,124,14],[124,16,124,17],[124,19,124,20],[98,10,98,11],[98,13,98,14],[167,22,167,23],[91,4,91,5],[91,7,91,8],[91,10,91,11],[91,13,91,14],[91,16,91,17],[91,19,91,20],[91,22,91,23],[167,19,167,20],[164,22,164,23],[166,4,166,5],[166,7,166,8],[166,10,166,11],[166,13,166,14],[166,16,166,17],[167,4,167,5],[167,7,167,8],[167,10,167,11],[166,19,166,20],[166,22,166,23],[92,16,92,17],[92,19,92,20],[93,22,93,23],[94,22,94,23],[164,19,164,20],[100,9,100,11],[100,12,100,14],[92,13,92,14],[111,12,111,14],[123,10,123,11],[123,13,123,14],[96,10,96,11],[96,13,96,14],[96,16,96,17],[96,19,96,20],[96,22,96,23],[122,10,122,11],[111,18,111,20],[112,18,112,20],[153,16,153,17],[155,16,155,17],[40,19,40,20],[42,19,42,20],[34,19,34,20],[35,19,35,20],[34,4,34,5],[40,13,40,14],[42,13,42,14],[32,16,32,17],[32,10,32,11],[40,7,40,8],[34,7,34,8],[39,16,39,17],[39,19,39,20],[39,7,39,8],[42,7,42,8],[100,1,105,1],[27,1,36,1],[40,16,40,17],[42,16,42,17],[48,1,48,2],[47,1,47,2],[93,4,93,5],[93,7,93,8],[93,10,93,11],[50,15,50,17],[49,12,49,14],[49,15,49,17],[100,6,100,8],[97,13,97,14],[98,7,98,8],[43,16,43,17],[58,15,58,17],[70,13,70,14],[63,16,63,17],[59,16,59,17],[69,15,69,17],[164,4,164,5],[164,7,164,8],[93,13,93,14],[93,16,93,17],[93,19,93,20],[94,7,94,8],[94,10,94,11],[95,4,95,5],[95,7,95,8],[95,19,95,20],[142,18,142,20],[135,16,135,17],[135,19,135,20],[133,13,133,14],[132,19,132,20],[142,3,142,5],[142,6,142,8],[135,10,135,11],[135,13,135,14],[132,13,132,14],[132,16,132,17],[133,4,133,5],[133,7,133,8],[136,10,136,11],[162,1,167,1],[164,10,164,11],[164,13,164,14],[164,16,164,17],[80,9,80,11],[80,12,80,14],[80,15,80,17],[90,4,90,5],[167,16,167,17],[167,13,167,14],[131,1,136,1],[94,13,94,14],[94,16,94,17],[125,4,125,5],[125,7,125,8],[125,10,125,11],[125,13,125,14],[125,16,125,17],[155,4,155,5],[155,7,155,8],[155,10,155,11],[155,13,155,14],[143,6,143,8],[129,4,129,5],[71,19,71,20],[71,22,71,23],[67,4,67,5],[67,7,67,8],[73,4,73,5],[73,7,73,8],[73,10,73,11],[73,13,73,14],[60,22,60,23],[69,18,69,20],[69,21,69,23],[63,19,63,20],[70,19,70,20],[70,22,70,23],[60,13,60,14],[60,19,60,20],[63,10,63,11],[63,13,63,14],[61,22,61,23],[62,22,62,23],[43,19,43,20],[43,10,43,11],[43,13,43,14],[58,9,58,11],[58,12,58,14],[49,21,49,23],[50,9,50,11],[50,12,50,14],[49,18,49,20],[50,21,50,23],[58,21,58,23],[59,19,59,20],[59,22,59,23],[50,18,50,20],[58,18,58,20],[2,1,4,15],[6,1,6,5],[16,1,16,2],[7,1,7,5],[17,1,17,2],[27,12,27,14],[18,1,25,1],[27,6,27,8],[18,3,18,5],[19,3,19,5],[18,15,18,17],[19,6,19,8],[27,9,27,11],[18,6,18,8],[18,12,18,14],[9,1,10,15],[49,1,56,1],[58,1,67,1],[80,1,87,1],[89,1,98,1],[110,1,110,2],[70,10,70,11],[94,4,94,5],[98,4,98,5],[62,4,62,5],[92,4,92,5],[59,7,59,8],[65,4,65,5],[65,7,65,8],[65,10,65,11],[66,4,66,5],[66,7,66,8],[67,10,67,11],[79,1,79,2],[49,3,49,5],[49,6,49,8],[49,9,49,11],[90,7,90,8],[90,10,90,11],[60,10,60,11],[140,1,140,2],[120,1,129,1],[109,1,109,2],[100,3,100,5],[15,1,15,24],[16,3,16,24],[40,4,40,5],[42,4,42,5],[43,4,43,5],[39,22,39,23],[27,3,27,5],[27,15,27,17],[27,18,27,20],[27,21,27,23],[38,21,38,23],[34,22,34,23],[35,22,35,23],[31,16,31,17],[33,22,33,23],[36,22,36,23],[33,19,33,20],[35,16,35,17],[38,3,38,5],[28,22,28,23],[29,22,29,23],[30,22,30,23],[31,22,31,23],[32,22,32,23],[28,16,28,17],[29,16,29,17],[30,16,30,17],[32,19,32,20],[31,19,31,20],[18,21,18,23],[19,12,19,14],[19,15,19,17],[19,18,19,20],[19,21,19,23],[100,18,100,20],[100,21,100,23],[33,16,33,17],[36,16,36,17],[100,15,100,17],[18,18,18,20],[28,19,28,20],[29,19,29,20],[30,19,30,20],[66,22,66,23],[65,13,65,14],[65,16,65,17],[65,19,65,20],[67,13,67,14],[67,16,67,17],[67,19,67,20],[64,19,64,20],[64,22,64,23],[65,22,65,23],[30,7,30,8],[35,7,35,8],[32,7,32,8],[29,7,29,8],[59,10,59,11],[34,16,34,17],[36,4,36,5],[35,4,35,5],[39,10,39,11],[58,3,58,5],[58,6,58,8],[50,3,50,5],[50,6,50,8],[59,4,59,5],[32,4,32,5],[33,4,33,5],[60,16,60,17],[39,4,39,5],[111,21,111,23],[111,3,111,5],[111,6,111,8],[111,9,111,11],[31,13,31,14],[32,13,32,14],[33,13,33,14],[61,4,61,5],[63,22,63,23],[64,4,64,5],[64,7,64,8],[64,10,64,11],[70,4,70,5],[70,7,70,8],[69,3,69,5],[69,6,69,8],[69,9,69,11],[69,12,69,14],[66,19,66,20],[70,16,70,17],[152,22,152,23],[152,16,152,17],[136,19,136,20],[136,16,136,17],[136,22,136,23],[136,4,136,5],[143,9,143,11],[143,12,143,14],[143,15,143,17],[143,18,143,20],[143,21,143,23],[136,7,136,8],[28,7,28,8],[33,7,33,8],[31,7,31,8],[62,19,62,20],[38,15,38,17],[38,18,38,20],[38,9,38,11],[38,6,38,8],[34,10,34,11],[35,10,35,11],[38,12,38,14],[36,13,36,14],[36,7,36,8],[36,10,36,11],[43,7,43,8],[47,3,47,24],[40,10,40,11],[42,10,42,11],[40,22,40,23],[36,19,36,20],[28,4,28,5],[29,4,29,5],[30,4,30,5],[31,4,31,5],[30,13,30,14],[34,13,34,14],[35,13,35,14],[19,9,19,11],[28,13,28,14],[29,13,29,14],[33,10,33,11],[18,9,18,11],[39,13,39,14],[28,10,28,11],[29,10,29,11],[30,10,30,11],[31,10,31,11],[73,16,73,17],[74,4,74,5],[74,7,74,8],[74,10,74,11],[74,13,74,14],[73,19,73,20],[41,13,41,14],[41,16,41,17],[41,19,41,20],[61,7,61,8],[61,10,61,11],[61,13,61,14],[61,16,61,17],[61,19,61,20],[62,7,62,8],[62,10,62,11],[62,13,62,14],[62,16,62,17],[64,13,64,14],[72,10,72,11],[72,13,72,14],[72,16,72,17],[72,19,72,20],[64,16,64,17],[80,21,80,23],[92,10,92,11],[74,16,74,17],[81,9,81,11],[81,12,81,14],[92,22,92,23],[81,15,81,17],[78,3,78,24],[77,1,77,24],[78,1,78,2],[81,21,81,23],[89,3,89,5],[89,6,89,8],[89,9,89,11],[89,12,89,14],[89,15,89,17],[81,18,81,20],[89,18,89,20],[80,18,80,20],[80,3,80,5],[80,6,80,8],[81,3,81,5],[81,6,81,8],[69,1,74,1],[133,10,133,11],[105,4,105,5],[105,7,105,8],[105,10,105,11],[131,3,131,5],[131,6,131,8],[105,19,105,20],[122,7,122,8],[104,22,104,23],[133,19,133,20],[133,22,133,23],[131,9,131,11],[122,22,122,23],[124,4,124,5],[105,13,105,14],[105,16,105,17],[111,15,111,17],[123,4,123,5],[123,7,123,8],[104,7,104,8],[104,10,104,11],[104,13,104,14],[122,4,122,5],[112,3,112,5],[120,6,120,8],[120,9,120,11],[41,4,41,5],[41,7,41,8],[41,10,41,11],[92,7,92,8],[63,4,63,5],[63,7,63,8],[60,4,60,5],[60,7,60,8],[46,1,46,24],[38,1,43,1],[66,10,66,11],[66,13,66,14],[66,16,66,17],[67,22,67,23],[71,4,71,5],[71,7,71,8],[71,10,71,11],[41,22,41,23],[72,4,72,5],[72,7,72,8],[73,22,73,23],[89,21,89,23],[42,22,42,23],[59,13,59,14],[71,13,71,14],[71,16,71,17],[43,22,43,23],[134,4,134,5],[134,7,134,8],[134,10,134,11],[134,13,134,14],[134,16,134,17],[134,19,134,20],[134,22,134,23],[72,22,72,23],[103,4,103,5],[103,7,103,8],[103,10,103,11],[103,13,103,14],[103,16,103,17],[103,19,103,20],[103,22,103,23],[74,19,74,20],[74,22,74,23],[112,9,112,11],[120,3,120,5],[165,4,165,5],[165,7,165,8],[165,10,165,11],[165,13,165,14],[165,16,165,17],[165,19,165,20],[165,22,165,23],[135,22,135,23],[135,4,135,5],[135,7,135,8],[151,3,151,5],[151,6,151,8],[151,9,151,11],[151,12,151,14],[151,15,151,17],[151,18,151,20],[153,4,153,5],[155,19,155,20],[154,4,154,5],[154,10,154,11],[154,13,154,14],[154,16,154,17],[154,22,154,23],[152,19,152,20]]}
[]
[null,"Step 3: Data Entry "]
[null,"The Data Entry form should be filled once a week by the appointed food waste manager using information from the collected Data Collection sheet. As data is entered here, please convert to units of weight (in pounds) for each food waste or packaging type. If necessary, please use the Conversion Helper tab to help convert the individual food and packaging items listed on the data collection sheets into units of pounds.  \n\nOnce the data has been entered, please click on the \"Store Data\" button. A summary of the data entered throughout the audit will be displayed on a Data Summary tab. The \"Clear Data\" button will clear the data entry tab so that the next week's food and packaging waste data can be entered. "]
[]
[null,null,"Running total with graph showing total amounts"]
[]
[null,"Week starting date for food waste audit:"]
[null,"How many different venues are included in the audit for the selected week?"]
[null,null,null,null,null,null,{"$f":"IF(VenueTest<>1,\"Please scroll down for additional venue data entry tables.\",\"\")","v":""}]
[null,"Food waste managers that have communicated with their kitchen staff to track individual food waste types (e.g., \"hot dogs\") can use the following buttons to add a user-specified row to the data entry tables below. Throughout the food waste audit, food waste managers will now be able to enter food or packaging waste amounts (in pounds) for individual material types."]
[]
[]
[]
[]
[null,{"$f":"\"Venue 1 of \"&VenueTest","v":"Venue 1 of 1"}]
[null,{"$f":"\"Food Waste Audit for Week Starting Monday, \"&TEXT(VLOOKUP(DateTest,'Background Calcs'!$A$4:$B$13,2,FALSE),\"mmmm d, yyyy\")","v":"Food Waste Audit for Week Starting Monday, December 19, 2016"}]
[null,{"$f":"\"Venue Name\"&IF(VenueTest>1,\" (1 of \"&VenueTest&\")\",\"\")","v":"Venue Name"},null,null,null,null,null,null,null,null,null,null,null,null,null,null,null,null,null,null,null,null,null,null,null,null,null,null,null,null,null,null,null,null,null,null,null,null,null,"Prep waste","Landfill/solid waste handler","Landfill/solid waste handler","Landfill/solid waste handler"]
[null,{"$f":"DateSelection&\" 1\"","v":"12/19/2016 1"},null,null,"Monday",null,null,"Tuesday",null,null,"Wednesday",null,null,"Thursday",null,null,"Friday",null,null,"Saturday",null,null,"Sunday",null,"Total",null,null,null,null,null,null,null,null,null,null,null,null,null,null,"Improperly cooked","Recycling","Recycling","Recycling"]
[null,"Kitchen Food Waste\n","Recorded By (Name)",null,null,null,null,null,null,null,null,null,null,null,null,null,null,null,null,null,null,null,null,null,null,null,null,null,null,null,null,null,null,null,null,null,null,null,null,"Stored food expired","Composting","Composting","Composting"]
[null,null,"Daily Event\n(e.g., lunch, special event)",null,null,null,null,null,null,null,null,null,null,null,null,null,null,null,null,null,null,null,null,null,null,null,null,null,null,null,null,null,null,null,null,null,null,null,null,"Arrived spoiled","Food bank","Other","Food bank"]
[null,null,"Quantity of Waste\n(ENTER POUNDS)","Pounds of Waste","Loss Reason","Waste Destination","Pounds of Waste","Loss Reason","Waste Destination","Pounds of Waste","Loss Reason","Waste Destination","Pounds of Waste","Loss Reason","Waste Destination","Pounds of Waste","Loss Reason","Waste Destination","Pounds of Waste","Loss Reason","Waste Destination","Pounds of Waste","Loss Reason","Waste Destination","Pounds of Waste",null,null,null,null,null,null,null,null,null,null,null,null,null,null,"Food sent back by customer","In sink disposal ",null,"In sink disposal "]
[null,null,"Protein",null,null,null,null,null,null,null,null,null,null,null,null,null,null,null,null,null,null,null,null,null,{"$f":"SUM(D22,G22,J22,M22,P22,S22,V22)","v":0},{"$f":"C22","v":"Protein"},{"$f":"DateSelection","v":"12/19/2016"},"Kitchen Food Waste",null,null,null,null,null,null,null,null,null,null,null,"Other","Other",null,"Other"]
[null,null,"Grain",null,null,null,null,null,null,null,null,null,null,null,null,null,null,null,null,null,null,null,null,null,{"$f":"SUM(D23,G23,J23,M23,P23,S23,V23)","v":0},{"$f":"C23","v":"Grain"},{"$f":"DateSelection","v":"12/19/2016"},"Kitchen Food Waste"]
[null,null,"Fruits and vegetables",null,null,null,null,null,null,null,null,null,null,null,null,null,null,null,null,null,null,null,null,null,{"$f":"SUM(D24,G24,J24,M24,P24,S24,V24)","v":0},{"$f":"C24","v":"Fruits and vegetables"},{"$f":"DateSelection","v":"12/19/2016"},"Kitchen Food Waste"]
[null,null,"Dairy",null,null,null,null,null,null,null,null,null,null,null,null,null,null,null,null,null,null,null,null,null,{"$f":"SUM(D25,G25,J25,M25,P25,S25,V25)","v":0},{"$f":"C25","v":"Dairy"},{"$f":"DateSelection","v":"12/19/2016"},"Kitchen Food Waste"]
[null,null,"Other",null,null,null,null,null,null,null,null,null,null,null,null,null,null,null,null,null,null,null,null,null,{"$f":"SUM(D26,G26,J26,M26,P26,S26,V26)","v":0},{"$f":"C26","v":"Other"},{"$f":"DateSelection","v":"12/19/2016"},"Kitchen Food Waste"]
[]
[null,"Kitchen Packaging Waste\n","Recorded By (Name)"]
[null,null,"Quantity of Waste\n(ENTER POUNDS)","Pounds of Waste","Waste Destination",null,"Pounds of Waste","Waste Destination",null,"Pounds of Waste","Waste Destination",null,"Pounds of Waste","Waste Destination",null,"Pounds of Waste","Waste Destination",null,"Pounds of Waste","Waste Destination",null,"Pounds of Waste","Waste Destination",null,"Pounds of Waste"]
[null,null,"Paper",null,null,null,null,null,null,null,null,null,null,null,null,null,null,null,null,null,null,null,null,null,{"$f":"SUM(D30,G30,J30,M30,P30,S30,V30)","v":0},{"$f":"C30","v":"Paper"},{"$f":"DateSelection","v":"12/19/2016"},"Kitchen Packaging Waste"]
[null,null,"Cardboard",null,null,null,null,null,null,null,null,null,null,null,null,null,null,null,null,null,null,null,null,null,0,"Cardboard","12/19/2016","Kitchen Packaging Waste"]
[null,null,"Aluminum",null,null,null,null,null,null,null,null,null,null,null,null,null,null,null,null,null,null,null,null,null,0,"Aluminum","12/19/2016","Kitchen Packaging Waste"]
[null,null,"Steel",null,null,null,null,null,null,null,null,null,null,null,null,null,null,null,null,null,null,null,null,null,0,"Steel","12/19/2016","Kitchen Packaging Waste"]
[null,null,"Container plastic",null,null,null,null,null,null,null,null,null,null,null,null,null,null,null,null,null,null,null,null,null,0,"Container plastic","12/19/2016","Kitchen Packaging Waste"]
[null,null,"Other plastic",null,null,null,null,null,null,null,null,null,null,null,null,null,null,null,null,null,null,null,null,null,0,"Other plastic","12/19/2016","Kitchen Packaging Waste"]
[null,null,"Glass",null,null,null,null,null,null,null,null,null,null,null,null,null,null,null,null,null,null,null,null,null,0,"Glass","12/19/2016","Kitchen Packaging Waste"]
[null,null,"Other",null,null,null,null,null,null,null,null,null,null,null,null,null,null,null,null,null,null,null,null,null,0,"Other","12/19/2016","Kitchen Packaging Waste"]
[]
[null,"Plate Waste","Recorded By (Name)"]
[null,null,"Quantity of Waste\n(ENTER POUNDS)","Pounds of Waste","Waste Destination",null,"Pounds of Waste","Waste Destination",null,"Pounds of Waste","Waste Destination",null,"Pounds of Waste","Waste Destination",null,"Pounds of Waste","Waste Destination",null,"Pounds of Waste","Waste Destination",null,"Pounds of Waste","Waste Destination",null,"Pounds of Waste"]
[null,null,"Food waste",null,null,null,null,null,null,null,null,null,null,null,null,null,null,null,null,null,null,null,null,null,{"$f":"SUM(D41,G41,J41,M41,P41,S41,V41)","v":0},{"$f":"C41","v":"Food waste"},{"$f":"DateSelection","v":"12/19/2016"},"Plate Waste"]
[null,null,"Paper cups and straws",null,null,null,null,null,null,null,null,null,null,null,null,null,null,null,null,null,null,null,null,null,{"$f":"SUM(D42,G42,J42,M42,P42,S42,V42)","v":0},{"$f":"C42","v":"Paper cups and straws"},{"$f":"DateSelection","v":"12/19/2016"},"Plate Waste"]
[null,null,"To-go containers",null,null,null,null,null,null,null,null,null,null,null,null,null,null,null,null,null,null,null,null,null,{"$f":"SUM(D43,G43,J43,M43,P43,S43,V43)","v":0},{"$f":"C43","v":"To-go containers"},{"$f":"DateSelection","v":"12/19/2016"},"Plate Waste"]
[null,null,"Disposable utensils",null,null,null,null,null,null,null,null,null,null,null,null,null,null,null,null,null,null,null,null,null,{"$f":"SUM(D44,G44,J44,M44,P44,S44,V44)","v":0},{"$f":"C44","v":"Disposable utensils"},{"$f":"DateSelection","v":"12/19/2016"},"Plate Waste"]
[]
[null,{"$f":"\"Venue 2 of \"&VenueTest","v":"Venue 2 of 1"}]
[null,{"$f":"\"Food Waste Audit for Week Starting Monday, \"&TEXT(VLOOKUP(DateTest,'Background Calcs'!$A$4:$B$13,2,FALSE),\"mmmm d, yyyy\")","v":"Food Waste Audit for Week Starting Monday, December 19, 2016"}]
[null,{"$f":"\"Venue Name\"&IF(VenueTest>1,\" (2 of \"&VenueTest&\")\",\"\")","v":"Venue Name"}]
[null,{"$f":"DateSelection&\" 2\"","v":"12/19/2016 2"},null,null,"Monday",null,null,"Tuesday",null,null,"Wednesday",null,null,"Thursday",null,null,"Friday",null,null,"Saturday",null,null,"Sunday",null,"Total"]
[null,"Kitchen Food Waste\n","Recorded By (Name)"]
[null,null,"Daily Event\n(e.g., lunch, special event)"]
[null,null,"Quantity of Waste\n(ENTER POUNDS)","Pounds of Waste","Loss Reason","Waste Destination","Pounds of Waste","Loss Reason","Waste Destination","Pounds of Waste","Loss Reason","Waste Destination","Pounds of Waste","Loss Reason","Waste Destination","Pounds of Waste","Loss Reason","Waste Destination","Pounds of Waste","Loss Reason","Waste Destination","Pounds of Waste","Loss Reason","Waste Destination","Pounds of Waste"]
[null,null,"Protein",null,null,null,null,null,null,null,null,null,null,null,null,null,null,null,null,null,null,null,null,null,{"$f":"SUM(D53,G53,J53,M53,P53,S53,V53)","v":0},{"$f":"C53","v":"Protein"},{"$f":"DateSelection","v":"12/19/2016"},"Kitchen Food Waste"]
[null,null,"Grain",null,null,null,null,null,null,null,null,null,null,null,null,null,null,null,null,null,null,null,null,null,{"$f":"SUM(D54,G54,J54,M54,P54,S54,V54)","v":0},{"$f":"C54","v":"Grain"},{"$f":"DateSelection","v":"12/19/2016"},"Kitchen Food Waste"]
[null,null,"Fruits and vegetables",null,null,null,null,null,null,null,null,null,null,null,null,null,null,null,null,null,null,null,null,null,{"$f":"SUM(D55,G55,J55,M55,P55,S55,V55)","v":0},{"$f":"C55","v":"Fruits and vegetables"},{"$f":"DateSelection","v":"12/19/2016"},"Kitchen Food Waste"]
[null,null,"Dairy",null,null,null,null,null,null,null,null,null,null,null,null,null,null,null,null,null,null,null,null,null,{"$f":"SUM(D56,G56,J56,M56,P56,S56,V56)","v":0},{"$f":"C56","v":"Dairy"},{"$f":"DateSelection","v":"12/19/2016"},"Kitchen Food Waste"]
[null,null,"Other",null,null,null,null,null,null,null,null,null,null,null,null,null,null,null,null,null,null,null,null,null,{"$f":"SUM(D57,G57,J57,M57,P57,S57,V57)","v":0},{"$f":"C57","v":"Other"},{"$f":"DateSelection","v":"12/19/2016"},"Kitchen Food Waste"]
[]
[null,"Kitchen Packaging Waste\n","Recorded By (Name)"]
[null,null,"Quantity of Waste\n(ENTER POUNDS)","Pounds of Waste","Waste Destination",null,"Pounds of Waste","Waste Destination",null,"Pounds of Waste","Waste Destination",null,"Pounds of Waste","Waste Destination",null,"Pounds of Waste","Waste Destination",null,"Pounds of Waste","Waste Destination",null,"Pounds of Waste","Waste Destination",null,"Pounds of Waste"]
[null,null,"Paper",null,null,null,null,null,null,null,null,null,null,null,null,null,null,null,null,null,null,null,null,null,{"$f":"SUM(D61,G61,J61,M61,P61,S61,V61)","v":0},{"$f":"C61","v":"Paper"},{"$f":"DateSelection","v":"12/19/2016"},"Kitchen Packaging Waste"]
[null,null,"Cardboard",null,null,null,null,null,null,null,null,null,null,null,null,null,null,null,null,null,null,null,null,null,0,"Cardboard","12/19/2016","Kitchen Packaging Waste"]
[null,null,"Aluminum",null,null,null,null,null,null,null,null,null,null,null,null,null,null,null,null,null,null,null,null,null,0,"Aluminum","12/19/2016","Kitchen Packaging Waste"]
[null,null,"Steel",null,null,null,null,null,null,null,null,null,null,null,null,null,null,null,null,null,null,null,null,null,0,"Steel","12/19/2016","Kitchen Packaging Waste"]
[null,null,"Container plastic",null,null,null,null,null,null,null,null,null,null,null,null,null,null,null,null,null,null,null,null,null,0,"Container plastic","12/19/2016","Kitchen Packaging Waste"]
[null,null,"Other plastic",null,null,null,null,null,null,null,null,null,null,null,null,null,null,null,null,null,null,null,null,null,0,"Other plastic","12/19/2016","Kitchen Packaging Waste"]
[null,null,"Glass",null,null,null,null,null,null,null,null,null,null,null,null,null,null,null,null,null,null,null,null,null,0,"Glass","12/19/2016","Kitchen Packaging Waste"]
[null,null,"Other",null,null,null,null,null,null,null,null,null,null,null,null,null,null,null,null,null,null,null,null,null,0,"Other","12/19/2016","Kitchen Packaging Waste"]
[]
[null,"Plate Waste","Recorded By (Name)"]
[null,null,"Quantity of Waste\n(ENTER POUNDS)","Pounds of Waste","Waste Destination",null,"Pounds of Waste","Waste Destination",null,"Pounds of Waste","Waste Destination",null,"Pounds of Waste","Waste Destination",null,"Pounds of Waste","Waste Destination",null,"Pounds of Waste","Waste Destination",null,"Pounds of Waste","Waste Destination",null,"Pounds of Waste"]
[null,null,"Food waste",null,null,null,null,null,null,null,null,null,null,null,null,null,null,null,null,null,null,null,null,null,{"$f":"SUM(D72,G72,J72,M72,P72,S72,V72)","v":0},{"$f":"C72","v":"Food waste"},{"$f":"DateSelection","v":"12/19/2016"},"Plate Waste"]
[null,null,"Paper cups and straws",null,null,null,null,null,null,null,null,null,null,null,null,null,null,null,null,null,null,null,null,null,{"$f":"SUM(D73,G73,J73,M73,P73,S73,V73)","v":0},{"$f":"C73","v":"Paper cups and straws"},{"$f":"DateSelection","v":"12/19/2016"},"Plate Waste"]
[null,null,"To-go containers",null,null,null,null,null,null,null,null,null,null,null,null,null,null,null,null,null,null,null,null,null,{"$f":"SUM(D74,G74,J74,M74,P74,S74,V74)","v":0},{"$f":"C74","v":"To-go containers"},{"$f":"DateSelection","v":"12/19/2016"},"Plate Waste"]
[null,null,"Disposable utensils",null,null,null,null,null,null,null,null,null,null,null,null,null,null,null,null,null,null,null,null,null,{"$f":"SUM(D75,G75,J75,M75,P75,S75,V75)","v":0},{"$f":"C75","v":"Disposable utensils"},{"$f":"DateSelection","v":"12/19/2016"},"Plate Waste"]
[]
[null,{"$f":"\"Venue 3 of \"&VenueTest","v":"Venue 3 of 1"}]
[null,{"$f":"\"Food Waste Audit for Week Starting Monday, \"&TEXT(VLOOKUP(DateTest,'Background Calcs'!$A$4:$B$13,2,FALSE),\"mmmm d, yyyy\")","v":"Food Waste Audit for Week Starting Monday, December 19, 2016"}]
[null,{"$f":"\"Venue Name\"&IF(VenueTest>1,\" (3 of \"&VenueTest&\")\",\"\")","v":"Venue Name"}]
[null,{"$f":"DateSelection&\" 3\"","v":"12/19/2016 3"},null,null,"Monday",null,null,"Tuesday",null,null,"Wednesday",null,null,"Thursday",null,null,"Friday",null,null,"Saturday",null,null,"Sunday",null,"Total"]
[null,"Kitchen Food Waste\n","Recorded By (Name)"]
[null,null,"Daily Event\n(e.g., lunch, special event)"]
[null,null,"Quantity of Waste\n(ENTER POUNDS)","Pounds of Waste","Loss Reason","Waste Destination","Pounds of Waste","Loss Reason","Waste Destination","Pounds of Waste","Loss Reason","Waste Destination","Pounds of Waste","Loss Reason","Waste Destination","Pounds of Waste","Loss Reason","Waste Destination","Pounds of Waste","Loss Reason","Waste Destination","Pounds of Waste","Loss Reason","Waste Destination","Pounds of Waste"]
[null,null,"Protein",null,null,null,null,null,null,null,null,null,null,null,null,null,null,null,null,null,null,null,null,null,{"$f":"SUM(D84,G84,J84,M84,P84,S84,V84)","v":0},{"$f":"C84","v":"Protein"},{"$f":"DateSelection","v":"12/19/2016"},"Kitchen Food Waste"]
[null,null,"Grain",null,null,null,null,null,null,null,null,null,null,null,null,null,null,null,null,null,null,null,null,null,{"$f":"SUM(D85,G85,J85,M85,P85,S85,V85)","v":0},{"$f":"C85","v":"Grain"},{"$f":"DateSelection","v":"12/19/2016"},"Kitchen Food Waste"]
[null,null,"Fruits and vegetables",null,null,null,null,null,null,null,null,null,null,null,null,null,null,null,null,null,null,null,null,null,{"$f":"SUM(D86,G86,J86,M86,P86,S86,V86)","v":0},{"$f":"C86","v":"Fruits and vegetables"},{"$f":"DateSelection","v":"12/19/2016"},"Kitchen Food Waste"]
[null,null,"Dairy",null,null,null,null,null,null,null,null,null,null,null,null,null,null,null,null,null,null,null,null,null,{"$f":"SUM(D87,G87,J87,M87,P87,S87,V87)","v":0},{"$f":"C87","v":"Dairy"},{"$f":"DateSelection","v":"12/19/2016"},"Kitchen Food Waste"]
[null,null,"Other",null,null,null,null,null,null,null,null,null,null,null,null,null,null,null,null,null,null,null,null,null,{"$f":"SUM(D88,G88,J88,M88,P88,S88,V88)","v":0},{"$f":"C88","v":"Other"},{"$f":"DateSelection","v":"12/19/2016"},"Kitchen Food Waste"]
[]
[null,"Kitchen Packaging Waste\n","Recorded By (Name)"]
[null,null,"Quantity of Waste\n(ENTER POUNDS)","Pounds of Waste","Waste Destination",null,"Pounds of Waste","Waste Destination",null,"Pounds of Waste","Waste Destination",null,"Pounds of Waste","Waste Destination",null,"Pounds of Waste","Waste Destination",null,"Pounds of Waste","Waste Destination",null,"Pounds of Waste","Waste Destination",null,"Pounds of Waste"]
[null,null,"Paper",null,null,null,null,null,null,null,null,null,null,null,null,null,null,null,null,null,null,null,null,null,{"$f":"SUM(D92,G92,J92,M92,P92,S92,V92)","v":0},{"$f":"C92","v":"Paper"},{"$f":"DateSelection","v":"12/19/2016"},"Kitchen Packaging Waste"]
[null,null,"Cardboard",null,null,null,null,null,null,null,null,null,null,null,null,null,null,null,null,null,null,null,null,null,0,"Cardboard","12/19/2016","Kitchen Packaging Waste"]
[null,null,"Aluminum",null,null,null,null,null,null,null,null,null,null,null,null,null,null,null,null,null,null,null,null,null,0,"Aluminum","12/19/2016","Kitchen Packaging Waste"]
[null,null,"Steel",null,null,null,null,null,null,null,null,null,null,null,null,null,null,null,null,null,null,null,null,null,0,"Steel","12/19/2016","Kitchen Packaging Waste"]
[null,null,"Container plastic",null,null,null,null,null,null,null,null,null,null,null,null,null,null,null,null,null,null,null,null,null,0,"Container plastic","12/19/2016","Kitchen Packaging Waste"]
[null,null,"Other plastic",null,null,null,null,null,null,null,null,null,null,null,null,null,null,null,null,null,null,null,null,null,0,"Other plastic","12/19/2016","Kitchen Packaging Waste"]
[null,null,"Glass",null,null,null,null,null,null,null,null,null,null,null,null,null,null,null,null,null,null,null,null,null,0,"Glass","12/19/2016","Kitchen Packaging Waste"]
[null,null,"Other",null,null,null,null,null,null,null,null,null,null,null,null,null,null,null,null,null,null,null,null,null,0,"Other","12/19/2016","Kitchen Packaging Waste"]
[]
[null,"Plate Waste","Recorded By (Name)"]
[null,null,"Quantity of Waste\n(ENTER POUNDS)","Pounds of Waste","Waste Destination",null,"Pounds of Waste","Waste Destination",null,"Pounds of Waste","Waste Destination",null,"Pounds of Waste","Waste Destination",null,"Pounds of Waste","Waste Destination",null,"Pounds of Waste","Waste Destination",null,"Pounds of Waste","Waste Destination",null,"Pounds of Waste"]
[null,null,"Food waste",null,null,null,null,null,null,null,null,null,null,null,null,null,null,null,null,null,null,null,null,null,{"$f":"SUM(D103,G103,J103,M103,P103,S103,V103)","v":0},{"$f":"C103","v":"Food waste"},{"$f":"DateSelection","v":"12/19/2016"},"Plate Waste"]
[null,null,"Paper cups and straws",null,null,null,null,null,null,null,null,null,null,null,null,null,null,null,null,null,null,null,null,null,{"$f":"SUM(D104,G104,J104,M104,P104,S104,V104)","v":0},{"$f":"C104","v":"Paper cups and straws"},{"$f":"DateSelection","v":"12/19/2016"},"Plate Waste"]
[null,null,"To-go containers",null,null,null,null,null,null,null,null,null,null,null,null,null,null,null,null,null,null,null,null,null,{"$f":"SUM(D105,G105,J105,M105,P105,S105,V105)","v":0},{"$f":"C105","v":"To-go containers"},{"$f":"DateSelection","v":"12/19/2016"},"Plate Waste"]
[null,null,"Disposable utensils",null,null,null,null,null,null,null,null,null,null,null,null,null,null,null,null,null,null,null,null,null,{"$f":"SUM(D106,G106,J106,M106,P106,S106,V106)","v":0},{"$f":"C106","v":"Disposable utensils"},{"$f":"DateSelection","v":"12/19/2016"},"Plate Waste"]
[]
[null,{"$f":"\"Venue 4 of \"&VenueTest","v":"Venue 4 of 1"}]
[null,{"$f":"\"Food Waste Audit for Week Starting Monday, \"&TEXT(VLOOKUP(DateTest,'Background Calcs'!$A$4:$B$13,2,FALSE),\"mmmm d, yyyy\")","v":"Food Waste Audit for Week Starting Monday, December 19, 2016"}]
[null,{"$f":"\"Venue Name\"&IF(VenueTest>1,\" (4 of \"&VenueTest&\")\",\"\")","v":"Venue Name"}]
[null,{"$f":"DateSelection&\" 4\"","v":"12/19/2016 4"},null,null,"Monday",null,null,"Tuesday",null,null,"Wednesday",null,null,"Thursday",null,null,"Friday",null,null,"Saturday",null,null,"Sunday",null,"Total"]
[null,"Kitchen Food Waste\n","Recorded By (Name)"]
[null,null,"Daily Event\n(e.g., lunch, special event)"]
[null,null,"Quantity of Waste\n(ENTER POUNDS)","Pounds of Waste","Loss Reason","Waste Destination","Pounds of Waste","Loss Reason","Waste Destination","Pounds of Waste","Loss Reason","Waste Destination","Pounds of Waste","Loss Reason","Waste Destination","Pounds of Waste","Loss Reason","Waste Destination","Pounds of Waste","Loss Reason","Waste Destination","Pounds of Waste","Loss Reason","Waste Destination","Pounds of Waste"]
[null,null,"Protein",null,null,null,null,null,null,null,null,null,null,null,null,null,null,null,null,null,null,null,null,null,{"$f":"SUM(D115,G115,J115,M115,P115,S115,V115)","v":0},{"$f":"C115","v":"Protein"},{"$f":"DateSelection","v":"12/19/2016"},"Kitchen Food Waste"]
[null,null,"Grain",null,null,null,null,null,null,null,null,null,null,null,null,null,null,null,null,null,null,null,null,null,{"$f":"SUM(D116,G116,J116,M116,P116,S116,V116)","v":0},{"$f":"C116","v":"Grain"},{"$f":"DateSelection","v":"12/19/2016"},"Kitchen Food Waste"]
[null,null,"Fruits and vegetables",null,null,null,null,null,null,null,null,null,null,null,null,null,null,null,null,null,null,null,null,null,{"$f":"SUM(D117,G117,J117,M117,P117,S117,V117)","v":0},{"$f":"C117","v":"Fruits and vegetables"},{"$f":"DateSelection","v":"12/19/2016"},"Kitchen Food Waste"]
[null,null,"Dairy",null,null,null,null,null,null,null,null,null,null,null,null,null,null,null,null,null,null,null,null,null,{"$f":"SUM(D118,G118,J118,M118,P118,S118,V118)","v":0},{"$f":"C118","v":"Dairy"},{"$f":"DateSelection","v":"12/19/2016"},"Kitchen Food Waste"]
[null,null,"Other",null,null,null,null,null,null,null,null,null,null,null,null,null,null,null,null,null,null,null,null,null,{"$f":"SUM(D119,G119,J119,M119,P119,S119,V119)","v":0},{"$f":"C119","v":"Other"},{"$f":"DateSelection","v":"12/19/2016"},"Kitchen Food Waste"]
[]
[null,"Kitchen Packaging Waste\n","Recorded By (Name)"]
[null,null,"Quantity of Waste\n(ENTER POUNDS)","Pounds of Waste","Waste Destination",null,"Pounds of Waste","Waste Destination",null,"Pounds of Waste","Waste Destination",null,"Pounds of Waste","Waste Destination",null,"Pounds of Waste","Waste Destination",null,"Pounds of Waste","Waste Destination",null,"Pounds of Waste","Waste Destination",null,"Pounds of Waste"]
[null,null,"Paper",null,null,null,null,null,null,null,null,null,null,null,null,null,null,null,null,null,null,null,null,null,{"$f":"SUM(D123,G123,J123,M123,P123,S123,V123)","v":0},{"$f":"C123","v":"Paper"},{"$f":"DateSelection","v":"12/19/2016"},"Kitchen Packaging Waste"]
[null,null,"Cardboard",null,null,null,null,null,null,null,null,null,null,null,null,null,null,null,null,null,null,null,null,null,0,"Cardboard","12/19/2016","Kitchen Packaging Waste"]
[null,null,"Aluminum",null,null,null,null,null,null,null,null,null,null,null,null,null,null,null,null,null,null,null,null,null,0,"Aluminum","12/19/2016","Kitchen Packaging Waste"]
[null,null,"Steel",null,null,null,null,null,null,null,null,null,null,null,null,null,null,null,null,null,null,null,null,null,0,"Steel","12/19/2016","Kitchen Packaging Waste"]
[null,null,"Container plastic",null,null,null,null,null,null,null,null,null,null,null,null,null,null,null,null,null,null,null,null,null,0,"Container plastic","12/19/2016","Kitchen Packaging Waste"]
[null,null,"Other plastic",null,null,null,null,null,null,null,null,null,null,null,null,null,null,null,null,null,null,null,null,null,0,"Other plastic","12/19/2016","Kitchen Packaging Waste"]
[null,null,"Glass",null,null,null,null,null,null,null,null,null,null,null,null,null,null,null,null,null,null,null,null,null,0,"Glass","12/19/2016","Kitchen Packaging Waste"]
[null,null,"Other",null,null,null,null,null,null,null,null,null,null,null,null,null,null,null,null,null,null,null,null,null,0,"Other","12/19/2016","Kitchen Packaging Waste"]
[]
[null,"Plate Waste","Recorded By (Name)"]
[null,null,"Quantity of Waste\n(ENTER POUNDS)","Pounds of Waste","Waste Destination",null,"Pounds of Waste","Waste Destination",null,"Pounds of Waste","Waste Destination",null,"Pounds of Waste","Waste Destination",null,"Pounds of Waste","Waste Destination",null,"Pounds of Waste","Waste Destination",null,"Pounds of Waste","Waste Destination",null,"Pounds of Waste"]
[null,null,"Food waste",null,null,null,null,null,null,null,null,null,null,null,null,null,null,null,null,null,null,null,null,null,{"$f":"SUM(D134,G134,J134,M134,P134,S134,V134)","v":0},{"$f":"C134","v":"Food waste"},{"$f":"DateSelection","v":"12/19/2016"},"Plate Waste"]
[null,null,"Paper cups and straws",null,null,null,null,null,null,null,null,null,null,null,null,null,null,null,null,null,null,null,null,null,{"$f":"SUM(D135,G135,J135,M135,P135,S135,V135)","v":0},{"$f":"C135","v":"Paper cups and straws"},{"$f":"DateSelection","v":"12/19/2016"},"Plate Waste"]
[null,null,"To-go containers",null,null,null,null,null,null,null,null,null,null,null,null,null,null,null,null,null,null,null,null,null,{"$f":"SUM(D136,G136,J136,M136,P136,S136,V136)","v":0},{"$f":"C136","v":"To-go containers"},{"$f":"DateSelection","v":"12/19/2016"},"Plate Waste"]
[null,null,"Disposable utensils",null,null,null,null,null,null,null,null,null,null,null,null,null,null,null,null,null,null,null,null,null,{"$f":"SUM(D137,G137,J137,M137,P137,S137,V137)","v":0},{"$f":"C137","v":"Disposable utensils"},{"$f":"DateSelection","v":"12/19/2016"},"Plate Waste"]
[]
[null,{"$f":"\"Venue 5 of \"&VenueTest","v":"Venue 5 of 1"}]
[null,{"$f":"\"Food Waste Audit for Week Starting Monday, \"&TEXT(VLOOKUP(DateTest,'Background Calcs'!$A$4:$B$13,2,FALSE),\"mmmm d, yyyy\")","v":"Food Waste Audit for Week Starting Monday, December 19, 2016"}]
[null,{"$f":"\"Venue Name\"&IF(VenueTest>1,\" (5 of \"&VenueTest&\")\",\"\")","v":"Venue Name"}]
[null,{"$f":"DateSelection&\" 5\"","v":"12/19/2016 5"},null,null,"Monday",null,null,"Tuesday",null,null,"Wednesday",null,null,"Thursday",null,null,"Friday",null,null,"Saturday",null,null,"Sunday",null,"Total"]
[null,"Kitchen Food Waste\n","Recorded By (Name)"]
[null,null,"Daily Event\n(e.g., lunch, special event)"]
[null,null,"Quantity of Waste\n(ENTER POUNDS)","Pounds of Waste","Loss Reason","Waste Destination","Pounds of Waste","Loss Reason","Waste Destination","Pounds of Waste","Loss Reason","Waste Destination","Pounds of Waste","Loss Reason","Waste Destination","Pounds of Waste","Loss Reason","Waste Destination","Pounds of Waste","Loss Reason","Waste Destination","Pounds of Waste","Loss Reason","Waste Destination","Pounds of Waste"]
[null,null,"Protein",null,null,null,null,null,null,null,null,null,null,null,null,null,null,null,null,null,null,null,null,null,{"$f":"SUM(D146,G146,J146,M146,P146,S146,V146)","v":0},{"$f":"C146","v":"Protein"},{"$f":"DateSelection","v":"12/19/2016"},"Kitchen Food Waste"]
[null,null,"Grain",null,null,null,null,null,null,null,null,null,null,null,null,null,null,null,null,null,null,null,null,null,{"$f":"SUM(D147,G147,J147,M147,P147,S147,V147)","v":0},{"$f":"C147","v":"Grain"},{"$f":"DateSelection","v":"12/19/2016"},"Kitchen Food Waste"]
[null,null,"Fruits and vegetables",null,null,null,null,null,null,null,null,null,null,null,null,null,null,null,null,null,null,null,null,null,{"$f":"SUM(D148,G148,J148,M148,P148,S148,V148)","v":0},{"$f":"C148","v":"Fruits and vegetables"},{"$f":"DateSelection","v":"12/19/2016"},"Kitchen Food Waste"]
[null,null,"Dairy",null,null,null,null,null,null,null,null,null,null,null,null,null,null,null,null,null,null,null,null,null,{"$f":"SUM(D149,G149,J149,M149,P149,S149,V149)","v":0},{"$f":"C149","v":"Dairy"},{"$f":"DateSelection","v":"12/19/2016"},"Kitchen Food Waste"]
[null,null,"Other",null,null,null,null,null,null,null,null,null,null,null,null,null,null,null,null,null,null,null,null,null,{"$f":"SUM(D150,G150,J150,M150,P150,S150,V150)","v":0},{"$f":"C150","v":"Other"},{"$f":"DateSelection","v":"12/19/2016"},"Kitchen Food Waste"]
[]
[null,"Kitchen Packaging Waste\n","Recorded By (Name)"]
[null,null,"Quantity of Waste\n(ENTER POUNDS)","Pounds of Waste","Waste Destination",null,"Pounds of Waste","Waste Destination",null,"Pounds of Waste","Waste Destination",null,"Pounds of Waste","Waste Destination",null,"Pounds of Waste","Waste Destination",null,"Pounds of Waste","Waste Destination",null,"Pounds of Waste","Waste Destination",null,"Pounds of Waste"]
[null,null,"Paper",null,null,null,null,null,null,null,null,null,null,null,null,null,null,null,null,null,null,null,null,null,{"$f":"SUM(D154,G154,J154,M154,P154,S154,V154)","v":0},{"$f":"C154","v":"Paper"},{"$f":"DateSelection","v":"12/19/2016"},"Kitchen Packaging Waste"]
[null,null,"Cardboard",null,null,null,null,null,null,null,null,null,null,null,null,null,null,null,null,null,null,null,null,null,0,"Cardboard","12/19/2016","Kitchen Packaging Waste"]
[null,null,"Aluminum",null,null,null,null,null,null,null,null,null,null,null,null,null,null,null,null,null,null,null,null,null,0,"Aluminum","12/19/2016","Kitchen Packaging Waste"]
[null,null,"Steel",null,null,null,null,null,null,null,null,null,null,null,null,null,null,null,null,null,null,null,null,null,0,"Steel","12/19/2016","Kitchen Packaging Waste"]
[null,null,"Container plastic",null,null,null,null,null,null,null,null,null,null,null,null,null,null,null,null,null,null,null,null,null,0,"Container plastic","12/19/2016","Kitchen Packaging Waste"]
[null,null,"Other plastic",null,null,null,null,null,null,null,null,null,null,null,null,null,null,null,null,null,null,null,null,null,0,"Other plastic","12/19/2016","Kitchen Packaging Waste"]
[null,null,"Glass",null,null,null,null,null,null,null,null,null,null,null,null,null,null,null,null,null,null,null,null,null,0,"Glass","12/19/2016","Kitchen Packaging Waste"]
[null,null,"Other",null,null,null,null,null,null,null,null,null,null,null,null,null,null,null,null,null,null,null,null,null,0,"Other","12/19/2016","Kitchen Packaging Waste"]
[]
[null,"Plate Waste","Recorded By (Name)"]
[null,null,"Quantity of Waste\n(ENTER POUNDS)","Pounds of Waste","Waste Destination",null,"Pounds of Waste","Waste Destination",null,"Pounds of Waste","Waste Destination",null,"Pounds of Waste","Waste Destination",null,"Pounds of Waste","Waste Destination",null,"Pounds of Waste","Waste Destination",null,"Pounds of Waste","Waste Destination",null,"Pounds of Waste"]
[null,null,"Food waste",null,null,null,null,null,null,null,null,null,null,null,null,null,null,null,null,null,null,null,null,null,{"$f":"SUM(D165,G165,J165,M165,P165,S165,V165)","v":0},{"$f":"C165","v":"Food waste"},{"$f":"DateSelection","v":"12/19/2016"},"Plate Waste"]
[null,null,"Paper cups and straws",null,null,null,null,null,null,null,null,null,null,null,null,null,null,null,null,null,null,null,null,null,{"$f":"SUM(D166,G166,J166,M166,P166,S166,V166)","v":0},{"$f":"C166","v":"Paper cups and straws"},{"$f":"DateSelection","v":"12/19/2016"},"Plate Waste"]
[null,null,"To-go containers",null,null,null,null,null,null,null,null,null,null,null,null,null,null,null,null,null,null,null,null,null,{"$f":"SUM(D167,G167,J167,M167,P167,S167,V167)","v":0},{"$f":"C167","v":"To-go containers"},{"$f":"DateSelection","v":"12/19/2016"},"Plate Waste"]
[null,null,"Disposable utensils",null,null,null,null,null,null,null,null,null,null,null,null,null,null,null,null,null,null,null,null,null,{"$f":"SUM(D168,G168,J168,M168,P168,S168,V168)","v":0},{"$f":"C168","v":"Disposable utensils"},{"$f":"DateSelection","v":"12/19/2016"},"Plate Waste"]

{"sheet":"Audit Data Summary","index":6,"n_rows":64,"n_cols":15,"rows_kept":64,"cut":false,"hidden":false,"merged":[[33,13,33,14],[34,13,34,14],[35,13,35,14],[32,11,32,12],[33,11,33,12],[34,11,34,12],[35,11,35,12],[36,11,36,12],[37,11,37,12],[60,9,60,10],[60,11,60,12],[60,13,60,14],[57,9,57,10],[57,11,57,12],[57,13,57,14],[36,13,36,14],[37,13,37,14],[38,13,38,14],[38,11,38,12],[56,11,56,12],[59,5,59,6],[59,7,59,8],[57,1,61,1],[57,3,57,4],[59,3,59,4],[60,3,60,4],[57,5,57,6],[57,7,57,8],[60,5,60,6],[60,7,60,8],[61,3,61,4],[61,5,61,6],[61,7,61,8],[58,3,58,4],[58,5,58,6],[58,7,58,8],[39,13,39,14],[40,13,40,14],[41,13,41,14],[42,13,42,14],[43,13,43,14],[44,9,44,10],[5,1,10,1],[12,1,20,1],[33,1,38,1],[32,3,32,4],[32,5,32,6],[36,3,36,4],[37,3,37,4],[38,3,38,4],[33,5,33,6],[33,3,33,4],[34,3,34,4],[35,3,35,4],[34,5,34,6],[35,5,35,6],[22,1,26,1],[36,5,36,6],[32,13,32,14],[33,9,33,10],[47,11,47,12],[48,11,48,12],[33,7,33,8],[34,7,34,8],[35,7,35,8],[36,7,36,8],[37,7,37,8],[38,7,38,8],[34,9,34,10],[36,9,36,10],[37,9,37,10],[38,9,38,10],[35,9,35,10],[39,11,39,12],[44,11,44,12],[44,13,44,14],[43,11,43,12],[40,11,40,12],[46,7,46,8],[46,9,46,10],[47,9,47,10],[48,9,48,10],[61,9,61,10],[61,11,61,12],[61,13,61,14],[59,11,59,12],[59,13,59,14],[59,9,59,10],[41,11,41,12],[42,11,42,12],[53,7,53,8],[54,7,54,8],[45,11,45,12],[45,13,45,14],[46,11,46,12],[46,13,46,14],[47,13,47,14],[48,13,48,14],[39,3,39,4],[39,5,39,6],[39,7,39,8],[39,9,39,10],[37,5,37,6],[38,5,38,6],[32,7,32,8],[32,9,32,10],[40,9,40,10],[51,5,51,6],[52,5,52,6],[53,5,53,6],[54,5,54,6],[43,3,43,4],[43,5,43,6],[43,7,43,8],[43,9,43,10],[44,3,44,4],[44,5,44,6],[44,7,44,8],[46,3,46,4],[46,5,46,6],[42,3,42,4],[42,5,42,6],[42,7,42,8],[42,9,42,10],[41,3,41,4],[41,5,41,6],[41,7,41,8],[41,9,41,10],[50,5,50,6],[47,1,55,1],[47,3,47,4],[48,3,48,4],[49,3,49,4],[50,3,50,4],[51,3,51,4],[52,3,52,4],[53,3,53,4],[54,3,54,4],[55,3,55,4],[55,13,55,14],[47,5,47,6],[48,5,48,6],[49,5,49,6],[58,9,58,10],[58,11,58,12],[58,13,58,14],[56,13,56,14],[40,1,45,1],[40,3,40,4],[40,5,40,6],[40,7,40,8],[49,9,49,10],[50,9,50,10],[51,9,51,10],[52,9,52,10],[54,9,54,10],[45,3,45,4],[45,5,45,6],[45,7,45,8],[45,9,45,10],[47,7,47,8],[48,7,48,8],[49,7,49,8],[56,3,56,4],[56,5,56,6],[56,7,56,8],[56,9,56,10],[49,13,49,14],[50,13,50,14],[54,11,54,12],[53,13,53,14],[54,13,54,14],[49,11,49,12],[50,11,50,12],[51,11,51,12],[52,11,52,12],[51,13,51,14],[52,13,52,14],[53,9,53,10],[53,11,53,12],[50,7,50,8],[51,7,51,8],[52,7,52,8],[55,5,55,6],[55,7,55,8],[55,9,55,10],[55,11,55,12]]}
[]
[null,"Audit Data Summary"]
[null,null,null,1,2,3,4,5,6,7,8,9,10,11,12]
[null,null,null,"Week 1","Week 2","Week 3","Week 4","Week 5","Week 6","Week 7","Week 8","Week 9","Week 10","Week 11","Week 12"]
[null,null,"Week Starting Date:",{"$f":"IF(VLOOKUP(D$3,'Background Calcs'!$A$22:$C$73,3,FALSE)=0,\"\",VLOOKUP(D$3,'Background Calcs'!$A$22:$C$73,3,FALSE))","v":""},{"$f":"IF(VLOOKUP(E$3,'Background Calcs'!$A$22:$C$73,3,FALSE)=0,\"\",VLOOKUP(E$3,'Background Calcs'!$A$22:$C$73,3,FALSE))","v":""},{"$f":"IF(VLOOKUP(F$3,'Background Calcs'!$A$22:$C$73,3,FALSE)=0,\"\",VLOOKUP(F$3,'Background Calcs'!$A$22:$C$73,3,FALSE))","v":""},{"$f":"IF(VLOOKUP(G$3,'Background Calcs'!$A$22:$C$73,3,FALSE)=0,\"\",VLOOKUP(G$3,'Background Calcs'!$A$22:$C$73,3,FALSE))","v":""},{"$f":"IF(VLOOKUP(H$3,'Background Calcs'!$A$22:$C$73,3,FALSE)=0,\"\",VLOOKUP(H$3,'Background Calcs'!$A$22:$C$73,3,FALSE))","v":""},{"$f":"IF(VLOOKUP(I$3,'Background Calcs'!$A$22:$C$73,3,FALSE)=0,\"\",VLOOKUP(I$3,'Background Calcs'!$A$22:$C$73,3,FALSE))","v":""},{"$f":"IF(VLOOKUP(J$3,'Background Calcs'!$A$22:$C$73,3,FALSE)=0,\"\",VLOOKUP(J$3,'Background Calcs'!$A$22:$C$73,3,FALSE))","v":""},{"$f":"IF(VLOOKUP(K$3,'Background Calcs'!$A$22:$C$73,3,FALSE)=0,\"\",VLOOKUP(K$3,'Background Calcs'!$A$22:$C$73,3,FALSE))","v":""},{"$f":"IF(VLOOKUP(L$3,'Background Calcs'!$A$22:$C$73,3,FALSE)=0,\"\",VLOOKUP(L$3,'Background Calcs'!$A$22:$C$73,3,FALSE))","v":""},{"$f":"IF(VLOOKUP(M$3,'Background Calcs'!$A$22:$C$73,3,FALSE)=0,\"\",VLOOKUP(M$3,'Background Calcs'!$A$22:$C$73,3,FALSE))","v":""},{"$f":"IF(VLOOKUP(N$3,'Background Calcs'!$A$22:$C$73,3,FALSE)=0,\"\",VLOOKUP(N$3,'Background Calcs'!$A$22:$C$73,3,FALSE))","v":""},{"$f":"IF(VLOOKUP(O$3,'Background Calcs'!$A$22:$C$73,3,FALSE)=0,\"\",VLOOKUP(O$3,'Background Calcs'!$A$22:$C$73,3,FALSE))","v":""}]
[null,"Kitchen Food Waste","Protein",{"$f":"SUMIFS('Stored Data'!$Y:$Y,'Stored Data'!$Z:$Z,'Audit Data Summary'!$C6,'Stored Data'!$AA:$AA,'Audit Data Summary'!D$5,'Stored Data'!$AB:$AB,$B$6)","v":0},{"$f":"SUMIFS('Stored Data'!$Y:$Y,'Stored Data'!$Z:$Z,'Audit Data Summary'!$C6,'Stored Data'!$AA:$AA,'Audit Data Summary'!E$5,'Stored Data'!$AB:$AB,$B$6)","v":0},{"$f":"SUMIFS('Stored Data'!$Y:$Y,'Stored Data'!$Z:$Z,'Audit Data Summary'!$C6,'Stored Data'!$AA:$AA,'Audit Data Summary'!F$5,'Stored Data'!$AB:$AB,$B$6)","v":0},{"$f":"SUMIFS('Stored Data'!$Y:$Y,'Stored Data'!$Z:$Z,'Audit Data Summary'!$C6,'Stored Data'!$AA:$AA,'Audit Data Summary'!G$5,'Stored Data'!$AB:$AB,$B$6)","v":0},{"$f":"SUMIFS('Stored Data'!$Y:$Y,'Stored Data'!$Z:$Z,'Audit Data Summary'!$C6,'Stored Data'!$AA:$AA,'Audit Data Summary'!H$5,'Stored Data'!$AB:$AB,$B$6)","v":0},{"$f":"SUMIFS('Stored Data'!$Y:$Y,'Stored Data'!$Z:$Z,'Audit Data Summary'!$C6,'Stored Data'!$AA:$AA,'Audit Data Summary'!I$5,'Stored Data'!$AB:$AB,$B$6)","v":0},{"$f":"SUMIFS('Stored Data'!$Y:$Y,'Stored Data'!$Z:$Z,'Audit Data Summary'!$C6,'Stored Data'!$AA:$AA,'Audit Data Summary'!J$5,'Stored Data'!$AB:$AB,$B$6)","v":0},{"$f":"SUMIFS('Stored Data'!$Y:$Y,'Stored Data'!$Z:$Z,'Audit Data Summary'!$C6,'Stored Data'!$AA:$AA,'Audit Data Summary'!K$5,'Stored Data'!$AB:$AB,$B$6)","v":0},{"$f":"SUMIFS('Stored Data'!$Y:$Y,'Stored Data'!$Z:$Z,'Audit Data Summary'!$C6,'Stored Data'!$AA:$AA,'Audit Data Summary'!L$5,'Stored Data'!$AB:$AB,$B$6)","v":0},{"$f":"SUMIFS('Stored Data'!$Y:$Y,'Stored Data'!$Z:$Z,'Audit Data Summary'!$C6,'Stored Data'!$AA:$AA,'Audit Data Summary'!M$5,'Stored Data'!$AB:$AB,$B$6)","v":0},{"$f":"SUMIFS('Stored Data'!$Y:$Y,'Stored Data'!$Z:$Z,'Audit Data Summary'!$C6,'Stored Data'!$AA:$AA,'Audit Data Summary'!N$5,'Stored Data'!$AB:$AB,$B$6)","v":0},{"$f":"SUMIFS('Stored Data'!$Y:$Y,'Stored Data'!$Z:$Z,'Audit Data Summary'!$C6,'Stored Data'!$AA:$AA,'Audit Data Summary'!O$5,'Stored Data'!$AB:$AB,$B$6)","v":0}]
[null,null,"Grain",{"$f":"SUMIFS('Stored Data'!$Y:$Y,'Stored Data'!$Z:$Z,'Audit Data Summary'!$C7,'Stored Data'!$AA:$AA,'Audit Data Summary'!D$5,'Stored Data'!$AB:$AB,$B$6)","v":0},{"$f":"SUMIFS('Stored Data'!$Y:$Y,'Stored Data'!$Z:$Z,'Audit Data Summary'!$C7,'Stored Data'!$AA:$AA,'Audit Data Summary'!E$5,'Stored Data'!$AB:$AB,$B$6)","v":0},{"$f":"SUMIFS('Stored Data'!$Y:$Y,'Stored Data'!$Z:$Z,'Audit Data Summary'!$C7,'Stored Data'!$AA:$AA,'Audit Data Summary'!F$5,'Stored Data'!$AB:$AB,$B$6)","v":0},{"$f":"SUMIFS('Stored Data'!$Y:$Y,'Stored Data'!$Z:$Z,'Audit Data Summary'!$C7,'Stored Data'!$AA:$AA,'Audit Data Summary'!G$5,'Stored Data'!$AB:$AB,$B$6)","v":0},{"$f":"SUMIFS('Stored Data'!$Y:$Y,'Stored Data'!$Z:$Z,'Audit Data Summary'!$C7,'Stored Data'!$AA:$AA,'Audit Data Summary'!H$5,'Stored Data'!$AB:$AB,$B$6)","v":0},{"$f":"SUMIFS('Stored Data'!$Y:$Y,'Stored Data'!$Z:$Z,'Audit Data Summary'!$C7,'Stored Data'!$AA:$AA,'Audit Data Summary'!I$5,'Stored Data'!$AB:$AB,$B$6)","v":0},{"$f":"SUMIFS('Stored Data'!$Y:$Y,'Stored Data'!$Z:$Z,'Audit Data Summary'!$C7,'Stored Data'!$AA:$AA,'Audit Data Summary'!J$5,'Stored Data'!$AB:$AB,$B$6)","v":0},{"$f":"SUMIFS('Stored Data'!$Y:$Y,'Stored Data'!$Z:$Z,'Audit Data Summary'!$C7,'Stored Data'!$AA:$AA,'Audit Data Summary'!K$5,'Stored Data'!$AB:$AB,$B$6)","v":0},{"$f":"SUMIFS('Stored Data'!$Y:$Y,'Stored Data'!$Z:$Z,'Audit Data Summary'!$C7,'Stored Data'!$AA:$AA,'Audit Data Summary'!L$5,'Stored Data'!$AB:$AB,$B$6)","v":0},{"$f":"SUMIFS('Stored Data'!$Y:$Y,'Stored Data'!$Z:$Z,'Audit Data Summary'!$C7,'Stored Data'!$AA:$AA,'Audit Data Summary'!M$5,'Stored Data'!$AB:$AB,$B$6)","v":0},{"$f":"SUMIFS('Stored Data'!$Y:$Y,'Stored Data'!$Z:$Z,'Audit Data Summary'!$C7,'Stored Data'!$AA:$AA,'Audit Data Summary'!N$5,'Stored Data'!$AB:$AB,$B$6)","v":0},{"$f":"SUMIFS('Stored Data'!$Y:$Y,'Stored Data'!$Z:$Z,'Audit Data Summary'!$C7,'Stored Data'!$AA:$AA,'Audit Data Summary'!O$5,'Stored Data'!$AB:$AB,$B$6)","v":0}]
[null,null,"Fruits and vegetables",{"$f":"SUMIFS('Stored Data'!$Y:$Y,'Stored Data'!$Z:$Z,'Audit Data Summary'!$C8,'Stored Data'!$AA:$AA,'Audit Data Summary'!D$5,'Stored Data'!$AB:$AB,$B$6)","v":0},{"$f":"SUMIFS('Stored Data'!$Y:$Y,'Stored Data'!$Z:$Z,'Audit Data Summary'!$C8,'Stored Data'!$AA:$AA,'Audit Data Summary'!E$5,'Stored Data'!$AB:$AB,$B$6)","v":0},{"$f":"SUMIFS('Stored Data'!$Y:$Y,'Stored Data'!$Z:$Z,'Audit Data Summary'!$C8,'Stored Data'!$AA:$AA,'Audit Data Summary'!F$5,'Stored Data'!$AB:$AB,$B$6)","v":0},{"$f":"SUMIFS('Stored Data'!$Y:$Y,'Stored Data'!$Z:$Z,'Audit Data Summary'!$C8,'Stored Data'!$AA:$AA,'Audit Data Summary'!G$5,'Stored Data'!$AB:$AB,$B$6)","v":0},{"$f":"SUMIFS('Stored Data'!$Y:$Y,'Stored Data'!$Z:$Z,'Audit Data Summary'!$C8,'Stored Data'!$AA:$AA,'Audit Data Summary'!H$5,'Stored Data'!$AB:$AB,$B$6)","v":0},{"$f":"SUMIFS('Stored Data'!$Y:$Y,'Stored Data'!$Z:$Z,'Audit Data Summary'!$C8,'Stored Data'!$AA:$AA,'Audit Data Summary'!I$5,'Stored Data'!$AB:$AB,$B$6)","v":0},{"$f":"SUMIFS('Stored Data'!$Y:$Y,'Stored Data'!$Z:$Z,'Audit Data Summary'!$C8,'Stored Data'!$AA:$AA,'Audit Data Summary'!J$5,'Stored Data'!$AB:$AB,$B$6)","v":0},{"$f":"SUMIFS('Stored Data'!$Y:$Y,'Stored Data'!$Z:$Z,'Audit Data Summary'!$C8,'Stored Data'!$AA:$AA,'Audit Data Summary'!K$5,'Stored Data'!$AB:$AB,$B$6)","v":0},{"$f":"SUMIFS('Stored Data'!$Y:$Y,'Stored Data'!$Z:$Z,'Audit Data Summary'!$C8,'Stored Data'!$AA:$AA,'Audit Data Summary'!L$5,'Stored Data'!$AB:$AB,$B$6)","v":0},{"$f":"SUMIFS('Stored Data'!$Y:$Y,'Stored Data'!$Z:$Z,'Audit Data Summary'!$C8,'Stored Data'!$AA:$AA,'Audit Data Summary'!M$5,'Stored Data'!$AB:$AB,$B$6)","v":0},{"$f":"SUMIFS('Stored Data'!$Y:$Y,'Stored Data'!$Z:$Z,'Audit Data Summary'!$C8,'Stored Data'!$AA:$AA,'Audit Data Summary'!N$5,'Stored Data'!$AB:$AB,$B$6)","v":0},{"$f":"SUMIFS('Stored Data'!$Y:$Y,'Stored Data'!$Z:$Z,'Audit Data Summary'!$C8,'Stored Data'!$AA:$AA,'Audit Data Summary'!O$5,'Stored Data'!$AB:$AB,$B$6)","v":0}]
[null,null,"Dairy",{"$f":"SUMIFS('Stored Data'!$Y:$Y,'Stored Data'!$Z:$Z,'Audit Data Summary'!$C9,'Stored Data'!$AA:$AA,'Audit Data Summary'!D$5,'Stored Data'!$AB:$AB,$B$6)","v":0},{"$f":"SUMIFS('Stored Data'!$Y:$Y,'Stored Data'!$Z:$Z,'Audit Data Summary'!$C9,'Stored Data'!$AA:$AA,'Audit Data Summary'!E$5,'Stored Data'!$AB:$AB,$B$6)","v":0},{"$f":"SUMIFS('Stored Data'!$Y:$Y,'Stored Data'!$Z:$Z,'Audit Data Summary'!$C9,'Stored Data'!$AA:$AA,'Audit Data Summary'!F$5,'Stored Data'!$AB:$AB,$B$6)","v":0},{"$f":"SUMIFS('Stored Data'!$Y:$Y,'Stored Data'!$Z:$Z,'Audit Data Summary'!$C9,'Stored Data'!$AA:$AA,'Audit Data Summary'!G$5,'Stored Data'!$AB:$AB,$B$6)","v":0},{"$f":"SUMIFS('Stored Data'!$Y:$Y,'Stored Data'!$Z:$Z,'Audit Data Summary'!$C9,'Stored Data'!$AA:$AA,'Audit Data Summary'!H$5,'Stored Data'!$AB:$AB,$B$6)","v":0},{"$f":"SUMIFS('Stored Data'!$Y:$Y,'Stored Data'!$Z:$Z,'Audit Data Summary'!$C9,'Stored Data'!$AA:$AA,'Audit Data Summary'!I$5,'Stored Data'!$AB:$AB,$B$6)","v":0},{"$f":"SUMIFS('Stored Data'!$Y:$Y,'Stored Data'!$Z:$Z,'Audit Data Summary'!$C9,'Stored Data'!$AA:$AA,'Audit Data Summary'!J$5,'Stored Data'!$AB:$AB,$B$6)","v":0},{"$f":"SUMIFS('Stored Data'!$Y:$Y,'Stored Data'!$Z:$Z,'Audit Data Summary'!$C9,'Stored Data'!$AA:$AA,'Audit Data Summary'!K$5,'Stored Data'!$AB:$AB,$B$6)","v":0},{"$f":"SUMIFS('Stored Data'!$Y:$Y,'Stored Data'!$Z:$Z,'Audit Data Summary'!$C9,'Stored Data'!$AA:$AA,'Audit Data Summary'!L$5,'Stored Data'!$AB:$AB,$B$6)","v":0},{"$f":"SUMIFS('Stored Data'!$Y:$Y,'Stored Data'!$Z:$Z,'Audit Data Summary'!$C9,'Stored Data'!$AA:$AA,'Audit Data Summary'!M$5,'Stored Data'!$AB:$AB,$B$6)","v":0},{"$f":"SUMIFS('Stored Data'!$Y:$Y,'Stored Data'!$Z:$Z,'Audit Data Summary'!$C9,'Stored Data'!$AA:$AA,'Audit Data Summary'!N$5,'Stored Data'!$AB:$AB,$B$6)","v":0},{"$f":"SUMIFS('Stored Data'!$Y:$Y,'Stored Data'!$Z:$Z,'Audit Data Summary'!$C9,'Stored Data'!$AA:$AA,'Audit Data Summary'!O$5,'Stored Data'!$AB:$AB,$B$6)","v":0}]
[null,null,"Other",{"$f":"SUMIFS('Stored Data'!$Y:$Y,'Stored Data'!$Z:$Z,'Audit Data Summary'!$C10,'Stored Data'!$AA:$AA,'Audit Data Summary'!D$5,'Stored Data'!$AB:$AB,$B$6)","v":0},{"$f":"SUMIFS('Stored Data'!$Y:$Y,'Stored Data'!$Z:$Z,'Audit Data Summary'!$C10,'Stored Data'!$AA:$AA,'Audit Data Summary'!E$5,'Stored Data'!$AB:$AB,$B$6)","v":0},{"$f":"SUMIFS('Stored Data'!$Y:$Y,'Stored Data'!$Z:$Z,'Audit Data Summary'!$C10,'Stored Data'!$AA:$AA,'Audit Data Summary'!F$5,'Stored Data'!$AB:$AB,$B$6)","v":0},{"$f":"SUMIFS('Stored Data'!$Y:$Y,'Stored Data'!$Z:$Z,'Audit Data Summary'!$C10,'Stored Data'!$AA:$AA,'Audit Data Summary'!G$5,'Stored Data'!$AB:$AB,$B$6)","v":0},{"$f":"SUMIFS('Stored Data'!$Y:$Y,'Stored Data'!$Z:$Z,'Audit Data Summary'!$C10,'Stored Data'!$AA:$AA,'Audit Data Summary'!H$5,'Stored Data'!$AB:$AB,$B$6)","v":0},{"$f":"SUMIFS('Stored Data'!$Y:$Y,'Stored Data'!$Z:$Z,'Audit Data Summary'!$C10,'Stored Data'!$AA:$AA,'Audit Data Summary'!I$5,'Stored Data'!$AB:$AB,$B$6)","v":0},{"$f":"SUMIFS('Stored Data'!$Y:$Y,'Stored Data'!$Z:$Z,'Audit Data Summary'!$C10,'Stored Data'!$AA:$AA,'Audit Data Summary'!J$5,'Stored Data'!$AB:$AB,$B$6)","v":0},{"$f":"SUMIFS('Stored Data'!$Y:$Y,'Stored Data'!$Z:$Z,'Audit Data Summary'!$C10,'Stored Data'!$AA:$AA,'Audit Data Summary'!K$5,'Stored Data'!$AB:$AB,$B$6)","v":0},{"$f":"SUMIFS('Stored Data'!$Y:$Y,'Stored Data'!$Z:$Z,'Audit Data Summary'!$C10,'Stored Data'!$AA:$AA,'Audit Data Summary'!L$5,'Stored Data'!$AB:$AB,$B$6)","v":0},{"$f":"SUMIFS('Stored Data'!$Y:$Y,'Stored Data'!$Z:$Z,'Audit Data Summary'!$C10,'Stored Data'!$AA:$AA,'Audit Data Summary'!M$5,'Stored Data'!$AB:$AB,$B$6)","v":0},{"$f":"SUMIFS('Stored Data'!$Y:$Y,'Stored Data'!$Z:$Z,'Audit Data Summary'!$C10,'Stored Data'!$AA:$AA,'Audit Data Summary'!N$5,'Stored Data'!$AB:$AB,$B$6)","v":0},{"$f":"SUMIFS('Stored Data'!$Y:$Y,'Stored Data'!$Z:$Z,'Audit Data Summary'!$C10,'Stored Data'!$AA:$AA,'Audit Data Summary'!O$5,'Stored Data'!$AB:$AB,$B$6)","v":0}]
[null,null,"Total",{"$f":"SUM(D6:D10)","v":0},{"$f":"SUM(E6:E10)","v":0},0,0,0,0,0,0,0,0,0,0]
[null,null,"Week Starting Date:",{"$f":"IF(VLOOKUP(D$3,'Background Calcs'!$A$22:$C$73,3,FALSE)=0,\"\",VLOOKUP(D$3,'Background Calcs'!$A$22:$C$73,3,FALSE))","v":""},{"$f":"IF(VLOOKUP(E$3,'Background Calcs'!$A$22:$C$73,3,FALSE)=0,\"\",VLOOKUP(E$3,'Background Calcs'!$A$22:$C$73,3,FALSE))","v":""},{"$f":"IF(VLOOKUP(F$3,'Background Calcs'!$A$22:$C$73,3,FALSE)=0,\"\",VLOOKUP(F$3,'Background Calcs'!$A$22:$C$73,3,FALSE))","v":""},{"$f":"IF(VLOOKUP(G$3,'Background Calcs'!$A$22:$C$73,3,FALSE)=0,\"\",VLOOKUP(G$3,'Background Calcs'!$A$22:$C$73,3,FALSE))","v":""},{"$f":"IF(VLOOKUP(H$3,'Background Calcs'!$A$22:$C$73,3,FALSE)=0,\"\",VLOOKUP(H$3,'Background Calcs'!$A$22:$C$73,3,FALSE))","v":""},{"$f":"IF(VLOOKUP(I$3,'Background Calcs'!$A$22:$C$73,3,FALSE)=0,\"\",VLOOKUP(I$3,'Background Calcs'!$A$22:$C$73,3,FALSE))","v":""},{"$f":"IF(VLOOKUP(J$3,'Background Calcs'!$A$22:$C$73,3,FALSE)=0,\"\",VLOOKUP(J$3,'Background Calcs'!$A$22:$C$73,3,FALSE))","v":""},{"$f":"IF(VLOOKUP(K$3,'Background Calcs'!$A$22:$C$73,3,FALSE)=0,\"\",VLOOKUP(K$3,'Background Calcs'!$A$22:$C$73,3,FALSE))","v":""},{"$f":"IF(VLOOKUP(L$3,'Background Calcs'!$A$22:$C$73,3,FALSE)=0,\"\",VLOOKUP(L$3,'Background Calcs'!$A$22:$C$73,3,FALSE))","v":""},{"$f":"IF(VLOOKUP(M$3,'Background Calcs'!$A$22:$C$73,3,FALSE)=0,\"\",VLOOKUP(M$3,'Background Calcs'!$A$22:$C$73,3,FALSE))","v":""},{"$f":"IF(VLOOKUP(N$3,'Background Calcs'!$A$22:$C$73,3,FALSE)=0,\"\",VLOOKUP(N$3,'Background Calcs'!$A$22:$C$73,3,FALSE))","v":""},{"$f":"IF(VLOOKUP(O$3,'Background Calcs'!$A$22:$C$73,3,FALSE)=0,\"\",VLOOKUP(O$3,'Background Calcs'!$A$22:$C$73,3,FALSE))","v":""}]
[null,"Kitchen Packaging Waste","Paper",{"$f":"SUMIFS('Stored Data'!$Y:$Y,'Stored Data'!$Z:$Z,'Audit Data Summary'!$C13,'Stored Data'!$AA:$AA,'Audit Data Summary'!D$5,'Stored Data'!$AB:$AB,$B$13)","v":0},{"$f":"SUMIFS('Stored Data'!$Y:$Y,'Stored Data'!$Z:$Z,'Audit Data Summary'!$C13,'Stored Data'!$AA:$AA,'Audit Data Summary'!E$5,'Stored Data'!$AB:$AB,$B$13)","v":0},{"$f":"SUMIFS('Stored Data'!$Y:$Y,'Stored Data'!$Z:$Z,'Audit Data Summary'!$C13,'Stored Data'!$AA:$AA,'Audit Data Summary'!F$5,'Stored Data'!$AB:$AB,$B$13)","v":0},{"$f":"SUMIFS('Stored Data'!$Y:$Y,'Stored Data'!$Z:$Z,'Audit Data Summary'!$C13,'Stored Data'!$AA:$AA,'Audit Data Summary'!G$5,'Stored Data'!$AB:$AB,$B$13)","v":0},{"$f":"SUMIFS('Stored Data'!$Y:$Y,'Stored Data'!$Z:$Z,'Audit Data Summary'!$C13,'Stored Data'!$AA:$AA,'Audit Data Summary'!H$5,'Stored Data'!$AB:$AB,$B$13)","v":0},{"$f":"SUMIFS('Stored Data'!$Y:$Y,'Stored Data'!$Z:$Z,'Audit Data Summary'!$C13,'Stored Data'!$AA:$AA,'Audit Data Summary'!I$5,'Stored Data'!$AB:$AB,$B$13)","v":0},{"$f":"SUMIFS('Stored Data'!$Y:$Y,'Stored Data'!$Z:$Z,'Audit Data Summary'!$C13,'Stored Data'!$AA:$AA,'Audit Data Summary'!J$5,'Stored Data'!$AB:$AB,$B$13)","v":0},{"$f":"SUMIFS('Stored Data'!$Y:$Y,'Stored Data'!$Z:$Z,'Audit Data Summary'!$C13,'Stored Data'!$AA:$AA,'Audit Data Summary'!K$5,'Stored Data'!$AB:$AB,$B$13)","v":0},{"$f":"SUMIFS('Stored Data'!$Y:$Y,'Stored Data'!$Z:$Z,'Audit Data Summary'!$C13,'Stored Data'!$AA:$AA,'Audit Data Summary'!L$5,'Stored Data'!$AB:$AB,$B$13)","v":0},{"$f":"SUMIFS('Stored Data'!$Y:$Y,'Stored Data'!$Z:$Z,'Audit Data Summary'!$C13,'Stored Data'!$AA:$AA,'Audit Data Summary'!M$5,'Stored Data'!$AB:$AB,$B$13)","v":0},{"$f":"SUMIFS('Stored Data'!$Y:$Y,'Stored Data'!$Z:$Z,'Audit Data Summary'!$C13,'Stored Data'!$AA:$AA,'Audit Data Summary'!N$5,'Stored Data'!$AB:$AB,$B$13)","v":0},{"$f":"SUMIFS('Stored Data'!$Y:$Y,'Stored Data'!$Z:$Z,'Audit Data Summary'!$C13,'Stored Data'!$AA:$AA,'Audit Data Summary'!O$5,'Stored Data'!$AB:$AB,$B$13)","v":0}]
[null,null,"Cardboard",{"$f":"SUMIFS('Stored Data'!$Y:$Y,'Stored Data'!$Z:$Z,'Audit Data Summary'!$C14,'Stored Data'!$AA:$AA,'Audit Data Summary'!D$5,'Stored Data'!$AB:$AB,$B$13)","v":0},{"$f":"SUMIFS('Stored Data'!$Y:$Y,'Stored Data'!$Z:$Z,'Audit Data Summary'!$C14,'Stored Data'!$AA:$AA,'Audit Data Summary'!E$5,'Stored Data'!$AB:$AB,$B$13)","v":0},{"$f":"SUMIFS('Stored Data'!$Y:$Y,'Stored Data'!$Z:$Z,'Audit Data Summary'!$C14,'Stored Data'!$AA:$AA,'Audit Data Summary'!F$5,'Stored Data'!$AB:$AB,$B$13)","v":0},{"$f":"SUMIFS('Stored Data'!$Y:$Y,'Stored Data'!$Z:$Z,'Audit Data Summary'!$C14,'Stored Data'!$AA:$AA,'Audit Data Summary'!G$5,'Stored Data'!$AB:$AB,$B$13)","v":0},{"$f":"SUMIFS('Stored Data'!$Y:$Y,'Stored Data'!$Z:$Z,'Audit Data Summary'!$C14,'Stored Data'!$AA:$AA,'Audit Data Summary'!H$5,'Stored Data'!$AB:$AB,$B$13)","v":0},{"$f":"SUMIFS('Stored Data'!$Y:$Y,'Stored Data'!$Z:$Z,'Audit Data Summary'!$C14,'Stored Data'!$AA:$AA,'Audit Data Summary'!I$5,'Stored Data'!$AB:$AB,$B$13)","v":0},{"$f":"SUMIFS('Stored Data'!$Y:$Y,'Stored Data'!$Z:$Z,'Audit Data Summary'!$C14,'Stored Data'!$AA:$AA,'Audit Data Summary'!J$5,'Stored Data'!$AB:$AB,$B$13)","v":0},{"$f":"SUMIFS('Stored Data'!$Y:$Y,'Stored Data'!$Z:$Z,'Audit Data Summary'!$C14,'Stored Data'!$AA:$AA,'Audit Data Summary'!K$5,'Stored Data'!$AB:$AB,$B$13)","v":0},{"$f":"SUMIFS('Stored Data'!$Y:$Y,'Stored Data'!$Z:$Z,'Audit Data Summary'!$C14,'Stored Data'!$AA:$AA,'Audit Data Summary'!L$5,'Stored Data'!$AB:$AB,$B$13)","v":0},{"$f":"SUMIFS('Stored Data'!$Y:$Y,'Stored Data'!$Z:$Z,'Audit Data Summary'!$C14,'Stored Data'!$AA:$AA,'Audit Data Summary'!M$5,'Stored Data'!$AB:$AB,$B$13)","v":0},{"$f":"SUMIFS('Stored Data'!$Y:$Y,'Stored Data'!$Z:$Z,'Audit Data Summary'!$C14,'Stored Data'!$AA:$AA,'Audit Data Summary'!N$5,'Stored Data'!$AB:$AB,$B$13)","v":0},{"$f":"SUMIFS('Stored Data'!$Y:$Y,'Stored Data'!$Z:$Z,'Audit Data Summary'!$C14,'Stored Data'!$AA:$AA,'Audit Data Summary'!O$5,'Stored Data'!$AB:$AB,$B$13)","v":0}]
[null,null,"Aluminum",{"$f":"SUMIFS('Stored Data'!$Y:$Y,'Stored Data'!$Z:$Z,'Audit Data Summary'!$C15,'Stored Data'!$AA:$AA,'Audit Data Summary'!D$5,'Stored Data'!$AB:$AB,$B$13)","v":0},{"$f":"SUMIFS('Stored Data'!$Y:$Y,'Stored Data'!$Z:$Z,'Audit Data Summary'!$C15,'Stored Data'!$AA:$AA,'Audit Data Summary'!E$5,'Stored Data'!$AB:$AB,$B$13)","v":0},{"$f":"SUMIFS('Stored Data'!$Y:$Y,'Stored Data'!$Z:$Z,'Audit Data Summary'!$C15,'Stored Data'!$AA:$AA,'Audit Data Summary'!F$5,'Stored Data'!$AB:$AB,$B$13)","v":0},{"$f":"SUMIFS('Stored Data'!$Y:$Y,'Stored Data'!$Z:$Z,'Audit Data Summary'!$C15,'Stored Data'!$AA:$AA,'Audit Data Summary'!G$5,'Stored Data'!$AB:$AB,$B$13)","v":0},{"$f":"SUMIFS('Stored Data'!$Y:$Y,'Stored Data'!$Z:$Z,'Audit Data Summary'!$C15,'Stored Data'!$AA:$AA,'Audit Data Summary'!H$5,'Stored Data'!$AB:$AB,$B$13)","v":0},{"$f":"SUMIFS('Stored Data'!$Y:$Y,'Stored Data'!$Z:$Z,'Audit Data Summary'!$C15,'Stored Data'!$AA:$AA,'Audit Data Summary'!I$5,'Stored Data'!$AB:$AB,$B$13)","v":0},{"$f":"SUMIFS('Stored Data'!$Y:$Y,'Stored Data'!$Z:$Z,'Audit Data Summary'!$C15,'Stored Data'!$AA:$AA,'Audit Data Summary'!J$5,'Stored Data'!$AB:$AB,$B$13)","v":0},{"$f":"SUMIFS('Stored Data'!$Y:$Y,'Stored Data'!$Z:$Z,'Audit Data Summary'!$C15,'Stored Data'!$AA:$AA,'Audit Data Summary'!K$5,'Stored Data'!$AB:$AB,$B$13)","v":0},{"$f":"SUMIFS('Stored Data'!$Y:$Y,'Stored Data'!$Z:$Z,'Audit Data Summary'!$C15,'Stored Data'!$AA:$AA,'Audit Data Summary'!L$5,'Stored Data'!$AB:$AB,$B$13)","v":0},{"$f":"SUMIFS('Stored Data'!$Y:$Y,'Stored Data'!$Z:$Z,'Audit Data Summary'!$C15,'Stored Data'!$AA:$AA,'Audit Data Summary'!M$5,'Stored Data'!$AB:$AB,$B$13)","v":0},{"$f":"SUMIFS('Stored Data'!$Y:$Y,'Stored Data'!$Z:$Z,'Audit Data Summary'!$C15,'Stored Data'!$AA:$AA,'Audit Data Summary'!N$5,'Stored Data'!$AB:$AB,$B$13)","v":0},{"$f":"SUMIFS('Stored Data'!$Y:$Y,'Stored Data'!$Z:$Z,'Audit Data Summary'!$C15,'Stored Data'!$AA:$AA,'Audit Data Summary'!O$5,'Stored Data'!$AB:$AB,$B$13)","v":0}]
[null,null,"Steel",{"$f":"SUMIFS('Stored Data'!$Y:$Y,'Stored Data'!$Z:$Z,'Audit Data Summary'!$C16,'Stored Data'!$AA:$AA,'Audit Data Summary'!D$5,'Stored Data'!$AB:$AB,$B$13)","v":0},{"$f":"SUMIFS('Stored Data'!$Y:$Y,'Stored Data'!$Z:$Z,'Audit Data Summary'!$C16,'Stored Data'!$AA:$AA,'Audit Data Summary'!E$5,'Stored Data'!$AB:$AB,$B$13)","v":0},{"$f":"SUMIFS('Stored Data'!$Y:$Y,'Stored Data'!$Z:$Z,'Audit Data Summary'!$C16,'Stored Data'!$AA:$AA,'Audit Data Summary'!F$5,'Stored Data'!$AB:$AB,$B$13)","v":0},{"$f":"SUMIFS('Stored Data'!$Y:$Y,'Stored Data'!$Z:$Z,'Audit Data Summary'!$C16,'Stored Data'!$AA:$AA,'Audit Data Summary'!G$5,'Stored Data'!$AB:$AB,$B$13)","v":0},{"$f":"SUMIFS('Stored Data'!$Y:$Y,'Stored Data'!$Z:$Z,'Audit Data Summary'!$C16,'Stored Data'!$AA:$AA,'Audit Data Summary'!H$5,'Stored Data'!$AB:$AB,$B$13)","v":0},{"$f":"SUMIFS('Stored Data'!$Y:$Y,'Stored Data'!$Z:$Z,'Audit Data Summary'!$C16,'Stored Data'!$AA:$AA,'Audit Data Summary'!I$5,'Stored Data'!$AB:$AB,$B$13)","v":0},{"$f":"SUMIFS('Stored Data'!$Y:$Y,'Stored Data'!$Z:$Z,'Audit Data Summary'!$C16,'Stored Data'!$AA:$AA,'Audit Data Summary'!J$5,'Stored Data'!$AB:$AB,$B$13)","v":0},{"$f":"SUMIFS('Stored Data'!$Y:$Y,'Stored Data'!$Z:$Z,'Audit Data Summary'!$C16,'Stored Data'!$AA:$AA,'Audit Data Summary'!K$5,'Stored Data'!$AB:$AB,$B$13)","v":0},{"$f":"SUMIFS('Stored Data'!$Y:$Y,'Stored Data'!$Z:$Z,'Audit Data Summary'!$C16,'Stored Data'!$AA:$AA,'Audit Data Summary'!L$5,'Stored Data'!$AB:$AB,$B$13)","v":0},{"$f":"SUMIFS('Stored Data'!$Y:$Y,'Stored Data'!$Z:$Z,'Audit Data Summary'!$C16,'Stored Data'!$AA:$AA,'Audit Data Summary'!M$5,'Stored Data'!$AB:$AB,$B$13)","v":0},{"$f":"SUMIFS('Stored Data'!$Y:$Y,'Stored Data'!$Z:$Z,'Audit Data Summary'!$C16,'Stored Data'!$AA:$AA,'Audit Data Summary'!N$5,'Stored Data'!$AB:$AB,$B$13)","v":0},{"$f":"SUMIFS('Stored Data'!$Y:$Y,'Stored Data'!$Z:$Z,'Audit Data Summary'!$C16,'Stored Data'!$AA:$AA,'Audit Data Summary'!O$5,'Stored Data'!$AB:$AB,$B$13)","v":0}]
[null,null,"Container plastic",{"$f":"SUMIFS('Stored Data'!$Y:$Y,'Stored Data'!$Z:$Z,'Audit Data Summary'!$C17,'Stored Data'!$AA:$AA,'Audit Data Summary'!D$5,'Stored Data'!$AB:$AB,$B$13)","v":0},{"$f":"SUMIFS('Stored Data'!$Y:$Y,'Stored Data'!$Z:$Z,'Audit Data Summary'!$C17,'Stored Data'!$AA:$AA,'Audit Data Summary'!E$5,'Stored Data'!$AB:$AB,$B$13)","v":0},{"$f":"SUMIFS('Stored Data'!$Y:$Y,'Stored Data'!$Z:$Z,'Audit Data Summary'!$C17,'Stored Data'!$AA:$AA,'Audit Data Summary'!F$5,'Stored Data'!$AB:$AB,$B$13)","v":0},{"$f":"SUMIFS('Stored Data'!$Y:$Y,'Stored Data'!$Z:$Z,'Audit Data Summary'!$C17,'Stored Data'!$AA:$AA,'Audit Data Summary'!G$5,'Stored Data'!$AB:$AB,$B$13)","v":0},{"$f":"SUMIFS('Stored Data'!$Y:$Y,'Stored Data'!$Z:$Z,'Audit Data Summary'!$C17,'Stored Data'!$AA:$AA,'Audit Data Summary'!H$5,'Stored Data'!$AB:$AB,$B$13)","v":0},{"$f":"SUMIFS('Stored Data'!$Y:$Y,'Stored Data'!$Z:$Z,'Audit Data Summary'!$C17,'Stored Data'!$AA:$AA,'Audit Data Summary'!I$5,'Stored Data'!$AB:$AB,$B$13)","v":0},{"$f":"SUMIFS('Stored Data'!$Y:$Y,'Stored Data'!$Z:$Z,'Audit Data Summary'!$C17,'Stored Data'!$AA:$AA,'Audit Data Summary'!J$5,'Stored Data'!$AB:$AB,$B$13)","v":0},{"$f":"SUMIFS('Stored Data'!$Y:$Y,'Stored Data'!$Z:$Z,'Audit Data Summary'!$C17,'Stored Data'!$AA:$AA,'Audit Data Summary'!K$5,'Stored Data'!$AB:$AB,$B$13)","v":0},{"$f":"SUMIFS('Stored Data'!$Y:$Y,'Stored Data'!$Z:$Z,'Audit Data Summary'!$C17,'Stored Data'!$AA:$AA,'Audit Data Summary'!L$5,'Stored Data'!$AB:$AB,$B$13)","v":0},{"$f":"SUMIFS('Stored Data'!$Y:$Y,'Stored Data'!$Z:$Z,'Audit Data Summary'!$C17,'Stored Data'!$AA:$AA,'Audit Data Summary'!M$5,'Stored Data'!$AB:$AB,$B$13)","v":0},{"$f":"SUMIFS('Stored Data'!$Y:$Y,'Stored Data'!$Z:$Z,'Audit Data Summary'!$C17,'Stored Data'!$AA:$AA,'Audit Data Summary'!N$5,'Stored Data'!$AB:$AB,$B$13)","v":0},{"$f":"SUMIFS('Stored Data'!$Y:$Y,'Stored Data'!$Z:$Z,'Audit Data Summary'!$C17,'Stored Data'!$AA:$AA,'Audit Data Summary'!O$5,'Stored Data'!$AB:$AB,$B$13)","v":0}]
[null,null,"Other plastic",{"$f":"SUMIFS('Stored Data'!$Y:$Y,'Stored Data'!$Z:$Z,'Audit Data Summary'!$C18,'Stored Data'!$AA:$AA,'Audit Data Summary'!D$5,'Stored Data'!$AB:$AB,$B$13)","v":0},{"$f":"SUMIFS('Stored Data'!$Y:$Y,'Stored Data'!$Z:$Z,'Audit Data Summary'!$C18,'Stored Data'!$AA:$AA,'Audit Data Summary'!E$5,'Stored Data'!$AB:$AB,$B$13)","v":0},{"$f":"SUMIFS('Stored Data'!$Y:$Y,'Stored Data'!$Z:$Z,'Audit Data Summary'!$C18,'Stored Data'!$AA:$AA,'Audit Data Summary'!F$5,'Stored Data'!$AB:$AB,$B$13)","v":0},{"$f":"SUMIFS('Stored Data'!$Y:$Y,'Stored Data'!$Z:$Z,'Audit Data Summary'!$C18,'Stored Data'!$AA:$AA,'Audit Data Summary'!G$5,'Stored Data'!$AB:$AB,$B$13)","v":0},{"$f":"SUMIFS('Stored Data'!$Y:$Y,'Stored Data'!$Z:$Z,'Audit Data Summary'!$C18,'Stored Data'!$AA:$AA,'Audit Data Summary'!H$5,'Stored Data'!$AB:$AB,$B$13)","v":0},{"$f":"SUMIFS('Stored Data'!$Y:$Y,'Stored Data'!$Z:$Z,'Audit Data Summary'!$C18,'Stored Data'!$AA:$AA,'Audit Data Summary'!I$5,'Stored Data'!$AB:$AB,$B$13)","v":0},{"$f":"SUMIFS('Stored Data'!$Y:$Y,'Stored Data'!$Z:$Z,'Audit Data Summary'!$C18,'Stored Data'!$AA:$AA,'Audit Data Summary'!J$5,'Stored Data'!$AB:$AB,$B$13)","v":0},{"$f":"SUMIFS('Stored Data'!$Y:$Y,'Stored Data'!$Z:$Z,'Audit Data Summary'!$C18,'Stored Data'!$AA:$AA,'Audit Data Summary'!K$5,'Stored Data'!$AB:$AB,$B$13)","v":0},{"$f":"SUMIFS('Stored Data'!$Y:$Y,'Stored Data'!$Z:$Z,'Audit Data Summary'!$C18,'Stored Data'!$AA:$AA,'Audit Data Summary'!L$5,'Stored Data'!$AB:$AB,$B$13)","v":0},{"$f":"SUMIFS('Stored Data'!$Y:$Y,'Stored Data'!$Z:$Z,'Audit Data Summary'!$C18,'Stored Data'!$AA:$AA,'Audit Data Summary'!M$5,'Stored Data'!$AB:$AB,$B$13)","v":0},{"$f":"SUMIFS('Stored Data'!$Y:$Y,'Stored Data'!$Z:$Z,'Audit Data Summary'!$C18,'Stored Data'!$AA:$AA,'Audit Data Summary'!N$5,'Stored Data'!$AB:$AB,$B$13)","v":0},{"$f":"SUMIFS('Stored Data'!$Y:$Y,'Stored Data'!$Z:$Z,'Audit Data Summary'!$C18,'Stored Data'!$AA:$AA,'Audit Data Summary'!O$5,'Stored Data'!$AB:$AB,$B$13)","v":0}]
[null,null,"Glass",{"$f":"SUMIFS('Stored Data'!$Y:$Y,'Stored Data'!$Z:$Z,'Audit Data Summary'!$C19,'Stored Data'!$AA:$AA,'Audit Data Summary'!D$5,'Stored Data'!$AB:$AB,$B$13)","v":0},{"$f":"SUMIFS('Stored Data'!$Y:$Y,'Stored Data'!$Z:$Z,'Audit Data Summary'!$C19,'Stored Data'!$AA:$AA,'Audit Data Summary'!E$5,'Stored Data'!$AB:$AB,$B$13)","v":0},{"$f":"SUMIFS('Stored Data'!$Y:$Y,'Stored Data'!$Z:$Z,'Audit Data Summary'!$C19,'Stored Data'!$AA:$AA,'Audit Data Summary'!F$5,'Stored Data'!$AB:$AB,$B$13)","v":0},{"$f":"SUMIFS('Stored Data'!$Y:$Y,'Stored Data'!$Z:$Z,'Audit Data Summary'!$C19,'Stored Data'!$AA:$AA,'Audit Data Summary'!G$5,'Stored Data'!$AB:$AB,$B$13)","v":0},{"$f":"SUMIFS('Stored Data'!$Y:$Y,'Stored Data'!$Z:$Z,'Audit Data Summary'!$C19,'Stored Data'!$AA:$AA,'Audit Data Summary'!H$5,'Stored Data'!$AB:$AB,$B$13)","v":0},{"$f":"SUMIFS('Stored Data'!$Y:$Y,'Stored Data'!$Z:$Z,'Audit Data Summary'!$C19,'Stored Data'!$AA:$AA,'Audit Data Summary'!I$5,'Stored Data'!$AB:$AB,$B$13)","v":0},{"$f":"SUMIFS('Stored Data'!$Y:$Y,'Stored Data'!$Z:$Z,'Audit Data Summary'!$C19,'Stored Data'!$AA:$AA,'Audit Data Summary'!J$5,'Stored Data'!$AB:$AB,$B$13)","v":0},{"$f":"SUMIFS('Stored Data'!$Y:$Y,'Stored Data'!$Z:$Z,'Audit Data Summary'!$C19,'Stored Data'!$AA:$AA,'Audit Data Summary'!K$5,'Stored Data'!$AB:$AB,$B$13)","v":0},{"$f":"SUMIFS('Stored Data'!$Y:$Y,'Stored Data'!$Z:$Z,'Audit Data Summary'!$C19,'Stored Data'!$AA:$AA,'Audit Data Summary'!L$5,'Stored Data'!$AB:$AB,$B$13)","v":0},{"$f":"SUMIFS('Stored Data'!$Y:$Y,'Stored Data'!$Z:$Z,'Audit Data Summary'!$C19,'Stored Data'!$AA:$AA,'Audit Data Summary'!M$5,'Stored Data'!$AB:$AB,$B$13)","v":0},{"$f":"SUMIFS('Stored Data'!$Y:$Y,'Stored Data'!$Z:$Z,'Audit Data Summary'!$C19,'Stored Data'!$AA:$AA,'Audit Data Summary'!N$5,'Stored Data'!$AB:$AB,$B$13)","v":0},{"$f":"SUMIFS('Stored Data'!$Y:$Y,'Stored Data'!$Z:$Z,'Audit Data Summary'!$C19,'Stored Data'!$AA:$AA,'Audit Data Summary'!O$5,'Stored Data'!$AB:$AB,$B$13)","v":0}]
[null,null,"Other",{"$f":"SUMIFS('Stored Data'!$Y:$Y,'Stored Data'!$Z:$Z,'Audit Data Summary'!$C20,'Stored Data'!$AA:$AA,'Audit Data Summary'!D$5,'Stored Data'!$AB:$AB,$B$13)","v":0},{"$f":"SUMIFS('Stored Data'!$Y:$Y,'Stored Data'!$Z:$Z,'Audit Data Summary'!$C20,'Stored Data'!$AA:$AA,'Audit Data Summary'!E$5,'Stored Data'!$AB:$AB,$B$13)","v":0},{"$f":"SUMIFS('Stored Data'!$Y:$Y,'Stored Data'!$Z:$Z,'Audit Data Summary'!$C20,'Stored Data'!$AA:$AA,'Audit Data Summary'!F$5,'Stored Data'!$AB:$AB,$B$13)","v":0},{"$f":"SUMIFS('Stored Data'!$Y:$Y,'Stored Data'!$Z:$Z,'Audit Data Summary'!$C20,'Stored Data'!$AA:$AA,'Audit Data Summary'!G$5,'Stored Data'!$AB:$AB,$B$13)","v":0},{"$f":"SUMIFS('Stored Data'!$Y:$Y,'Stored Data'!$Z:$Z,'Audit Data Summary'!$C20,'Stored Data'!$AA:$AA,'Audit Data Summary'!H$5,'Stored Data'!$AB:$AB,$B$13)","v":0},{"$f":"SUMIFS('Stored Data'!$Y:$Y,'Stored Data'!$Z:$Z,'Audit Data Summary'!$C20,'Stored Data'!$AA:$AA,'Audit Data Summary'!I$5,'Stored Data'!$AB:$AB,$B$13)","v":0},{"$f":"SUMIFS('Stored Data'!$Y:$Y,'Stored Data'!$Z:$Z,'Audit Data Summary'!$C20,'Stored Data'!$AA:$AA,'Audit Data Summary'!J$5,'Stored Data'!$AB:$AB,$B$13)","v":0},{"$f":"SUMIFS('Stored Data'!$Y:$Y,'Stored Data'!$Z:$Z,'Audit Data Summary'!$C20,'Stored Data'!$AA:$AA,'Audit Data Summary'!K$5,'Stored Data'!$AB:$AB,$B$13)","v":0},{"$f":"SUMIFS('Stored Data'!$Y:$Y,'Stored Data'!$Z:$Z,'Audit Data Summary'!$C20,'Stored Data'!$AA:$AA,'Audit Data Summary'!L$5,'Stored Data'!$AB:$AB,$B$13)","v":0},{"$f":"SUMIFS('Stored Data'!$Y:$Y,'Stored Data'!$Z:$Z,'Audit Data Summary'!$C20,'Stored Data'!$AA:$AA,'Audit Data Summary'!M$5,'Stored Data'!$AB:$AB,$B$13)","v":0},{"$f":"SUMIFS('Stored Data'!$Y:$Y,'Stored Data'!$Z:$Z,'Audit Data Summary'!$C20,'Stored Data'!$AA:$AA,'Audit Data Summary'!N$5,'Stored Data'!$AB:$AB,$B$13)","v":0},{"$f":"SUMIFS('Stored Data'!$Y:$Y,'Stored Data'!$Z:$Z,'Audit Data Summary'!$C20,'Stored Data'!$AA:$AA,'Audit Data Summary'!O$5,'Stored Data'!$AB:$AB,$B$13)","v":0}]
[null,null,"Total",{"$f":"SUM(D13:D20)","v":0},0,0,0,0,0,0,0,0,0,0,0]
[null,null,"Week Starting Date:",{"$f":"IF(VLOOKUP(D$3,'Background Calcs'!$A$22:$C$73,3,FALSE)=0,\"\",VLOOKUP(D$3,'Background Calcs'!$A$22:$C$73,3,FALSE))","v":""},{"$f":"IF(VLOOKUP(E$3,'Background Calcs'!$A$22:$C$73,3,FALSE)=0,\"\",VLOOKUP(E$3,'Background Calcs'!$A$22:$C$73,3,FALSE))","v":""},{"$f":"IF(VLOOKUP(F$3,'Background Calcs'!$A$22:$C$73,3,FALSE)=0,\"\",VLOOKUP(F$3,'Background Calcs'!$A$22:$C$73,3,FALSE))","v":""},{"$f":"IF(VLOOKUP(G$3,'Background Calcs'!$A$22:$C$73,3,FALSE)=0,\"\",VLOOKUP(G$3,'Background Calcs'!$A$22:$C$73,3,FALSE))","v":""},{"$f":"IF(VLOOKUP(H$3,'Background Calcs'!$A$22:$C$73,3,FALSE)=0,\"\",VLOOKUP(H$3,'Background Calcs'!$A$22:$C$73,3,FALSE))","v":""},{"$f":"IF(VLOOKUP(I$3,'Background Calcs'!$A$22:$C$73,3,FALSE)=0,\"\",VLOOKUP(I$3,'Background Calcs'!$A$22:$C$73,3,FALSE))","v":""},{"$f":"IF(VLOOKUP(J$3,'Background Calcs'!$A$22:$C$73,3,FALSE)=0,\"\",VLOOKUP(J$3,'Background Calcs'!$A$22:$C$73,3,FALSE))","v":""},{"$f":"IF(VLOOKUP(K$3,'Background Calcs'!$A$22:$C$73,3,FALSE)=0,\"\",VLOOKUP(K$3,'Background Calcs'!$A$22:$C$73,3,FALSE))","v":""},{"$f":"IF(VLOOKUP(L$3,'Background Calcs'!$A$22:$C$73,3,FALSE)=0,\"\",VLOOKUP(L$3,'Background Calcs'!$A$22:$C$73,3,FALSE))","v":""},{"$f":"IF(VLOOKUP(M$3,'Background Calcs'!$A$22:$C$73,3,FALSE)=0,\"\",VLOOKUP(M$3,'Background Calcs'!$A$22:$C$73,3,FALSE))","v":""},{"$f":"IF(VLOOKUP(N$3,'Background Calcs'!$A$22:$C$73,3,FALSE)=0,\"\",VLOOKUP(N$3,'Background Calcs'!$A$22:$C$73,3,FALSE))","v":""},{"$f":"IF(VLOOKUP(O$3,'Background Calcs'!$A$22:$C$73,3,FALSE)=0,\"\",VLOOKUP(O$3,'Background Calcs'!$A$22:$C$73,3,FALSE))","v":""}]
[null,"Plate Waste","Food waste",{"$f":"SUMIFS('Stored Data'!$Y:$Y,'Stored Data'!$Z:$Z,'Audit Data Summary'!$C23,'Stored Data'!$AA:$AA,'Audit Data Summary'!D$5,'Stored Data'!$AB:$AB,$B$23)","v":0},{"$f":"SUMIFS('Stored Data'!$Y:$Y,'Stored Data'!$Z:$Z,'Audit Data Summary'!$C23,'Stored Data'!$AA:$AA,'Audit Data Summary'!E$5,'Stored Data'!$AB:$AB,$B$23)","v":0},{"$f":"SUMIFS('Stored Data'!$Y:$Y,'Stored Data'!$Z:$Z,'Audit Data Summary'!$C23,'Stored Data'!$AA:$AA,'Audit Data Summary'!F$5,'Stored Data'!$AB:$AB,$B$23)","v":0},{"$f":"SUMIFS('Stored Data'!$Y:$Y,'Stored Data'!$Z:$Z,'Audit Data Summary'!$C23,'Stored Data'!$AA:$AA,'Audit Data Summary'!G$5,'Stored Data'!$AB:$AB,$B$23)","v":0},{"$f":"SUMIFS('Stored Data'!$Y:$Y,'Stored Data'!$Z:$Z,'Audit Data Summary'!$C23,'Stored Data'!$AA:$AA,'Audit Data Summary'!H$5,'Stored Data'!$AB:$AB,$B$23)","v":0},{"$f":"SUMIFS('Stored Data'!$Y:$Y,'Stored Data'!$Z:$Z,'Audit Data Summary'!$C23,'Stored Data'!$AA:$AA,'Audit Data Summary'!I$5,'Stored Data'!$AB:$AB,$B$23)","v":0},{"$f":"SUMIFS('Stored Data'!$Y:$Y,'Stored Data'!$Z:$Z,'Audit Data Summary'!$C23,'Stored Data'!$AA:$AA,'Audit Data Summary'!J$5,'Stored Data'!$AB:$AB,$B$23)","v":0},{"$f":"SUMIFS('Stored Data'!$Y:$Y,'Stored Data'!$Z:$Z,'Audit Data Summary'!$C23,'Stored Data'!$AA:$AA,'Audit Data Summary'!K$5,'Stored Data'!$AB:$AB,$B$23)","v":0},{"$f":"SUMIFS('Stored Data'!$Y:$Y,'Stored Data'!$Z:$Z,'Audit Data Summary'!$C23,'Stored Data'!$AA:$AA,'Audit Data Summary'!L$5,'Stored Data'!$AB:$AB,$B$23)","v":0},{"$f":"SUMIFS('Stored Data'!$Y:$Y,'Stored Data'!$Z:$Z,'Audit Data Summary'!$C23,'Stored Data'!$AA:$AA,'Audit Data Summary'!M$5,'Stored Data'!$AB:$AB,$B$23)","v":0},{"$f":"SUMIFS('Stored Data'!$Y:$Y,'Stored Data'!$Z:$Z,'Audit Data Summary'!$C23,'Stored Data'!$AA:$AA,'Audit Data Summary'!N$5,'Stored Data'!$AB:$AB,$B$23)","v":0},{"$f":"SUMIFS('Stored Data'!$Y:$Y,'Stored Data'!$Z:$Z,'Audit Data Summary'!$C23,'Stored Data'!$AA:$AA,'Audit Data Summary'!O$5,'Stored Data'!$AB:$AB,$B$23)","v":0}]
[null,null,"Paper cups and straws",{"$f":"SUMIFS('Stored Data'!$Y:$Y,'Stored Data'!$Z:$Z,'Audit Data Summary'!$C24,'Stored Data'!$AA:$AA,'Audit Data Summary'!D$5,'Stored Data'!$AB:$AB,$B$6)","v":0},{"$f":"SUMIFS('Stored Data'!$Y:$Y,'Stored Data'!$Z:$Z,'Audit Data Summary'!$C24,'Stored Data'!$AA:$AA,'Audit Data Summary'!E$5,'Stored Data'!$AB:$AB,$B$6)","v":0},{"$f":"SUMIFS('Stored Data'!$Y:$Y,'Stored Data'!$Z:$Z,'Audit Data Summary'!$C24,'Stored Data'!$AA:$AA,'Audit Data Summary'!F$5,'Stored Data'!$AB:$AB,$B$6)","v":0},{"$f":"SUMIFS('Stored Data'!$Y:$Y,'Stored Data'!$Z:$Z,'Audit Data Summary'!$C24,'Stored Data'!$AA:$AA,'Audit Data Summary'!G$5,'Stored Data'!$AB:$AB,$B$6)","v":0},{"$f":"SUMIFS('Stored Data'!$Y:$Y,'Stored Data'!$Z:$Z,'Audit Data Summary'!$C24,'Stored Data'!$AA:$AA,'Audit Data Summary'!H$5,'Stored Data'!$AB:$AB,$B$6)","v":0},{"$f":"SUMIFS('Stored Data'!$Y:$Y,'Stored Data'!$Z:$Z,'Audit Data Summary'!$C24,'Stored Data'!$AA:$AA,'Audit Data Summary'!I$5,'Stored Data'!$AB:$AB,$B$6)","v":0},{"$f":"SUMIFS('Stored Data'!$Y:$Y,'Stored Data'!$Z:$Z,'Audit Data Summary'!$C24,'Stored Data'!$AA:$AA,'Audit Data Summary'!J$5,'Stored Data'!$AB:$AB,$B$6)","v":0},{"$f":"SUMIFS('Stored Data'!$Y:$Y,'Stored Data'!$Z:$Z,'Audit Data Summary'!$C24,'Stored Data'!$AA:$AA,'Audit Data Summary'!K$5,'Stored Data'!$AB:$AB,$B$6)","v":0},{"$f":"SUMIFS('Stored Data'!$Y:$Y,'Stored Data'!$Z:$Z,'Audit Data Summary'!$C24,'Stored Data'!$AA:$AA,'Audit Data Summary'!L$5,'Stored Data'!$AB:$AB,$B$6)","v":0},{"$f":"SUMIFS('Stored Data'!$Y:$Y,'Stored Data'!$Z:$Z,'Audit Data Summary'!$C24,'Stored Data'!$AA:$AA,'Audit Data Summary'!M$5,'Stored Data'!$AB:$AB,$B$6)","v":0},{"$f":"SUMIFS('Stored Data'!$Y:$Y,'Stored Data'!$Z:$Z,'Audit Data Summary'!$C24,'Stored Data'!$AA:$AA,'Audit Data Summary'!N$5,'Stored Data'!$AB:$AB,$B$6)","v":0},{"$f":"SUMIFS('Stored Data'!$Y:$Y,'Stored Data'!$Z:$Z,'Audit Data Summary'!$C24,'Stored Data'!$AA:$AA,'Audit Data Summary'!O$5,'Stored Data'!$AB:$AB,$B$6)","v":0}]
[null,null,"To-go containers",{"$f":"SUMIFS('Stored Data'!$Y:$Y,'Stored Data'!$Z:$Z,'Audit Data Summary'!$C25,'Stored Data'!$AA:$AA,'Audit Data Summary'!D$5,'Stored Data'!$AB:$AB,$B$23)","v":0},{"$f":"SUMIFS('Stored Data'!$Y:$Y,'Stored Data'!$Z:$Z,'Audit Data Summary'!$C25,'Stored Data'!$AA:$AA,'Audit Data Summary'!E$5,'Stored Data'!$AB:$AB,$B$23)","v":0},{"$f":"SUMIFS('Stored Data'!$Y:$Y,'Stored Data'!$Z:$Z,'Audit Data Summary'!$C25,'Stored Data'!$AA:$AA,'Audit Data Summary'!F$5,'Stored Data'!$AB:$AB,$B$23)","v":0},{"$f":"SUMIFS('Stored Data'!$Y:$Y,'Stored Data'!$Z:$Z,'Audit Data Summary'!$C25,'Stored Data'!$AA:$AA,'Audit Data Summary'!G$5,'Stored Data'!$AB:$AB,$B$23)","v":0},{"$f":"SUMIFS('Stored Data'!$Y:$Y,'Stored Data'!$Z:$Z,'Audit Data Summary'!$C25,'Stored Data'!$AA:$AA,'Audit Data Summary'!H$5,'Stored Data'!$AB:$AB,$B$23)","v":0},{"$f":"SUMIFS('Stored Data'!$Y:$Y,'Stored Data'!$Z:$Z,'Audit Data Summary'!$C25,'Stored Data'!$AA:$AA,'Audit Data Summary'!I$5,'Stored Data'!$AB:$AB,$B$23)","v":0},{"$f":"SUMIFS('Stored Data'!$Y:$Y,'Stored Data'!$Z:$Z,'Audit Data Summary'!$C25,'Stored Data'!$AA:$AA,'Audit Data Summary'!J$5,'Stored Data'!$AB:$AB,$B$23)","v":0},{"$f":"SUMIFS('Stored Data'!$Y:$Y,'Stored Data'!$Z:$Z,'Audit Data Summary'!$C25,'Stored Data'!$AA:$AA,'Audit Data Summary'!K$5,'Stored Data'!$AB:$AB,$B$23)","v":0},{"$f":"SUMIFS('Stored Data'!$Y:$Y,'Stored Data'!$Z:$Z,'Audit Data Summary'!$C25,'Stored Data'!$AA:$AA,'Audit Data Summary'!L$5,'Stored Data'!$AB:$AB,$B$23)","v":0},{"$f":"SUMIFS('Stored Data'!$Y:$Y,'Stored Data'!$Z:$Z,'Audit Data Summary'!$C25,'Stored Data'!$AA:$AA,'Audit Data Summary'!M$5,'Stored Data'!$AB:$AB,$B$23)","v":0},{"$f":"SUMIFS('Stored Data'!$Y:$Y,'Stored Data'!$Z:$Z,'Audit Data Summary'!$C25,'Stored Data'!$AA:$AA,'Audit Data Summary'!N$5,'Stored Data'!$AB:$AB,$B$23)","v":0},{"$f":"SUMIFS('Stored Data'!$Y:$Y,'Stored Data'!$Z:$Z,'Audit Data Summary'!$C25,'Stored Data'!$AA:$AA,'Audit Data Summary'!O$5,'Stored Data'!$AB:$AB,$B$23)","v":0}]
[null,null,"Disposable utensils",{"$f":"SUMIFS('Stored Data'!$Y:$Y,'Stored Data'!$Z:$Z,'Audit Data Summary'!$C26,'Stored Data'!$AA:$AA,'Audit Data Summary'!D$5,'Stored Data'!$AB:$AB,$B$23)","v":0},{"$f":"SUMIFS('Stored Data'!$Y:$Y,'Stored Data'!$Z:$Z,'Audit Data Summary'!$C26,'Stored Data'!$AA:$AA,'Audit Data Summary'!E$5,'Stored Data'!$AB:$AB,$B$23)","v":0},{"$f":"SUMIFS('Stored Data'!$Y:$Y,'Stored Data'!$Z:$Z,'Audit Data Summary'!$C26,'Stored Data'!$AA:$AA,'Audit Data Summary'!F$5,'Stored Data'!$AB:$AB,$B$23)","v":0},{"$f":"SUMIFS('Stored Data'!$Y:$Y,'Stored Data'!$Z:$Z,'Audit Data Summary'!$C26,'Stored Data'!$AA:$AA,'Audit Data Summary'!G$5,'Stored Data'!$AB:$AB,$B$23)","v":0},{"$f":"SUMIFS('Stored Data'!$Y:$Y,'Stored Data'!$Z:$Z,'Audit Data Summary'!$C26,'Stored Data'!$AA:$AA,'Audit Data Summary'!H$5,'Stored Data'!$AB:$AB,$B$23)","v":0},{"$f":"SUMIFS('Stored Data'!$Y:$Y,'Stored Data'!$Z:$Z,'Audit Data Summary'!$C26,'Stored Data'!$AA:$AA,'Audit Data Summary'!I$5,'Stored Data'!$AB:$AB,$B$23)","v":0},{"$f":"SUMIFS('Stored Data'!$Y:$Y,'Stored Data'!$Z:$Z,'Audit Data Summary'!$C26,'Stored Data'!$AA:$AA,'Audit Data Summary'!J$5,'Stored Data'!$AB:$AB,$B$23)","v":0},{"$f":"SUMIFS('Stored Data'!$Y:$Y,'Stored Data'!$Z:$Z,'Audit Data Summary'!$C26,'Stored Data'!$AA:$AA,'Audit Data Summary'!K$5,'Stored Data'!$AB:$AB,$B$23)","v":0},{"$f":"SUMIFS('Stored Data'!$Y:$Y,'Stored Data'!$Z:$Z,'Audit Data Summary'!$C26,'Stored Data'!$AA:$AA,'Audit Data Summary'!L$5,'Stored Data'!$AB:$AB,$B$23)","v":0},{"$f":"SUMIFS('Stored Data'!$Y:$Y,'Stored Data'!$Z:$Z,'Audit Data Summary'!$C26,'Stored Data'!$AA:$AA,'Audit Data Summary'!M$5,'Stored Data'!$AB:$AB,$B$23)","v":0},{"$f":"SUMIFS('Stored Data'!$Y:$Y,'Stored Data'!$Z:$Z,'Audit Data Summary'!$C26,'Stored Data'!$AA:$AA,'Audit Data Summary'!N$5,'Stored Data'!$AB:$AB,$B$23)","v":0},{"$f":"SUMIFS('Stored Data'!$Y:$Y,'Stored Data'!$Z:$Z,'Audit Data Summary'!$C26,'Stored Data'!$AA:$AA,'Audit Data Summary'!O$5,'Stored Data'!$AB:$AB,$B$23)","v":0}]
[null,null,"Total",{"$f":"SUM(D23:D26)","v":0},{"$f":"SUM(E23:E26)","v":0},0,0,0,0,0,0,0,0,0,0]
[null,null,"Week Starting Date:",{"$f":"IF(VLOOKUP(D$3,'Background Calcs'!$A$22:$C$73,3,FALSE)=0,\"\",VLOOKUP(D$3,'Background Calcs'!$A$22:$C$73,3,FALSE))","v":""},{"$f":"IF(VLOOKUP(E$3,'Background Calcs'!$A$22:$C$73,3,FALSE)=0,\"\",VLOOKUP(E$3,'Background Calcs'!$A$22:$C$73,3,FALSE))","v":""},{"$f":"IF(VLOOKUP(F$3,'Background Calcs'!$A$22:$C$73,3,FALSE)=0,\"\",VLOOKUP(F$3,'Background Calcs'!$A$22:$C$73,3,FALSE))","v":""},{"$f":"IF(VLOOKUP(G$3,'Background Calcs'!$A$22:$C$73,3,FALSE)=0,\"\",VLOOKUP(G$3,'Background Calcs'!$A$22:$C$73,3,FALSE))","v":""},{"$f":"IF(VLOOKUP(H$3,'Background Calcs'!$A$22:$C$73,3,FALSE)=0,\"\",VLOOKUP(H$3,'Background Calcs'!$A$22:$C$73,3,FALSE))","v":""},{"$f":"IF(VLOOKUP(I$3,'Background Calcs'!$A$22:$C$73,3,FALSE)=0,\"\",VLOOKUP(I$3,'Background Calcs'!$A$22:$C$73,3,FALSE))","v":""},{"$f":"IF(VLOOKUP(J$3,'Background Calcs'!$A$22:$C$73,3,FALSE)=0,\"\",VLOOKUP(J$3,'Background Calcs'!$A$22:$C$73,3,FALSE))","v":""},{"$f":"IF(VLOOKUP(K$3,'Background Calcs'!$A$22:$C$73,3,FALSE)=0,\"\",VLOOKUP(K$3,'Background Calcs'!$A$22:$C$73,3,FALSE))","v":""},{"$f":"IF(VLOOKUP(L$3,'Background Calcs'!$A$22:$C$73,3,FALSE)=0,\"\",VLOOKUP(L$3,'Background Calcs'!$A$22:$C$73,3,FALSE))","v":""},{"$f":"IF(VLOOKUP(M$3,'Background Calcs'!$A$22:$C$73,3,FALSE)=0,\"\",VLOOKUP(M$3,'Background Calcs'!$A$22:$C$73,3,FALSE))","v":""},{"$f":"IF(VLOOKUP(N$3,'Background Calcs'!$A$22:$C$73,3,FALSE)=0,\"\",VLOOKUP(N$3,'Background Calcs'!$A$22:$C$73,3,FALSE))","v":""},{"$f":"IF(VLOOKUP(O$3,'Background Calcs'!$A$22:$C$73,3,FALSE)=0,\"\",VLOOKUP(O$3,'Background Calcs'!$A$22:$C$73,3,FALSE))","v":""}]
[null,"Total Food and Packaging Waste","Total ",{"$f":"SUM(D27,D21,D11)","v":0},0,0,0,0,0,0,0,0,0,0,0]
[]
[]
[]
[null,null,null,"Prep waste",null,"Improperly cooked",null,"Stored food expired",null,"Arrived spoiled",null,"Food sent back by customer",null,"Other"]
[null,"Kitchen Food Waste","Protein",{"$f":"SUMIFS('Stored Data'!$D:$D,'Stored Data'!$C:$C,$C34,'Stored Data'!$E:$E,D$33,'Stored Data'!$AB:$AB,$B$34)+SUMIFS('Stored Data'!$G:$G,'Stored Data'!$C:$C,$C34,'Stored Data'!$H:$H,D$33,'Stored Data'!$AB:$AB,$B$34)+SUMIFS('Stored Data'!$J:$J,'Stored Data'!$C:$C,$C34,'Stored Data'!$K:$K,D$33,'Stored Data'!$AB:$AB,$B$34)+SUMIFS('Stored Data'!$M:$M,'Stored Data'!$C:$C,$C34,'Stored Data'!$N:$N,D$33,'Stored Data'!$AB:$AB,$B$34)+SUMIFS('Stored Data'!$P:$P,'Stored Data'!$C:$C,$C34,'Stored Data'!$Q:$Q,D$33,'Stored Data'!$AB:$AB,$B$34)+SUMIFS('Stored Data'!$S:$S,'Stored Data'!$C:$C,$C34,'Stored Data'!$T:$T,D$33,'Stored Data'!$AB:$AB,$B$34)+SUMIFS('Stored Data'!$V:$V,'Stored Data'!$C:$C,$C34,'Stored Data'!$W:$W,D$33,'Stored Data'!$AB:$AB,$B$34)","v":0},null,{"$f":"SUMIFS('Stored Data'!$D:$D,'Stored Data'!$C:$C,$C34,'Stored Data'!$E:$E,F$33,'Stored Data'!$AB:$AB,$B$34)+SUMIFS('Stored Data'!$G:$G,'Stored Data'!$C:$C,$C34,'Stored Data'!$H:$H,F$33,'Stored Data'!$AB:$AB,$B$34)+SUMIFS('Stored Data'!$J:$J,'Stored Data'!$C:$C,$C34,'Stored Data'!$K:$K,F$33,'Stored Data'!$AB:$AB,$B$34)+SUMIFS('Stored Data'!$M:$M,'Stored Data'!$C:$C,$C34,'Stored Data'!$N:$N,F$33,'Stored Data'!$AB:$AB,$B$34)+SUMIFS('Stored Data'!$P:$P,'Stored Data'!$C:$C,$C34,'Stored Data'!$Q:$Q,F$33,'Stored Data'!$AB:$AB,$B$34)+SUMIFS('Stored Data'!$S:$S,'Stored Data'!$C:$C,$C34,'Stored Data'!$T:$T,F$33,'Stored Data'!$AB:$AB,$B$34)+SUMIFS('Stored Data'!$V:$V,'Stored Data'!$C:$C,$C34,'Stored Data'!$W:$W,F$33,'Stored Data'!$AB:$AB,$B$34)","v":0},null,{"$f":"SUMIFS('Stored Data'!$D:$D,'Stored Data'!$C:$C,$C34,'Stored Data'!$E:$E,H$33,'Stored Data'!$AB:$AB,$B$34)+SUMIFS('Stored Data'!$G:$G,'Stored Data'!$C:$C,$C34,'Stored Data'!$H:$H,H$33,'Stored Data'!$AB:$AB,$B$34)+SUMIFS('Stored Data'!$J:$J,'Stored Data'!$C:$C,$C34,'Stored Data'!$K:$K,H$33,'Stored Data'!$AB:$AB,$B$34)+SUMIFS('Stored Data'!$M:$M,'Stored Data'!$C:$C,$C34,'Stored Data'!$N:$N,H$33,'Stored Data'!$AB:$AB,$B$34)+SUMIFS('Stored Data'!$P:$P,'Stored Data'!$C:$C,$C34,'Stored Data'!$Q:$Q,H$33,'Stored Data'!$AB:$AB,$B$34)+SUMIFS('Stored Data'!$S:$S,'Stored Data'!$C:$C,$C34,'Stored Data'!$T:$T,H$33,'Stored Data'!$AB:$AB,$B$34)+SUMIFS('Stored Data'!$V:$V,'Stored Data'!$C:$C,$C34,'Stored Data'!$W:$W,H$33,'Stored Data'!$AB:$AB,$B$34)","v":0},null,{"$f":"SUMIFS('Stored Data'!$D:$D,'Stored Data'!$C:$C,$C34,'Stored Data'!$E:$E,J$33,'Stored Data'!$AB:$AB,$B$34)+SUMIFS('Stored Data'!$G:$G,'Stored Data'!$C:$C,$C34,'Stored Data'!$H:$H,J$33,'Stored Data'!$AB:$AB,$B$34)+SUMIFS('Stored Data'!$J:$J,'Stored Data'!$C:$C,$C34,'Stored Data'!$K:$K,J$33,'Stored Data'!$AB:$AB,$B$34)+SUMIFS('Stored Data'!$M:$M,'Stored Data'!$C:$C,$C34,'Stored Data'!$N:$N,J$33,'Stored Data'!$AB:$AB,$B$34)+SUMIFS('Stored Data'!$P:$P,'Stored Data'!$C:$C,$C34,'Stored Data'!$Q:$Q,J$33,'Stored Data'!$AB:$AB,$B$34)+SUMIFS('Stored Data'!$S:$S,'Stored Data'!$C:$C,$C34,'Stored Data'!$T:$T,J$33,'Stored Data'!$AB:$AB,$B$34)+SUMIFS('Stored Data'!$V:$V,'Stored Data'!$C:$C,$C34,'Stored Data'!$W:$W,J$33,'Stored Data'!$AB:$AB,$B$34)","v":0},null,{"$f":"SUMIFS('Stored Data'!$D:$D,'Stored Data'!$C:$C,$C34,'Stored Data'!$E:$E,L$33,'Stored Data'!$AB:$AB,$B$34)+SUMIFS('Stored Data'!$G:$G,'Stored Data'!$C:$C,$C34,'Stored Data'!$H:$H,L$33,'Stored Data'!$AB:$AB,$B$34)+SUMIFS('Stored Data'!$J:$J,'Stored Data'!$C:$C,$C34,'Stored Data'!$K:$K,L$33,'Stored Data'!$AB:$AB,$B$34)+SUMIFS('Stored Data'!$M:$M,'Stored Data'!$C:$C,$C34,'Stored Data'!$N:$N,L$33,'Stored Data'!$AB:$AB,$B$34)+SUMIFS('Stored Data'!$P:$P,'Stored Data'!$C:$C,$C34,'Stored Data'!$Q:$Q,L$33,'Stored Data'!$AB:$AB,$B$34)+SUMIFS('Stored Data'!$S:$S,'Stored Data'!$C:$C,$C34,'Stored Data'!$T:$T,L$33,'Stored Data'!$AB:$AB,$B$34)+SUMIFS('Stored Data'!$V:$V,'Stored Data'!$C:$C,$C34,'Stored Data'!$W:$W,L$33,'Stored Data'!$AB:$AB,$B$34)","v":0},null,{"$f":"(SUMIFS('Stored Data'!$D:$D,'Stored Data'!$C:$C,$C34,'Stored Data'!$AB:$AB,$B$34)+SUMIFS('Stored Data'!$G:$G,'Stored Data'!$C:$C,$C34,'Stored Data'!$AB:$AB,$B$34)+SUMIFS('Stored Data'!$J:$J,'Stored Data'!$C:$C,$C34,'Stored Data'!$AB:$AB,$B$34)+SUMIFS('Stored Data'!$M:$M,'Stored Data'!$C:$C,$C34,'Stored Data'!$AB:$AB,$B$34)+SUMIFS('Stored Data'!$P:$P,'Stored Data'!$C:$C,$C34,'Stored Data'!$AB:$AB,$B$34)+SUMIFS('Stored Data'!$S:$S,'Stored Data'!$C:$C,$C34,'Stored Data'!$AB:$AB,$B$34)+SUMIFS('Stored Data'!$V:$V,'Stored Data'!$C:$C,$C34,'Stored Data'!$AB:$AB,$B$34))-SUM(D34:M34)","v":0}]
[null,null,"Grain",{"$f":"SUMIFS('Stored Data'!$D:$D,'Stored Data'!$C:$C,$C35,'Stored Data'!$E:$E,D$33,'Stored Data'!$AB:$AB,$B$34)+SUMIFS('Stored Data'!$G:$G,'Stored Data'!$C:$C,$C35,'Stored Data'!$H:$H,D$33,'Stored Data'!$AB:$AB,$B$34)+SUMIFS('Stored Data'!$J:$J,'Stored Data'!$C:$C,$C35,'Stored Data'!$K:$K,D$33,'Stored Data'!$AB:$AB,$B$34)+SUMIFS('Stored Data'!$M:$M,'Stored Data'!$C:$C,$C35,'Stored Data'!$N:$N,D$33,'Stored Data'!$AB:$AB,$B$34)+SUMIFS('Stored Data'!$P:$P,'Stored Data'!$C:$C,$C35,'Stored Data'!$Q:$Q,D$33,'Stored Data'!$AB:$AB,$B$34)+SUMIFS('Stored Data'!$S:$S,'Stored Data'!$C:$C,$C35,'Stored Data'!$T:$T,D$33,'Stored Data'!$AB:$AB,$B$34)+SUMIFS('Stored Data'!$V:$V,'Stored Data'!$C:$C,$C35,'Stored Data'!$W:$W,D$33,'Stored Data'!$AB:$AB,$B$34)","v":0},null,{"$f":"SUMIFS('Stored Data'!$D:$D,'Stored Data'!$C:$C,$C35,'Stored Data'!$E:$E,F$33,'Stored Data'!$AB:$AB,$B$34)+SUMIFS('Stored Data'!$G:$G,'Stored Data'!$C:$C,$C35,'Stored Data'!$H:$H,F$33,'Stored Data'!$AB:$AB,$B$34)+SUMIFS('Stored Data'!$J:$J,'Stored Data'!$C:$C,$C35,'Stored Data'!$K:$K,F$33,'Stored Data'!$AB:$AB,$B$34)+SUMIFS('Stored Data'!$M:$M,'Stored Data'!$C:$C,$C35,'Stored Data'!$N:$N,F$33,'Stored Data'!$AB:$AB,$B$34)+SUMIFS('Stored Data'!$P:$P,'Stored Data'!$C:$C,$C35,'Stored Data'!$Q:$Q,F$33,'Stored Data'!$AB:$AB,$B$34)+SUMIFS('Stored Data'!$S:$S,'Stored Data'!$C:$C,$C35,'Stored Data'!$T:$T,F$33,'Stored Data'!$AB:$AB,$B$34)+SUMIFS('Stored Data'!$V:$V,'Stored Data'!$C:$C,$C35,'Stored Data'!$W:$W,F$33,'Stored Data'!$AB:$AB,$B$34)","v":0},null,{"$f":"SUMIFS('Stored Data'!$D:$D,'Stored Data'!$C:$C,$C35,'Stored Data'!$E:$E,H$33,'Stored Data'!$AB:$AB,$B$34)+SUMIFS('Stored Data'!$G:$G,'Stored Data'!$C:$C,$C35,'Stored Data'!$H:$H,H$33,'Stored Data'!$AB:$AB,$B$34)+SUMIFS('Stored Data'!$J:$J,'Stored Data'!$C:$C,$C35,'Stored Data'!$K:$K,H$33,'Stored Data'!$AB:$AB,$B$34)+SUMIFS('Stored Data'!$M:$M,'Stored Data'!$C:$C,$C35,'Stored Data'!$N:$N,H$33,'Stored Data'!$AB:$AB,$B$34)+SUMIFS('Stored Data'!$P:$P,'Stored Data'!$C:$C,$C35,'Stored Data'!$Q:$Q,H$33,'Stored Data'!$AB:$AB,$B$34)+SUMIFS('Stored Data'!$S:$S,'Stored Data'!$C:$C,$C35,'Stored Data'!$T:$T,H$33,'Stored Data'!$AB:$AB,$B$34)+SUMIFS('Stored Data'!$V:$V,'Stored Data'!$C:$C,$C35,'Stored Data'!$W:$W,H$33,'Stored Data'!$AB:$AB,$B$34)","v":0},null,{"$f":"SUMIFS('Stored Data'!$D:$D,'Stored Data'!$C:$C,$C35,'Stored Data'!$E:$E,J$33,'Stored Data'!$AB:$AB,$B$34)+SUMIFS('Stored Data'!$G:$G,'Stored Data'!$C:$C,$C35,'Stored Data'!$H:$H,J$33,'Stored Data'!$AB:$AB,$B$34)+SUMIFS('Stored Data'!$J:$J,'Stored Data'!$C:$C,$C35,'Stored Data'!$K:$K,J$33,'Stored Data'!$AB:$AB,$B$34)+SUMIFS('Stored Data'!$M:$M,'Stored Data'!$C:$C,$C35,'Stored Data'!$N:$N,J$33,'Stored Data'!$AB:$AB,$B$34)+SUMIFS('Stored Data'!$P:$P,'Stored Data'!$C:$C,$C35,'Stored Data'!$Q:$Q,J$33,'Stored Data'!$AB:$AB,$B$34)+SUMIFS('Stored Data'!$S:$S,'Stored Data'!$C:$C,$C35,'Stored Data'!$T:$T,J$33,'Stored Data'!$AB:$AB,$B$34)+SUMIFS('Stored Data'!$V:$V,'Stored Data'!$C:$C,$C35,'Stored Data'!$W:$W,J$33,'Stored Data'!$AB:$AB,$B$34)","v":0},null,{"$f":"SUMIFS('Stored Data'!$D:$D,'Stored Data'!$C:$C,$C35,'Stored Data'!$E:$E,L$33,'Stored Data'!$AB:$AB,$B$34)+SUMIFS('Stored Data'!$G:$G,'Stored Data'!$C:$C,$C35,'Stored Data'!$H:$H,L$33,'Stored Data'!$AB:$AB,$B$34)+SUMIFS('Stored Data'!$J:$J,'Stored Data'!$C:$C,$C35,'Stored Data'!$K:$K,L$33,'Stored Data'!$AB:$AB,$B$34)+SUMIFS('Stored Data'!$M:$M,'Stored Data'!$C:$C,$C35,'Stored Data'!$N:$N,L$33,'Stored Data'!$AB:$AB,$B$34)+SUMIFS('Stored Data'!$P:$P,'Stored Data'!$C:$C,$C35,'Stored Data'!$Q:$Q,L$33,'Stored Data'!$AB:$AB,$B$34)+SUMIFS('Stored Data'!$S:$S,'Stored Data'!$C:$C,$C35,'Stored Data'!$T:$T,L$33,'Stored Data'!$AB:$AB,$B$34)+SUMIFS('Stored Data'!$V:$V,'Stored Data'!$C:$C,$C35,'Stored Data'!$W:$W,L$33,'Stored Data'!$AB:$AB,$B$34)","v":0},null,{"$f":"(SUMIFS('Stored Data'!$D:$D,'Stored Data'!$C:$C,$C35,'Stored Data'!$AB:$AB,$B$34)+SUMIFS('Stored Data'!$G:$G,'Stored Data'!$C:$C,$C35,'Stored Data'!$AB:$AB,$B$34)+SUMIFS('Stored Data'!$J:$J,'Stored Data'!$C:$C,$C35,'Stored Data'!$AB:$AB,$B$34)+SUMIFS('Stored Data'!$M:$M,'Stored Data'!$C:$C,$C35,'Stored Data'!$AB:$AB,$B$34)+SUMIFS('Stored Data'!$P:$P,'Stored Data'!$C:$C,$C35,'Stored Data'!$AB:$AB,$B$34)+SUMIFS('Stored Data'!$S:$S,'Stored Data'!$C:$C,$C35,'Stored Data'!$AB:$AB,$B$34)+SUMIFS('Stored Data'!$V:$V,'Stored Data'!$C:$C,$C35,'Stored Data'!$AB:$AB,$B$34))-SUM(D35:M35)","v":0}]
[null,null,"Fruits and vegetables",{"$f":"SUMIFS('Stored Data'!$D:$D,'Stored Data'!$C:$C,$C36,'Stored Data'!$E:$E,D$33,'Stored Data'!$AB:$AB,$B$34)+SUMIFS('Stored Data'!$G:$G,'Stored Data'!$C:$C,$C36,'Stored Data'!$H:$H,D$33,'Stored Data'!$AB:$AB,$B$34)+SUMIFS('Stored Data'!$J:$J,'Stored Data'!$C:$C,$C36,'Stored Data'!$K:$K,D$33,'Stored Data'!$AB:$AB,$B$34)+SUMIFS('Stored Data'!$M:$M,'Stored Data'!$C:$C,$C36,'Stored Data'!$N:$N,D$33,'Stored Data'!$AB:$AB,$B$34)+SUMIFS('Stored Data'!$P:$P,'Stored Data'!$C:$C,$C36,'Stored Data'!$Q:$Q,D$33,'Stored Data'!$AB:$AB,$B$34)+SUMIFS('Stored Data'!$S:$S,'Stored Data'!$C:$C,$C36,'Stored Data'!$T:$T,D$33,'Stored Data'!$AB:$AB,$B$34)+SUMIFS('Stored Data'!$V:$V,'Stored Data'!$C:$C,$C36,'Stored Data'!$W:$W,D$33,'Stored Data'!$AB:$AB,$B$34)","v":0},null,{"$f":"SUMIFS('Stored Data'!$D:$D,'Stored Data'!$C:$C,$C36,'Stored Data'!$E:$E,F$33,'Stored Data'!$AB:$AB,$B$34)+SUMIFS('Stored Data'!$G:$G,'Stored Data'!$C:$C,$C36,'Stored Data'!$H:$H,F$33,'Stored Data'!$AB:$AB,$B$34)+SUMIFS('Stored Data'!$J:$J,'Stored Data'!$C:$C,$C36,'Stored Data'!$K:$K,F$33,'Stored Data'!$AB:$AB,$B$34)+SUMIFS('Stored Data'!$M:$M,'Stored Data'!$C:$C,$C36,'Stored Data'!$N:$N,F$33,'Stored Data'!$AB:$AB,$B$34)+SUMIFS('Stored Data'!$P:$P,'Stored Data'!$C:$C,$C36,'Stored Data'!$Q:$Q,F$33,'Stored Data'!$AB:$AB,$B$34)+SUMIFS('Stored Data'!$S:$S,'Stored Data'!$C:$C,$C36,'Stored Data'!$T:$T,F$33,'Stored Data'!$AB:$AB,$B$34)+SUMIFS('Stored Data'!$V:$V,'Stored Data'!$C:$C,$C36,'Stored Data'!$W:$W,F$33,'Stored Data'!$AB:$AB,$B$34)","v":0},null,{"$f":"SUMIFS('Stored Data'!$D:$D,'Stored Data'!$C:$C,$C36,'Stored Data'!$E:$E,H$33,'Stored Data'!$AB:$AB,$B$34)+SUMIFS('Stored Data'!$G:$G,'Stored Data'!$C:$C,$C36,'Stored Data'!$H:$H,H$33,'Stored Data'!$AB:$AB,$B$34)+SUMIFS('Stored Data'!$J:$J,'Stored Data'!$C:$C,$C36,'Stored Data'!$K:$K,H$33,'Stored Data'!$AB:$AB,$B$34)+SUMIFS('Stored Data'!$M:$M,'Stored Data'!$C:$C,$C36,'Stored Data'!$N:$N,H$33,'Stored Data'!$AB:$AB,$B$34)+SUMIFS('Stored Data'!$P:$P,'Stored Data'!$C:$C,$C36,'Stored Data'!$Q:$Q,H$33,'Stored Data'!$AB:$AB,$B$34)+SUMIFS('Stored Data'!$S:$S,'Stored Data'!$C:$C,$C36,'Stored Data'!$T:$T,H$33,'Stored Data'!$AB:$AB,$B$34)+SUMIFS('Stored Data'!$V:$V,'Stored Data'!$C:$C,$C36,'Stored Data'!$W:$W,H$33,'Stored Data'!$AB:$AB,$B$34)","v":0},null,{"$f":"SUMIFS('Stored Data'!$D:$D,'Stored Data'!$C:$C,$C36,'Stored Data'!$E:$E,J$33,'Stored Data'!$AB:$AB,$B$34)+SUMIFS('Stored Data'!$G:$G,'Stored Data'!$C:$C,$C36,'Stored Data'!$H:$H,J$33,'Stored Data'!$AB:$AB,$B$34)+SUMIFS('Stored Data'!$J:$J,'Stored Data'!$C:$C,$C36,'Stored Data'!$K:$K,J$33,'Stored Data'!$AB:$AB,$B$34)+SUMIFS('Stored Data'!$M:$M,'Stored Data'!$C:$C,$C36,'Stored Data'!$N:$N,J$33,'Stored Data'!$AB:$AB,$B$34)+SUMIFS('Stored Data'!$P:$P,'Stored Data'!$C:$C,$C36,'Stored Data'!$Q:$Q,J$33,'Stored Data'!$AB:$AB,$B$34)+SUMIFS('Stored Data'!$S:$S,'Stored Data'!$C:$C,$C36,'Stored Data'!$T:$T,J$33,'Stored Data'!$AB:$AB,$B$34)+SUMIFS('Stored Data'!$V:$V,'Stored Data'!$C:$C,$C36,'Stored Data'!$W:$W,J$33,'Stored Data'!$AB:$AB,$B$34)","v":0},null,{"$f":"SUMIFS('Stored Data'!$D:$D,'Stored Data'!$C:$C,$C36,'Stored Data'!$E:$E,L$33,'Stored Data'!$AB:$AB,$B$34)+SUMIFS('Stored Data'!$G:$G,'Stored Data'!$C:$C,$C36,'Stored Data'!$H:$H,L$33,'Stored Data'!$AB:$AB,$B$34)+SUMIFS('Stored Data'!$J:$J,'Stored Data'!$C:$C,$C36,'Stored Data'!$K:$K,L$33,'Stored Data'!$AB:$AB,$B$34)+SUMIFS('Stored Data'!$M:$M,'Stored Data'!$C:$C,$C36,'Stored Data'!$N:$N,L$33,'Stored Data'!$AB:$AB,$B$34)+SUMIFS('Stored Data'!$P:$P,'Stored Data'!$C:$C,$C36,'Stored Data'!$Q:$Q,L$33,'Stored Data'!$AB:$AB,$B$34)+SUMIFS('Stored Data'!$S:$S,'Stored Data'!$C:$C,$C36,'Stored Data'!$T:$T,L$33,'Stored Data'!$AB:$AB,$B$34)+SUMIFS('Stored Data'!$V:$V,'Stored Data'!$C:$C,$C36,'Stored Data'!$W:$W,L$33,'Stored Data'!$AB:$AB,$B$34)","v":0},null,{"$f":"(SUMIFS('Stored Data'!$D:$D,'Stored Data'!$C:$C,$C36,'Stored Data'!$AB:$AB,$B$34)+SUMIFS('Stored Data'!$G:$G,'Stored Data'!$C:$C,$C36,'Stored Data'!$AB:$AB,$B$34)+SUMIFS('Stored Data'!$J:$J,'Stored Data'!$C:$C,$C36,'Stored Data'!$AB:$AB,$B$34)+SUMIFS('Stored Data'!$M:$M,'Stored Data'!$C:$C,$C36,'Stored Data'!$AB:$AB,$B$34)+SUMIFS('Stored Data'!$P:$P,'Stored Data'!$C:$C,$C36,'Stored Data'!$AB:$AB,$B$34)+SUMIFS('Stored Data'!$S:$S,'Stored Data'!$C:$C,$C36,'Stored Data'!$AB:$AB,$B$34)+SUMIFS('Stored Data'!$V:$V,'Stored Data'!$C:$C,$C36,'Stored Data'!$AB:$AB,$B$34))-SUM(D36:M36)","v":0}]
[null,null,"Dairy",{"$f":"SUMIFS('Stored Data'!$D:$D,'Stored Data'!$C:$C,$C37,'Stored Data'!$E:$E,D$33,'Stored Data'!$AB:$AB,$B$34)+SUMIFS('Stored Data'!$G:$G,'Stored Data'!$C:$C,$C37,'Stored Data'!$H:$H,D$33,'Stored Data'!$AB:$AB,$B$34)+SUMIFS('Stored Data'!$J:$J,'Stored Data'!$C:$C,$C37,'Stored Data'!$K:$K,D$33,'Stored Data'!$AB:$AB,$B$34)+SUMIFS('Stored Data'!$M:$M,'Stored Data'!$C:$C,$C37,'Stored Data'!$N:$N,D$33,'Stored Data'!$AB:$AB,$B$34)+SUMIFS('Stored Data'!$P:$P,'Stored Data'!$C:$C,$C37,'Stored Data'!$Q:$Q,D$33,'Stored Data'!$AB:$AB,$B$34)+SUMIFS('Stored Data'!$S:$S,'Stored Data'!$C:$C,$C37,'Stored Data'!$T:$T,D$33,'Stored Data'!$AB:$AB,$B$34)+SUMIFS('Stored Data'!$V:$V,'Stored Data'!$C:$C,$C37,'Stored Data'!$W:$W,D$33,'Stored Data'!$AB:$AB,$B$34)","v":0},null,{"$f":"SUMIFS('Stored Data'!$D:$D,'Stored Data'!$C:$C,$C37,'Stored Data'!$E:$E,F$33,'Stored Data'!$AB:$AB,$B$34)+SUMIFS('Stored Data'!$G:$G,'Stored Data'!$C:$C,$C37,'Stored Data'!$H:$H,F$33,'Stored Data'!$AB:$AB,$B$34)+SUMIFS('Stored Data'!$J:$J,'Stored Data'!$C:$C,$C37,'Stored Data'!$K:$K,F$33,'Stored Data'!$AB:$AB,$B$34)+SUMIFS('Stored Data'!$M:$M,'Stored Data'!$C:$C,$C37,'Stored Data'!$N:$N,F$33,'Stored Data'!$AB:$AB,$B$34)+SUMIFS('Stored Data'!$P:$P,'Stored Data'!$C:$C,$C37,'Stored Data'!$Q:$Q,F$33,'Stored Data'!$AB:$AB,$B$34)+SUMIFS('Stored Data'!$S:$S,'Stored Data'!$C:$C,$C37,'Stored Data'!$T:$T,F$33,'Stored Data'!$AB:$AB,$B$34)+SUMIFS('Stored Data'!$V:$V,'Stored Data'!$C:$C,$C37,'Stored Data'!$W:$W,F$33,'Stored Data'!$AB:$AB,$B$34)","v":0},null,{"$f":"SUMIFS('Stored Data'!$D:$D,'Stored Data'!$C:$C,$C37,'Stored Data'!$E:$E,H$33,'Stored Data'!$AB:$AB,$B$34)+SUMIFS('Stored Data'!$G:$G,'Stored Data'!$C:$C,$C37,'Stored Data'!$H:$H,H$33,'Stored Data'!$AB:$AB,$B$34)+SUMIFS('Stored Data'!$J:$J,'Stored Data'!$C:$C,$C37,'Stored Data'!$K:$K,H$33,'Stored Data'!$AB:$AB,$B$34)+SUMIFS('Stored Data'!$M:$M,'Stored Data'!$C:$C,$C37,'Stored Data'!$N:$N,H$33,'Stored Data'!$AB:$AB,$B$34)+SUMIFS('Stored Data'!$P:$P,'Stored Data'!$C:$C,$C37,'Stored Data'!$Q:$Q,H$33,'Stored Data'!$AB:$AB,$B$34)+SUMIFS('Stored Data'!$S:$S,'Stored Data'!$C:$C,$C37,'Stored Data'!$T:$T,H$33,'Stored Data'!$AB:$AB,$B$34)+SUMIFS('Stored Data'!$V:$V,'Stored Data'!$C:$C,$C37,'Stored Data'!$W:$W,H$33,'Stored Data'!$AB:$AB,$B$34)","v":0},null,{"$f":"SUMIFS('Stored Data'!$D:$D,'Stored Data'!$C:$C,$C37,'Stored Data'!$E:$E,J$33,'Stored Data'!$AB:$AB,$B$34)+SUMIFS('Stored Data'!$G:$G,'Stored Data'!$C:$C,$C37,'Stored Data'!$H:$H,J$33,'Stored Data'!$AB:$AB,$B$34)+SUMIFS('Stored Data'!$J:$J,'Stored Data'!$C:$C,$C37,'Stored Data'!$K:$K,J$33,'Stored Data'!$AB:$AB,$B$34)+SUMIFS('Stored Data'!$M:$M,'Stored Data'!$C:$C,$C37,'Stored Data'!$N:$N,J$33,'Stored Data'!$AB:$AB,$B$34)+SUMIFS('Stored Data'!$P:$P,'Stored Data'!$C:$C,$C37,'Stored Data'!$Q:$Q,J$33,'Stored Data'!$AB:$AB,$B$34)+SUMIFS('Stored Data'!$S:$S,'Stored Data'!$C:$C,$C37,'Stored Data'!$T:$T,J$33,'Stored Data'!$AB:$AB,$B$34)+SUMIFS('Stored Data'!$V:$V,'Stored Data'!$C:$C,$C37,'Stored Data'!$W:$W,J$33,'Stored Data'!$AB:$AB,$B$34)","v":0},null,{"$f":"SUMIFS('Stored Data'!$D:$D,'Stored Data'!$C:$C,$C37,'Stored Data'!$E:$E,L$33,'Stored Data'!$AB:$AB,$B$34)+SUMIFS('Stored Data'!$G:$G,'Stored Data'!$C:$C,$C37,'Stored Data'!$H:$H,L$33,'Stored Data'!$AB:$AB,$B$34)+SUMIFS('Stored Data'!$J:$J,'Stored Data'!$C:$C,$C37,'Stored Data'!$K:$K,L$33,'Stored Data'!$AB:$AB,$B$34)+SUMIFS('Stored Data'!$M:$M,'Stored Data'!$C:$C,$C37,'Stored Data'!$N:$N,L$33,'Stored Data'!$AB:$AB,$B$34)+SUMIFS('Stored Data'!$P:$P,'Stored Data'!$C:$C,$C37,'Stored Data'!$Q:$Q,L$33,'Stored Data'!$AB:$AB,$B$34)+SUMIFS('Stored Data'!$S:$S,'Stored Data'!$C:$C,$C37,'Stored Data'!$T:$T,L$33,'Stored Data'!$AB:$AB,$B$34)+SUMIFS('Stored Data'!$V:$V,'Stored Data'!$C:$C,$C37,'Stored Data'!$W:$W,L$33,'Stored Data'!$AB:$AB,$B$34)","v":0},null,{"$f":"(SUMIFS('Stored Data'!$D:$D,'Stored Data'!$C:$C,$C37,'Stored Data'!$AB:$AB,$B$34)+SUMIFS('Stored Data'!$G:$G,'Stored Data'!$C:$C,$C37,'Stored Data'!$AB:$AB,$B$34)+SUMIFS('Stored Data'!$J:$J,'Stored Data'!$C:$C,$C37,'Stored Data'!$AB:$AB,$B$34)+SUMIFS('Stored Data'!$M:$M,'Stored Data'!$C:$C,$C37,'Stored Data'!$AB:$AB,$B$34)+SUMIFS('Stored Data'!$P:$P,'Stored Data'!$C:$C,$C37,'Stored Data'!$AB:$AB,$B$34)+SUMIFS('Stored Data'!$S:$S,'Stored Data'!$C:$C,$C37,'Stored Data'!$AB:$AB,$B$34)+SUMIFS('Stored Data'!$V:$V,'Stored Data'!$C:$C,$C37,'Stored Data'!$AB:$AB,$B$34))-SUM(D37:M37)","v":0}]
[null,null,"Other",{"$f":"SUMIFS('Stored Data'!$D:$D,'Stored Data'!$C:$C,$C38,'Stored Data'!$E:$E,D$33,'Stored Data'!$AB:$AB,$B$34)+SUMIFS('Stored Data'!$G:$G,'Stored Data'!$C:$C,$C38,'Stored Data'!$H:$H,D$33,'Stored Data'!$AB:$AB,$B$34)+SUMIFS('Stored Data'!$J:$J,'Stored Data'!$C:$C,$C38,'Stored Data'!$K:$K,D$33,'Stored Data'!$AB:$AB,$B$34)+SUMIFS('Stored Data'!$M:$M,'Stored Data'!$C:$C,$C38,'Stored Data'!$N:$N,D$33,'Stored Data'!$AB:$AB,$B$34)+SUMIFS('Stored Data'!$P:$P,'Stored Data'!$C:$C,$C38,'Stored Data'!$Q:$Q,D$33,'Stored Data'!$AB:$AB,$B$34)+SUMIFS('Stored Data'!$S:$S,'Stored Data'!$C:$C,$C38,'Stored Data'!$T:$T,D$33,'Stored Data'!$AB:$AB,$B$34)+SUMIFS('Stored Data'!$V:$V,'Stored Data'!$C:$C,$C38,'Stored Data'!$W:$W,D$33,'Stored Data'!$AB:$AB,$B$34)","v":0},null,{"$f":"SUMIFS('Stored Data'!$D:$D,'Stored Data'!$C:$C,$C38,'Stored Data'!$E:$E,F$33,'Stored Data'!$AB:$AB,$B$34)+SUMIFS('Stored Data'!$G:$G,'Stored Data'!$C:$C,$C38,'Stored Data'!$H:$H,F$33,'Stored Data'!$AB:$AB,$B$34)+SUMIFS('Stored Data'!$J:$J,'Stored Data'!$C:$C,$C38,'Stored Data'!$K:$K,F$33,'Stored Data'!$AB:$AB,$B$34)+SUMIFS('Stored Data'!$M:$M,'Stored Data'!$C:$C,$C38,'Stored Data'!$N:$N,F$33,'Stored Data'!$AB:$AB,$B$34)+SUMIFS('Stored Data'!$P:$P,'Stored Data'!$C:$C,$C38,'Stored Data'!$Q:$Q,F$33,'Stored Data'!$AB:$AB,$B$34)+SUMIFS('Stored Data'!$S:$S,'Stored Data'!$C:$C,$C38,'Stored Data'!$T:$T,F$33,'Stored Data'!$AB:$AB,$B$34)+SUMIFS('Stored Data'!$V:$V,'Stored Data'!$C:$C,$C38,'Stored Data'!$W:$W,F$33,'Stored Data'!$AB:$AB,$B$34)","v":0},null,{"$f":"SUMIFS('Stored Data'!$D:$D,'Stored Data'!$C:$C,$C38,'Stored Data'!$E:$E,H$33,'Stored Data'!$AB:$AB,$B$34)+SUMIFS('Stored Data'!$G:$G,'Stored Data'!$C:$C,$C38,'Stored Data'!$H:$H,H$33,'Stored Data'!$AB:$AB,$B$34)+SUMIFS('Stored Data'!$J:$J,'Stored Data'!$C:$C,$C38,'Stored Data'!$K:$K,H$33,'Stored Data'!$AB:$AB,$B$34)+SUMIFS('Stored Data'!$M:$M,'Stored Data'!$C:$C,$C38,'Stored Data'!$N:$N,H$33,'Stored Data'!$AB:$AB,$B$34)+SUMIFS('Stored Data'!$P:$P,'Stored Data'!$C:$C,$C38,'Stored Data'!$Q:$Q,H$33,'Stored Data'!$AB:$AB,$B$34)+SUMIFS('Stored Data'!$S:$S,'Stored Data'!$C:$C,$C38,'Stored Data'!$T:$T,H$33,'Stored Data'!$AB:$AB,$B$34)+SUMIFS('Stored Data'!$V:$V,'Stored Data'!$C:$C,$C38,'Stored Data'!$W:$W,H$33,'Stored Data'!$AB:$AB,$B$34)","v":0},null,{"$f":"SUMIFS('Stored Data'!$D:$D,'Stored Data'!$C:$C,$C38,'Stored Data'!$E:$E,J$33,'Stored Data'!$AB:$AB,$B$34)+SUMIFS('Stored Data'!$G:$G,'Stored Data'!$C:$C,$C38,'Stored Data'!$H:$H,J$33,'Stored Data'!$AB:$AB,$B$34)+SUMIFS('Stored Data'!$J:$J,'Stored Data'!$C:$C,$C38,'Stored Data'!$K:$K,J$33,'Stored Data'!$AB:$AB,$B$34)+SUMIFS('Stored Data'!$M:$M,'Stored Data'!$C:$C,$C38,'Stored Data'!$N:$N,J$33,'Stored Data'!$AB:$AB,$B$34)+SUMIFS('Stored Data'!$P:$P,'Stored Data'!$C:$C,$C38,'Stored Data'!$Q:$Q,J$33,'Stored Data'!$AB:$AB,$B$34)+SUMIFS('Stored Data'!$S:$S,'Stored Data'!$C:$C,$C38,'Stored Data'!$T:$T,J$33,'Stored Data'!$AB:$AB,$B$34)+SUMIFS('Stored Data'!$V:$V,'Stored Data'!$C:$C,$C38,'Stored Data'!$W:$W,J$33,'Stored Data'!$AB:$AB,$B$34)","v":0},null,{"$f":"SUMIFS('Stored Data'!$D:$D,'Stored Data'!$C:$C,$C38,'Stored Data'!$E:$E,L$33,'Stored Data'!$AB:$AB,$B$34)+SUMIFS('Stored Data'!$G:$G,'Stored Data'!$C:$C,$C38,'Stored Data'!$H:$H,L$33,'Stored Data'!$AB:$AB,$B$34)+SUMIFS('Stored Data'!$J:$J,'Stored Data'!$C:$C,$C38,'Stored Data'!$K:$K,L$33,'Stored Data'!$AB:$AB,$B$34)+SUMIFS('Stored Data'!$M:$M,'Stored Data'!$C:$C,$C38,'Stored Data'!$N:$N,L$33,'Stored Data'!$AB:$AB,$B$34)+SUMIFS('Stored Data'!$P:$P,'Stored Data'!$C:$C,$C38,'Stored Data'!$Q:$Q,L$33,'Stored Data'!$AB:$AB,$B$34)+SUMIFS('Stored Data'!$S:$S,'Stored Data'!$C:$C,$C38,'Stored Data'!$T:$T,L$33,'Stored Data'!$AB:$AB,$B$34)+SUMIFS('Stored Data'!$V:$V,'Stored Data'!$C:$C,$C38,'Stored Data'!$W:$W,L$33,'Stored Data'!$AB:$AB,$B$34)","v":0},null,{"$f":"(SUMIFS('Stored Data'!$D:$D,'Stored Data'!$C:$C,$C38,'Stored Data'!$AB:$AB,$B$34)+SUMIFS('Stored Data'!$G:$G,'Stored Data'!$C:$C,$C38,'Stored Data'!$AB:$AB,$B$34)+SUMIFS('Stored Data'!$J:$J,'Stored Data'!$C:$C,$C38,'Stored Data'!$AB:$AB,$B$34)+SUMIFS('Stored Data'!$M:$M,'Stored Data'!$C:$C,$C38,'Stored Data'!$AB:$AB,$B$34)+SUMIFS('Stored Data'!$P:$P,'Stored Data'!$C:$C,$C38,'Stored Data'!$AB:$AB,$B$34)+SUMIFS('Stored Data'!$S:$S,'Stored Data'!$C:$C,$C38,'Stored Data'!$AB:$AB,$B$34)+SUMIFS('Stored Data'!$V:$V,'Stored Data'!$C:$C,$C38,'Stored Data'!$AB:$AB,$B$34))-SUM(D38:M38)","v":0}]
[null,null,"Total",{"$f":"SUM(D34:E38)","v":0},null,{"$f":"SUM(F34:G38)","v":0},null,{"$f":"SUM(H34:I38)","v":0},null,{"$f":"SUM(J34:K38)","v":0},null,{"$f":"SUM(L34:M38)","v":0},null,{"$f":"SUM(N34:O38)","v":0}]
[null,null,null,"Landfill/solid waste handler",null,"Recycling",null,"Composting",null,"Food bank",null,"In sink disposal ",null,"Other"]
[null,"Kitchen Food Waste","Protein",{"$f":"SUMIFS('Stored Data'!$D:$D,'Stored Data'!$C:$C,$C41,'Stored Data'!$F:$F,D$40,'Stored Data'!$AB:$AB,$B$41)+SUMIFS('Stored Data'!$G:$G,'Stored Data'!$C:$C,$C41,'Stored Data'!$I:$I,D$40,'Stored Data'!$AB:$AB,$B$41)+SUMIFS('Stored Data'!$J:$J,'Stored Data'!$C:$C,$C41,'Stored Data'!$L:$L,D$40,'Stored Data'!$AB:$AB,$B$41)+SUMIFS('Stored Data'!$M:$M,'Stored Data'!$C:$C,$C41,'Stored Data'!$O:$O,D$40,'Stored Data'!$AB:$AB,$B$41)+SUMIFS('Stored Data'!$P:$P,'Stored Data'!$C:$C,$C41,'Stored Data'!$R:$R,D$40,'Stored Data'!$AB:$AB,$B$41)+SUMIFS('Stored Data'!$S:$S,'Stored Data'!$C:$C,$C41,'Stored Data'!$U:$U,D$40,'Stored Data'!$AB:$AB,$B$41)+SUMIFS('Stored Data'!$V:$V,'Stored Data'!$C:$C,$C41,'Stored Data'!$X:$X,D$40,'Stored Data'!$AB:$AB,$B$41)","v":0},null,{"$f":"SUMIFS('Stored Data'!$D:$D,'Stored Data'!$C:$C,$C41,'Stored Data'!$F:$F,F$40,'Stored Data'!$AB:$AB,$B$41)+SUMIFS('Stored Data'!$G:$G,'Stored Data'!$C:$C,$C41,'Stored Data'!$I:$I,F$40,'Stored Data'!$AB:$AB,$B$41)+SUMIFS('Stored Data'!$J:$J,'Stored Data'!$C:$C,$C41,'Stored Data'!$L:$L,F$40,'Stored Data'!$AB:$AB,$B$41)+SUMIFS('Stored Data'!$M:$M,'Stored Data'!$C:$C,$C41,'Stored Data'!$O:$O,F$40,'Stored Data'!$AB:$AB,$B$41)+SUMIFS('Stored Data'!$P:$P,'Stored Data'!$C:$C,$C41,'Stored Data'!$R:$R,F$40,'Stored Data'!$AB:$AB,$B$41)+SUMIFS('Stored Data'!$S:$S,'Stored Data'!$C:$C,$C41,'Stored Data'!$U:$U,F$40,'Stored Data'!$AB:$AB,$B$41)+SUMIFS('Stored Data'!$V:$V,'Stored Data'!$C:$C,$C41,'Stored Data'!$X:$X,F$40,'Stored Data'!$AB:$AB,$B$41)","v":0},null,{"$f":"SUMIFS('Stored Data'!$D:$D,'Stored Data'!$C:$C,$C41,'Stored Data'!$F:$F,H$40,'Stored Data'!$AB:$AB,$B$41)+SUMIFS('Stored Data'!$G:$G,'Stored Data'!$C:$C,$C41,'Stored Data'!$I:$I,H$40,'Stored Data'!$AB:$AB,$B$41)+SUMIFS('Stored Data'!$J:$J,'Stored Data'!$C:$C,$C41,'Stored Data'!$L:$L,H$40,'Stored Data'!$AB:$AB,$B$41)+SUMIFS('Stored Data'!$M:$M,'Stored Data'!$C:$C,$C41,'Stored Data'!$O:$O,H$40,'Stored Data'!$AB:$AB,$B$41)+SUMIFS('Stored Data'!$P:$P,'Stored Data'!$C:$C,$C41,'Stored Data'!$R:$R,H$40,'Stored Data'!$AB:$AB,$B$41)+SUMIFS('Stored Data'!$S:$S,'Stored Data'!$C:$C,$C41,'Stored Data'!$U:$U,H$40,'Stored Data'!$AB:$AB,$B$41)+SUMIFS('Stored Data'!$V:$V,'Stored Data'!$C:$C,$C41,'Stored Data'!$X:$X,H$40,'Stored Data'!$AB:$AB,$B$41)","v":0},null,{"$f":"SUMIFS('Stored Data'!$D:$D,'Stored Data'!$C:$C,$C41,'Stored Data'!$F:$F,J$40,'Stored Data'!$AB:$AB,$B$41)+SUMIFS('Stored Data'!$G:$G,'Stored Data'!$C:$C,$C41,'Stored Data'!$I:$I,J$40,'Stored Data'!$AB:$AB,$B$41)+SUMIFS('Stored Data'!$J:$J,'Stored Data'!$C:$C,$C41,'Stored Data'!$L:$L,J$40,'Stored Data'!$AB:$AB,$B$41)+SUMIFS('Stored Data'!$M:$M,'Stored Data'!$C:$C,$C41,'Stored Data'!$O:$O,J$40,'Stored Data'!$AB:$AB,$B$41)+SUMIFS('Stored Data'!$P:$P,'Stored Data'!$C:$C,$C41,'Stored Data'!$R:$R,J$40,'Stored Data'!$AB:$AB,$B$41)+SUMIFS('Stored Data'!$S:$S,'Stored Data'!$C:$C,$C41,'Stored Data'!$U:$U,J$40,'Stored Data'!$AB:$AB,$B$41)+SUMIFS('Stored Data'!$V:$V,'Stored Data'!$C:$C,$C41,'Stored Data'!$X:$X,J$40,'Stored Data'!$AB:$AB,$B$41)","v":0},null,{"$f":"SUMIFS('Stored Data'!$D:$D,'Stored Data'!$C:$C,$C41,'Stored Data'!$F:$F,L$40,'Stored Data'!$AB:$AB,$B$41)+SUMIFS('Stored Data'!$G:$G,'Stored Data'!$C:$C,$C41,'Stored Data'!$I:$I,L$40,'Stored Data'!$AB:$AB,$B$41)+SUMIFS('Stored Data'!$J:$J,'Stored Data'!$C:$C,$C41,'Stored Data'!$L:$L,L$40,'Stored Data'!$AB:$AB,$B$41)+SUMIFS('Stored Data'!$M:$M,'Stored Data'!$C:$C,$C41,'Stored Data'!$O:$O,L$40,'Stored Data'!$AB:$AB,$B$41)+SUMIFS('Stored Data'!$P:$P,'Stored Data'!$C:$C,$C41,'Stored Data'!$R:$R,L$40,'Stored Data'!$AB:$AB,$B$41)+SUMIFS('Stored Data'!$S:$S,'Stored Data'!$C:$C,$C41,'Stored Data'!$U:$U,L$40,'Stored Data'!$AB:$AB,$B$41)+SUMIFS('Stored Data'!$V:$V,'Stored Data'!$C:$C,$C41,'Stored Data'!$X:$X,L$40,'Stored Data'!$AB:$AB,$B$41)","v":0},null,{"$f":"(SUMIFS('Stored Data'!$D:$D,'Stored Data'!$C:$C,$C41,'Stored Data'!$AB:$AB,$B$41)+SUMIFS('Stored Data'!$G:$G,'Stored Data'!$C:$C,$C41,'Stored Data'!$AB:$AB,$B$41)+SUMIFS('Stored Data'!$J:$J,'Stored Data'!$C:$C,$C41,'Stored Data'!$AB:$AB,$B$41)+SUMIFS('Stored Data'!$M:$M,'Stored Data'!$C:$C,$C41,'Stored Data'!$AB:$AB,$B$41)+SUMIFS('Stored Data'!$P:$P,'Stored Data'!$C:$C,$C41,'Stored Data'!$AB:$AB,$B$41)+SUMIFS('Stored Data'!$S:$S,'Stored Data'!$C:$C,$C41,'Stored Data'!$AB:$AB,$B$41)+SUMIFS('Stored Data'!$V:$V,'Stored Data'!$C:$C,$C41,'Stored Data'!$AB:$AB,$B$41))-SUM(D41:M41)","v":0}]
[null,null,"Grain",{"$f":"SUMIFS('Stored Data'!$D:$D,'Stored Data'!$C:$C,$C42,'Stored Data'!$F:$F,D$40,'Stored Data'!$AB:$AB,$B$41)+SUMIFS('Stored Data'!$G:$G,'Stored Data'!$C:$C,$C42,'Stored Data'!$I:$I,D$40,'Stored Data'!$AB:$AB,$B$41)+SUMIFS('Stored Data'!$J:$J,'Stored Data'!$C:$C,$C42,'Stored Data'!$L:$L,D$40,'Stored Data'!$AB:$AB,$B$41)+SUMIFS('Stored Data'!$M:$M,'Stored Data'!$C:$C,$C42,'Stored Data'!$O:$O,D$40,'Stored Data'!$AB:$AB,$B$41)+SUMIFS('Stored Data'!$P:$P,'Stored Data'!$C:$C,$C42,'Stored Data'!$R:$R,D$40,'Stored Data'!$AB:$AB,$B$41)+SUMIFS('Stored Data'!$S:$S,'Stored Data'!$C:$C,$C42,'Stored Data'!$U:$U,D$40,'Stored Data'!$AB:$AB,$B$41)+SUMIFS('Stored Data'!$V:$V,'Stored Data'!$C:$C,$C42,'Stored Data'!$X:$X,D$40,'Stored Data'!$AB:$AB,$B$41)","v":0},null,{"$f":"SUMIFS('Stored Data'!$D:$D,'Stored Data'!$C:$C,$C42,'Stored Data'!$F:$F,F$40,'Stored Data'!$AB:$AB,$B$41)+SUMIFS('Stored Data'!$G:$G,'Stored Data'!$C:$C,$C42,'Stored Data'!$I:$I,F$40,'Stored Data'!$AB:$AB,$B$41)+SUMIFS('Stored Data'!$J:$J,'Stored Data'!$C:$C,$C42,'Stored Data'!$L:$L,F$40,'Stored Data'!$AB:$AB,$B$41)+SUMIFS('Stored Data'!$M:$M,'Stored Data'!$C:$C,$C42,'Stored Data'!$O:$O,F$40,'Stored Data'!$AB:$AB,$B$41)+SUMIFS('Stored Data'!$P:$P,'Stored Data'!$C:$C,$C42,'Stored Data'!$R:$R,F$40,'Stored Data'!$AB:$AB,$B$41)+SUMIFS('Stored Data'!$S:$S,'Stored Data'!$C:$C,$C42,'Stored Data'!$U:$U,F$40,'Stored Data'!$AB:$AB,$B$41)+SUMIFS('Stored Data'!$V:$V,'Stored Data'!$C:$C,$C42,'Stored Data'!$X:$X,F$40,'Stored Data'!$AB:$AB,$B$41)","v":0},null,{"$f":"SUMIFS('Stored Data'!$D:$D,'Stored Data'!$C:$C,$C42,'Stored Data'!$F:$F,H$40,'Stored Data'!$AB:$AB,$B$41)+SUMIFS('Stored Data'!$G:$G,'Stored Data'!$C:$C,$C42,'Stored Data'!$I:$I,H$40,'Stored Data'!$AB:$AB,$B$41)+SUMIFS('Stored Data'!$J:$J,'Stored Data'!$C:$C,$C42,'Stored Data'!$L:$L,H$40,'Stored Data'!$AB:$AB,$B$41)+SUMIFS('Stored Data'!$M:$M,'Stored Data'!$C:$C,$C42,'Stored Data'!$O:$O,H$40,'Stored Data'!$AB:$AB,$B$41)+SUMIFS('Stored Data'!$P:$P,'Stored Data'!$C:$C,$C42,'Stored Data'!$R:$R,H$40,'Stored Data'!$AB:$AB,$B$41)+SUMIFS('Stored Data'!$S:$S,'Stored Data'!$C:$C,$C42,'Stored Data'!$U:$U,H$40,'Stored Data'!$AB:$AB,$B$41)+SUMIFS('Stored Data'!$V:$V,'Stored Data'!$C:$C,$C42,'Stored Data'!$X:$X,H$40,'Stored Data'!$AB:$AB,$B$41)","v":0},null,{"$f":"SUMIFS('Stored Data'!$D:$D,'Stored Data'!$C:$C,$C42,'Stored Data'!$F:$F,J$40,'Stored Data'!$AB:$AB,$B$41)+SUMIFS('Stored Data'!$G:$G,'Stored Data'!$C:$C,$C42,'Stored Data'!$I:$I,J$40,'Stored Data'!$AB:$AB,$B$41)+SUMIFS('Stored Data'!$J:$J,'Stored Data'!$C:$C,$C42,'Stored Data'!$L:$L,J$40,'Stored Data'!$AB:$AB,$B$41)+SUMIFS('Stored Data'!$M:$M,'Stored Data'!$C:$C,$C42,'Stored Data'!$O:$O,J$40,'Stored Data'!$AB:$AB,$B$41)+SUMIFS('Stored Data'!$P:$P,'Stored Data'!$C:$C,$C42,'Stored Data'!$R:$R,J$40,'Stored Data'!$AB:$AB,$B$41)+SUMIFS('Stored Data'!$S:$S,'Stored Data'!$C:$C,$C42,'Stored Data'!$U:$U,J$40,'Stored Data'!$AB:$AB,$B$41)+SUMIFS('Stored Data'!$V:$V,'Stored Data'!$C:$C,$C42,'Stored Data'!$X:$X,J$40,'Stored Data'!$AB:$AB,$B$41)","v":0},null,{"$f":"SUMIFS('Stored Data'!$D:$D,'Stored Data'!$C:$C,$C42,'Stored Data'!$F:$F,L$40,'Stored Data'!$AB:$AB,$B$41)+SUMIFS('Stored Data'!$G:$G,'Stored Data'!$C:$C,$C42,'Stored Data'!$I:$I,L$40,'Stored Data'!$AB:$AB,$B$41)+SUMIFS('Stored Data'!$J:$J,'Stored Data'!$C:$C,$C42,'Stored Data'!$L:$L,L$40,'Stored Data'!$AB:$AB,$B$41)+SUMIFS('Stored Data'!$M:$M,'Stored Data'!$C:$C,$C42,'Stored Data'!$O:$O,L$40,'Stored Data'!$AB:$AB,$B$41)+SUMIFS('Stored Data'!$P:$P,'Stored Data'!$C:$C,$C42,'Stored Data'!$R:$R,L$40,'Stored Data'!$AB:$AB,$B$41)+SUMIFS('Stored Data'!$S:$S,'Stored Data'!$C:$C,$C42,'Stored Data'!$U:$U,L$40,'Stored Data'!$AB:$AB,$B$41)+SUMIFS('Stored Data'!$V:$V,'Stored Data'!$C:$C,$C42,'Stored Data'!$X:$X,L$40,'Stored Data'!$AB:$AB,$B$41)","v":0},null,{"$f":"(SUMIFS('Stored Data'!$D:$D,'Stored Data'!$C:$C,$C42,'Stored Data'!$AB:$AB,$B$41)+SUMIFS('Stored Data'!$G:$G,'Stored Data'!$C:$C,$C42,'Stored Data'!$AB:$AB,$B$41)+SUMIFS('Stored Data'!$J:$J,'Stored Data'!$C:$C,$C42,'Stored Data'!$AB:$AB,$B$41)+SUMIFS('Stored Data'!$M:$M,'Stored Data'!$C:$C,$C42,'Stored Data'!$AB:$AB,$B$41)+SUMIFS('Stored Data'!$P:$P,'Stored Data'!$C:$C,$C42,'Stored Data'!$AB:$AB,$B$41)+SUMIFS('Stored Data'!$S:$S,'Stored Data'!$C:$C,$C42,'Stored Data'!$AB:$AB,$B$41)+SUMIFS('Stored Data'!$V:$V,'Stored Data'!$C:$C,$C42,'Stored Data'!$AB:$AB,$B$41))-SUM(D42:M42)","v":0}]
[null,null,"Fruits and vegetables",{"$f":"SUMIFS('Stored Data'!$D:$D,'Stored Data'!$C:$C,$C43,'Stored Data'!$F:$F,D$40,'Stored Data'!$AB:$AB,$B$41)+SUMIFS('Stored Data'!$G:$G,'Stored Data'!$C:$C,$C43,'Stored Data'!$I:$I,D$40,'Stored Data'!$AB:$AB,$B$41)+SUMIFS('Stored Data'!$J:$J,'Stored Data'!$C:$C,$C43,'Stored Data'!$L:$L,D$40,'Stored Data'!$AB:$AB,$B$41)+SUMIFS('Stored Data'!$M:$M,'Stored Data'!$C:$C,$C43,'Stored Data'!$O:$O,D$40,'Stored Data'!$AB:$AB,$B$41)+SUMIFS('Stored Data'!$P:$P,'Stored Data'!$C:$C,$C43,'Stored Data'!$R:$R,D$40,'Stored Data'!$AB:$AB,$B$41)+SUMIFS('Stored Data'!$S:$S,'Stored Data'!$C:$C,$C43,'Stored Data'!$U:$U,D$40,'Stored Data'!$AB:$AB,$B$41)+SUMIFS('Stored Data'!$V:$V,'Stored Data'!$C:$C,$C43,'Stored Data'!$X:$X,D$40,'Stored Data'!$AB:$AB,$B$41)","v":0},null,{"$f":"SUMIFS('Stored Data'!$D:$D,'Stored Data'!$C:$C,$C43,'Stored Data'!$F:$F,F$40,'Stored Data'!$AB:$AB,$B$41)+SUMIFS('Stored Data'!$G:$G,'Stored Data'!$C:$C,$C43,'Stored Data'!$I:$I,F$40,'Stored Data'!$AB:$AB,$B$41)+SUMIFS('Stored Data'!$J:$J,'Stored Data'!$C:$C,$C43,'Stored Data'!$L:$L,F$40,'Stored Data'!$AB:$AB,$B$41)+SUMIFS('Stored Data'!$M:$M,'Stored Data'!$C:$C,$C43,'Stored Data'!$O:$O,F$40,'Stored Data'!$AB:$AB,$B$41)+SUMIFS('Stored Data'!$P:$P,'Stored Data'!$C:$C,$C43,'Stored Data'!$R:$R,F$40,'Stored Data'!$AB:$AB,$B$41)+SUMIFS('Stored Data'!$S:$S,'Stored Data'!$C:$C,$C43,'Stored Data'!$U:$U,F$40,'Stored Data'!$AB:$AB,$B$41)+SUMIFS('Stored Data'!$V:$V,'Stored Data'!$C:$C,$C43,'Stored Data'!$X:$X,F$40,'Stored Data'!$AB:$AB,$B$41)","v":0},null,{"$f":"SUMIFS('Stored Data'!$D:$D,'Stored Data'!$C:$C,$C43,'Stored Data'!$F:$F,H$40,'Stored Data'!$AB:$AB,$B$41)+SUMIFS('Stored Data'!$G:$G,'Stored Data'!$C:$C,$C43,'Stored Data'!$I:$I,H$40,'Stored Data'!$AB:$AB,$B$41)+SUMIFS('Stored Data'!$J:$J,'Stored Data'!$C:$C,$C43,'Stored Data'!$L:$L,H$40,'Stored Data'!$AB:$AB,$B$41)+SUMIFS('Stored Data'!$M:$M,'Stored Data'!$C:$C,$C43,'Stored Data'!$O:$O,H$40,'Stored Data'!$AB:$AB,$B$41)+SUMIFS('Stored Data'!$P:$P,'Stored Data'!$C:$C,$C43,'Stored Data'!$R:$R,H$40,'Stored Data'!$AB:$AB,$B$41)+SUMIFS('Stored Data'!$S:$S,'Stored Data'!$C:$C,$C43,'Stored Data'!$U:$U,H$40,'Stored Data'!$AB:$AB,$B$41)+SUMIFS('Stored Data'!$V:$V,'Stored Data'!$C:$C,$C43,'Stored Data'!$X:$X,H$40,'Stored Data'!$AB:$AB,$B$41)","v":0},null,{"$f":"SUMIFS('Stored Data'!$D:$D,'Stored Data'!$C:$C,$C43,'Stored Data'!$F:$F,J$40,'Stored Data'!$AB:$AB,$B$41)+SUMIFS('Stored Data'!$G:$G,'Stored Data'!$C:$C,$C43,'Stored Data'!$I:$I,J$40,'Stored Data'!$AB:$AB,$B$41)+SUMIFS('Stored Data'!$J:$J,'Stored Data'!$C:$C,$C43,'Stored Data'!$L:$L,J$40,'Stored Data'!$AB:$AB,$B$41)+SUMIFS('Stored Data'!$M:$M,'Stored Data'!$C:$C,$C43,'Stored Data'!$O:$O,J$40,'Stored Data'!$AB:$AB,$B$41)+SUMIFS('Stored Data'!$P:$P,'Stored Data'!$C:$C,$C43,'Stored Data'!$R:$R,J$40,'Stored Data'!$AB:$AB,$B$41)+SUMIFS('Stored Data'!$S:$S,'Stored Data'!$C:$C,$C43,'Stored Data'!$U:$U,J$40,'Stored Data'!$AB:$AB,$B$41)+SUMIFS('Stored Data'!$V:$V,'Stored Data'!$C:$C,$C43,'Stored Data'!$X:$X,J$40,'Stored Data'!$AB:$AB,$B$41)","v":0},null,{"$f":"SUMIFS('Stored Data'!$D:$D,'Stored Data'!$C:$C,$C43,'Stored Data'!$F:$F,L$40,'Stored Data'!$AB:$AB,$B$41)+SUMIFS('Stored Data'!$G:$G,'Stored Data'!$C:$C,$C43,'Stored Data'!$I:$I,L$40,'Stored Data'!$AB:$AB,$B$41)+SUMIFS('Stored Data'!$J:$J,'Stored Data'!$C:$C,$C43,'Stored Data'!$L:$L,L$40,'Stored Data'!$AB:$AB,$B$41)+SUMIFS('Stored Data'!$M:$M,'Stored Data'!$C:$C,$C43,'Stored Data'!$O:$O,L$40,'Stored Data'!$AB:$AB,$B$41)+SUMIFS('Stored Data'!$P:$P,'Stored Data'!$C:$C,$C43,'Stored Data'!$R:$R,L$40,'Stored Data'!$AB:$AB,$B$41)+SUMIFS('Stored Data'!$S:$S,'Stored Data'!$C:$C,$C43,'Stored Data'!$U:$U,L$40,'Stored Data'!$AB:$AB,$B$41)+SUMIFS('Stored Data'!$V:$V,'Stored Data'!$C:$C,$C43,'Stored Data'!$X:$X,L$40,'Stored Data'!$AB:$AB,$B$41)","v":0},null,{"$f":"(SUMIFS('Stored Data'!$D:$D,'Stored Data'!$C:$C,$C43,'Stored Data'!$AB:$AB,$B$41)+SUMIFS('Stored Data'!$G:$G,'Stored Data'!$C:$C,$C43,'Stored Data'!$AB:$AB,$B$41)+SUMIFS('Stored Data'!$J:$J,'Stored Data'!$C:$C,$C43,'Stored Data'!$AB:$AB,$B$41)+SUMIFS('Stored Data'!$M:$M,'Stored Data'!$C:$C,$C43,'Stored Data'!$AB:$AB,$B$41)+SUMIFS('Stored Data'!$P:$P,'Stored Data'!$C:$C,$C43,'Stored Data'!$AB:$AB,$B$41)+SUMIFS('Stored Data'!$S:$S,'Stored Data'!$C:$C,$C43,'Stored Data'!$AB:$AB,$B$41)+SUMIFS('Stored Data'!$V:$V,'Stored Data'!$C:$C,$C43,'Stored Data'!$AB:$AB,$B$41))-SUM(D43:M43)","v":0}]
[null,null,"Dairy",{"$f":"SUMIFS('Stored Data'!$D:$D,'Stored Data'!$C:$C,$C44,'Stored Data'!$F:$F,D$40,'Stored Data'!$AB:$AB,$B$41)+SUMIFS('Stored Data'!$G:$G,'Stored Data'!$C:$C,$C44,'Stored Data'!$I:$I,D$40,'Stored Data'!$AB:$AB,$B$41)+SUMIFS('Stored Data'!$J:$J,'Stored Data'!$C:$C,$C44,'Stored Data'!$L:$L,D$40,'Stored Data'!$AB:$AB,$B$41)+SUMIFS('Stored Data'!$M:$M,'Stored Data'!$C:$C,$C44,'Stored Data'!$O:$O,D$40,'Stored Data'!$AB:$AB,$B$41)+SUMIFS('Stored Data'!$P:$P,'Stored Data'!$C:$C,$C44,'Stored Data'!$R:$R,D$40,'Stored Data'!$AB:$AB,$B$41)+SUMIFS('Stored Data'!$S:$S,'Stored Data'!$C:$C,$C44,'Stored Data'!$U:$U,D$40,'Stored Data'!$AB:$AB,$B$41)+SUMIFS('Stored Data'!$V:$V,'Stored Data'!$C:$C,$C44,'Stored Data'!$X:$X,D$40,'Stored Data'!$AB:$AB,$B$41)","v":0},null,{"$f":"SUMIFS('Stored Data'!$D:$D,'Stored Data'!$C:$C,$C44,'Stored Data'!$F:$F,F$40,'Stored Data'!$AB:$AB,$B$41)+SUMIFS('Stored Data'!$G:$G,'Stored Data'!$C:$C,$C44,'Stored Data'!$I:$I,F$40,'Stored Data'!$AB:$AB,$B$41)+SUMIFS('Stored Data'!$J:$J,'Stored Data'!$C:$C,$C44,'Stored Data'!$L:$L,F$40,'Stored Data'!$AB:$AB,$B$41)+SUMIFS('Stored Data'!$M:$M,'Stored Data'!$C:$C,$C44,'Stored Data'!$O:$O,F$40,'Stored Data'!$AB:$AB,$B$41)+SUMIFS('Stored Data'!$P:$P,'Stored Data'!$C:$C,$C44,'Stored Data'!$R:$R,F$40,'Stored Data'!$AB:$AB,$B$41)+SUMIFS('Stored Data'!$S:$S,'Stored Data'!$C:$C,$C44,'Stored Data'!$U:$U,F$40,'Stored Data'!$AB:$AB,$B$41)+SUMIFS('Stored Data'!$V:$V,'Stored Data'!$C:$C,$C44,'Stored Data'!$X:$X,F$40,'Stored Data'!$AB:$AB,$B$41)","v":0},null,{"$f":"SUMIFS('Stored Data'!$D:$D,'Stored Data'!$C:$C,$C44,'Stored Data'!$F:$F,H$40,'Stored Data'!$AB:$AB,$B$41)+SUMIFS('Stored Data'!$G:$G,'Stored Data'!$C:$C,$C44,'Stored Data'!$I:$I,H$40,'Stored Data'!$AB:$AB,$B$41)+SUMIFS('Stored Data'!$J:$J,'Stored Data'!$C:$C,$C44,'Stored Data'!$L:$L,H$40,'Stored Data'!$AB:$AB,$B$41)+SUMIFS('Stored Data'!$M:$M,'Stored Data'!$C:$C,$C44,'Stored Data'!$O:$O,H$40,'Stored Data'!$AB:$AB,$B$41)+SUMIFS('Stored Data'!$P:$P,'Stored Data'!$C:$C,$C44,'Stored Data'!$R:$R,H$40,'Stored Data'!$AB:$AB,$B$41)+SUMIFS('Stored Data'!$S:$S,'Stored Data'!$C:$C,$C44,'Stored Data'!$U:$U,H$40,'Stored Data'!$AB:$AB,$B$41)+SUMIFS('Stored Data'!$V:$V,'Stored Data'!$C:$C,$C44,'Stored Data'!$X:$X,H$40,'Stored Data'!$AB:$AB,$B$41)","v":0},null,{"$f":"SUMIFS('Stored Data'!$D:$D,'Stored Data'!$C:$C,$C44,'Stored Data'!$F:$F,J$40,'Stored Data'!$AB:$AB,$B$41)+SUMIFS('Stored Data'!$G:$G,'Stored Data'!$C:$C,$C44,'Stored Data'!$I:$I,J$40,'Stored Data'!$AB:$AB,$B$41)+SUMIFS('Stored Data'!$J:$J,'Stored Data'!$C:$C,$C44,'Stored Data'!$L:$L,J$40,'Stored Data'!$AB:$AB,$B$41)+SUMIFS('Stored Data'!$M:$M,'Stored Data'!$C:$C,$C44,'Stored Data'!$O:$O,J$40,'Stored Data'!$AB:$AB,$B$41)+SUMIFS('Stored Data'!$P:$P,'Stored Data'!$C:$C,$C44,'Stored Data'!$R:$R,J$40,'Stored Data'!$AB:$AB,$B$41)+SUMIFS('Stored Data'!$S:$S,'Stored Data'!$C:$C,$C44,'Stored Data'!$U:$U,J$40,'Stored Data'!$AB:$AB,$B$41)+SUMIFS('Stored Data'!$V:$V,'Stored Data'!$C:$C,$C44,'Stored Data'!$X:$X,J$40,'Stored Data'!$AB:$AB,$B$41)","v":0},null,{"$f":"SUMIFS('Stored Data'!$D:$D,'Stored Data'!$C:$C,$C44,'Stored Data'!$F:$F,L$40,'Stored Data'!$AB:$AB,$B$41)+SUMIFS('Stored Data'!$G:$G,'Stored Data'!$C:$C,$C44,'Stored Data'!$I:$I,L$40,'Stored Data'!$AB:$AB,$B$41)+SUMIFS('Stored Data'!$J:$J,'Stored Data'!$C:$C,$C44,'Stored Data'!$L:$L,L$40,'Stored Data'!$AB:$AB,$B$41)+SUMIFS('Stored Data'!$M:$M,'Stored Data'!$C:$C,$C44,'Stored Data'!$O:$O,L$40,'Stored Data'!$AB:$AB,$B$41)+SUMIFS('Stored Data'!$P:$P,'Stored Data'!$C:$C,$C44,'Stored Data'!$R:$R,L$40,'Stored Data'!$AB:$AB,$B$41)+SUMIFS('Stored Data'!$S:$S,'Stored Data'!$C:$C,$C44,'Stored Data'!$U:$U,L$40,'Stored Data'!$AB:$AB,$B$41)+SUMIFS('Stored Data'!$V:$V,'Stored Data'!$C:$C,$C44,'Stored Data'!$X:$X,L$40,'Stored Data'!$AB:$AB,$B$41)","v":0},null,{"$f":"(SUMIFS('Stored Data'!$D:$D,'Stored Data'!$C:$C,$C44,'Stored Data'!$AB:$AB,$B$41)+SUMIFS('Stored Data'!$G:$G,'Stored Data'!$C:$C,$C44,'Stored Data'!$AB:$AB,$B$41)+SUMIFS('Stored Data'!$J:$J,'Stored Data'!$C:$C,$C44,'Stored Data'!$AB:$AB,$B$41)+SUMIFS('Stored Data'!$M:$M,'Stored Data'!$C:$C,$C44,'Stored Data'!$AB:$AB,$B$41)+SUMIFS('Stored Data'!$P:$P,'Stored Data'!$C:$C,$C44,'Stored Data'!$AB:$AB,$B$41)+SUMIFS('Stored Data'!$S:$S,'Stored Data'!$C:$C,$C44,'Stored Data'!$AB:$AB,$B$41)+SUMIFS('Stored Data'!$V:$V,'Stored Data'!$C:$C,$C44,'Stored Data'!$AB:$AB,$B$41))-SUM(D44:M44)","v":0}]
[null,null,"Other",{"$f":"SUMIFS('Stored Data'!$D:$D,'Stored Data'!$C:$C,$C45,'Stored Data'!$F:$F,D$40,'Stored Data'!$AB:$AB,$B$41)+SUMIFS('Stored Data'!$G:$G,'Stored Data'!$C:$C,$C45,'Stored Data'!$I:$I,D$40,'Stored Data'!$AB:$AB,$B$41)+SUMIFS('Stored Data'!$J:$J,'Stored Data'!$C:$C,$C45,'Stored Data'!$L:$L,D$40,'Stored Data'!$AB:$AB,$B$41)+SUMIFS('Stored Data'!$M:$M,'Stored Data'!$C:$C,$C45,'Stored Data'!$O:$O,D$40,'Stored Data'!$AB:$AB,$B$41)+SUMIFS('Stored Data'!$P:$P,'Stored Data'!$C:$C,$C45,'Stored Data'!$R:$R,D$40,'Stored Data'!$AB:$AB,$B$41)+SUMIFS('Stored Data'!$S:$S,'Stored Data'!$C:$C,$C45,'Stored Data'!$U:$U,D$40,'Stored Data'!$AB:$AB,$B$41)+SUMIFS('Stored Data'!$V:$V,'Stored Data'!$C:$C,$C45,'Stored Data'!$X:$X,D$40,'Stored Data'!$AB:$AB,$B$41)","v":0},null,{"$f":"SUMIFS('Stored Data'!$D:$D,'Stored Data'!$C:$C,$C45,'Stored Data'!$F:$F,F$40,'Stored Data'!$AB:$AB,$B$41)+SUMIFS('Stored Data'!$G:$G,'Stored Data'!$C:$C,$C45,'Stored Data'!$I:$I,F$40,'Stored Data'!$AB:$AB,$B$41)+SUMIFS('Stored Data'!$J:$J,'Stored Data'!$C:$C,$C45,'Stored Data'!$L:$L,F$40,'Stored Data'!$AB:$AB,$B$41)+SUMIFS('Stored Data'!$M:$M,'Stored Data'!$C:$C,$C45,'Stored Data'!$O:$O,F$40,'Stored Data'!$AB:$AB,$B$41)+SUMIFS('Stored Data'!$P:$P,'Stored Data'!$C:$C,$C45,'Stored Data'!$R:$R,F$40,'Stored Data'!$AB:$AB,$B$41)+SUMIFS('Stored Data'!$S:$S,'Stored Data'!$C:$C,$C45,'Stored Data'!$U:$U,F$40,'Stored Data'!$AB:$AB,$B$41)+SUMIFS('Stored Data'!$V:$V,'Stored Data'!$C:$C,$C45,'Stored Data'!$X:$X,F$40,'Stored Data'!$AB:$AB,$B$41)","v":0},null,{"$f":"SUMIFS('Stored Data'!$D:$D,'Stored Data'!$C:$C,$C45,'Stored Data'!$F:$F,H$40,'Stored Data'!$AB:$AB,$B$41)+SUMIFS('Stored Data'!$G:$G,'Stored Data'!$C:$C,$C45,'Stored Data'!$I:$I,H$40,'Stored Data'!$AB:$AB,$B$41)+SUMIFS('Stored Data'!$J:$J,'Stored Data'!$C:$C,$C45,'Stored Data'!$L:$L,H$40,'Stored Data'!$AB:$AB,$B$41)+SUMIFS('Stored Data'!$M:$M,'Stored Data'!$C:$C,$C45,'Stored Data'!$O:$O,H$40,'Stored Data'!$AB:$AB,$B$41)+SUMIFS('Stored Data'!$P:$P,'Stored Data'!$C:$C,$C45,'Stored Data'!$R:$R,H$40,'Stored Data'!$AB:$AB,$B$41)+SUMIFS('Stored Data'!$S:$S,'Stored Data'!$C:$C,$C45,'Stored Data'!$U:$U,H$40,'Stored Data'!$AB:$AB,$B$41)+SUMIFS('Stored Data'!$V:$V,'Stored Data'!$C:$C,$C45,'Stored Data'!$X:$X,H$40,'Stored Data'!$AB:$AB,$B$41)","v":0},null,{"$f":"SUMIFS('Stored Data'!$D:$D,'Stored Data'!$C:$C,$C45,'Stored Data'!$F:$F,J$40,'Stored Data'!$AB:$AB,$B$41)+SUMIFS('Stored Data'!$G:$G,'Stored Data'!$C:$C,$C45,'Stored Data'!$I:$I,J$40,'Stored Data'!$AB:$AB,$B$41)+SUMIFS('Stored Data'!$J:$J,'Stored Data'!$C:$C,$C45,'Stored Data'!$L:$L,J$40,'Stored Data'!$AB:$AB,$B$41)+SUMIFS('Stored Data'!$M:$M,'Stored Data'!$C:$C,$C45,'Stored Data'!$O:$O,J$40,'Stored Data'!$AB:$AB,$B$41)+SUMIFS('Stored Data'!$P:$P,'Stored Data'!$C:$C,$C45,'Stored Data'!$R:$R,J$40,'Stored Data'!$AB:$AB,$B$41)+SUMIFS('Stored Data'!$S:$S,'Stored Data'!$C:$C,$C45,'Stored Data'!$U:$U,J$40,'Stored Data'!$AB:$AB,$B$41)+SUMIFS('Stored Data'!$V:$V,'Stored Data'!$C:$C,$C45,'Stored Data'!$X:$X,J$40,'Stored Data'!$AB:$AB,$B$41)","v":0},null,{"$f":"SUMIFS('Stored Data'!$D:$D,'Stored Data'!$C:$C,$C45,'Stored Data'!$F:$F,L$40,'Stored Data'!$AB:$AB,$B$41)+SUMIFS('Stored Data'!$G:$G,'Stored Data'!$C:$C,$C45,'Stored Data'!$I:$I,L$40,'Stored Data'!$AB:$AB,$B$41)+SUMIFS('Stored Data'!$J:$J,'Stored Data'!$C:$C,$C45,'Stored Data'!$L:$L,L$40,'Stored Data'!$AB:$AB,$B$41)+SUMIFS('Stored Data'!$M:$M,'Stored Data'!$C:$C,$C45,'Stored Data'!$O:$O,L$40,'Stored Data'!$AB:$AB,$B$41)+SUMIFS('Stored Data'!$P:$P,'Stored Data'!$C:$C,$C45,'Stored Data'!$R:$R,L$40,'Stored Data'!$AB:$AB,$B$41)+SUMIFS('Stored Data'!$S:$S,'Stored Data'!$C:$C,$C45,'Stored Data'!$U:$U,L$40,'Stored Data'!$AB:$AB,$B$41)+SUMIFS('Stored Data'!$V:$V,'Stored Data'!$C:$C,$C45,'Stored Data'!$X:$X,L$40,'Stored Data'!$AB:$AB,$B$41)","v":0},null,{"$f":"(SUMIFS('Stored Data'!$D:$D,'Stored Data'!$C:$C,$C45,'Stored Data'!$AB:$AB,$B$41)+SUMIFS('Stored Data'!$G:$G,'Stored Data'!$C:$C,$C45,'Stored Data'!$AB:$AB,$B$41)+SUMIFS('Stored Data'!$J:$J,'Stored Data'!$C:$C,$C45,'Stored Data'!$AB:$AB,$B$41)+SUMIFS('Stored Data'!$M:$M,'Stored Data'!$C:$C,$C45,'Stored Data'!$AB:$AB,$B$41)+SUMIFS('Stored Data'!$P:$P,'Stored Data'!$C:$C,$C45,'Stored Data'!$AB:$AB,$B$41)+SUMIFS('Stored Data'!$S:$S,'Stored Data'!$C:$C,$C45,'Stored Data'!$AB:$AB,$B$41)+SUMIFS('Stored Data'!$V:$V,'Stored Data'!$C:$C,$C45,'Stored Data'!$AB:$AB,$B$41))-SUM(D45:M45)","v":0}]
[null,null,"Total",{"$f":"SUM(D41:E45)","v":0},null,{"$f":"SUM(F41:G45)","v":0},null,{"$f":"SUM(H41:I45)","v":0},null,{"$f":"SUM(J41:K45)","v":0},null,{"$f":"SUM(L41:M45)","v":0},null,{"$f":"SUM(N41:O45)","v":0}]
[null,null,null,"Landfill/solid waste handler",null,"Recycling",null,"Composting",null,"Food bank",null,"In sink disposal ",null,"Other"]
[null,"Kitchen Packaging Waste","Paper",{"$f":"SUMIFS('Stored Data'!$D:$D,'Stored Data'!$C:$C,$C48,'Stored Data'!$E:$E,D$40,'Stored Data'!$AB:$AB,$B$48)+SUMIFS('Stored Data'!$G:$G,'Stored Data'!$C:$C,$C48,'Stored Data'!$H:$H,D$40,'Stored Data'!$AB:$AB,$B$48)+SUMIFS('Stored Data'!$J:$J,'Stored Data'!$C:$C,$C48,'Stored Data'!$K:$K,D$40,'Stored Data'!$AB:$AB,$B$48)+SUMIFS('Stored Data'!$M:$M,'Stored Data'!$C:$C,$C48,'Stored Data'!$N:$N,D$40,'Stored Data'!$AB:$AB,$B$48)+SUMIFS('Stored Data'!$P:$P,'Stored Data'!$C:$C,$C48,'Stored Data'!$Q:$Q,D$40,'Stored Data'!$AB:$AB,$B$48)+SUMIFS('Stored Data'!$S:$S,'Stored Data'!$C:$C,$C48,'Stored Data'!$T:$T,D$40,'Stored Data'!$AB:$AB,$B$48)+SUMIFS('Stored Data'!$V:$V,'Stored Data'!$C:$C,$C48,'Stored Data'!$W:$W,D$40,'Stored Data'!$AB:$AB,$B$48)","v":0},null,{"$f":"SUMIFS('Stored Data'!$D:$D,'Stored Data'!$C:$C,$C48,'Stored Data'!$E:$E,F$40,'Stored Data'!$AB:$AB,$B$48)+SUMIFS('Stored Data'!$G:$G,'Stored Data'!$C:$C,$C48,'Stored Data'!$H:$H,F$40,'Stored Data'!$AB:$AB,$B$48)+SUMIFS('Stored Data'!$J:$J,'Stored Data'!$C:$C,$C48,'Stored Data'!$K:$K,F$40,'Stored Data'!$AB:$AB,$B$48)+SUMIFS('Stored Data'!$M:$M,'Stored Data'!$C:$C,$C48,'Stored Data'!$N:$N,F$40,'Stored Data'!$AB:$AB,$B$48)+SUMIFS('Stored Data'!$P:$P,'Stored Data'!$C:$C,$C48,'Stored Data'!$Q:$Q,F$40,'Stored Data'!$AB:$AB,$B$48)+SUMIFS('Stored Data'!$S:$S,'Stored Data'!$C:$C,$C48,'Stored Data'!$T:$T,F$40,'Stored Data'!$AB:$AB,$B$48)+SUMIFS('Stored Data'!$V:$V,'Stored Data'!$C:$C,$C48,'Stored Data'!$W:$W,F$40,'Stored Data'!$AB:$AB,$B$48)","v":0},null,{"$f":"SUMIFS('Stored Data'!$D:$D,'Stored Data'!$C:$C,$C48,'Stored Data'!$E:$E,H$40,'Stored Data'!$AB:$AB,$B$48)+SUMIFS('Stored Data'!$G:$G,'Stored Data'!$C:$C,$C48,'Stored Data'!$H:$H,H$40,'Stored Data'!$AB:$AB,$B$48)+SUMIFS('Stored Data'!$J:$J,'Stored Data'!$C:$C,$C48,'Stored Data'!$K:$K,H$40,'Stored Data'!$AB:$AB,$B$48)+SUMIFS('Stored Data'!$M:$M,'Stored Data'!$C:$C,$C48,'Stored Data'!$N:$N,H$40,'Stored Data'!$AB:$AB,$B$48)+SUMIFS('Stored Data'!$P:$P,'Stored Data'!$C:$C,$C48,'Stored Data'!$Q:$Q,H$40,'Stored Data'!$AB:$AB,$B$48)+SUMIFS('Stored Data'!$S:$S,'Stored Data'!$C:$C,$C48,'Stored Data'!$T:$T,H$40,'Stored Data'!$AB:$AB,$B$48)+SUMIFS('Stored Data'!$V:$V,'Stored Data'!$C:$C,$C48,'Stored Data'!$W:$W,H$40,'Stored Data'!$AB:$AB,$B$48)","v":0},null,"NA",null,"NA",null,{"$f":"(SUMIFS('Stored Data'!$D:$D,'Stored Data'!$C:$C,$C48,'Stored Data'!$AB:$AB,$B$48)+SUMIFS('Stored Data'!$G:$G,'Stored Data'!$C:$C,$C48,'Stored Data'!$AB:$AB,$B$48)+SUMIFS('Stored Data'!$J:$J,'Stored Data'!$C:$C,$C48,'Stored Data'!$AB:$AB,$B$48)+SUMIFS('Stored Data'!$M:$M,'Stored Data'!$C:$C,$C48,'Stored Data'!$AB:$AB,$B$48)+SUMIFS('Stored Data'!$P:$P,'Stored Data'!$C:$C,$C48,'Stored Data'!$AB:$AB,$B$48)+SUMIFS('Stored Data'!$S:$S,'Stored Data'!$C:$C,$C48,'Stored Data'!$AB:$AB,$B$48)+SUMIFS('Stored Data'!$V:$V,'Stored Data'!$C:$C,$C48,'Stored Data'!$AB:$AB,$B$48))-SUM(D48:I48)","v":0}]
[null,null,"Cardboard",{"$f":"SUMIFS('Stored Data'!$D:$D,'Stored Data'!$C:$C,$C49,'Stored Data'!$E:$E,D$40,'Stored Data'!$AB:$AB,$B$48)+SUMIFS('Stored Data'!$G:$G,'Stored Data'!$C:$C,$C49,'Stored Data'!$H:$H,D$40,'Stored Data'!$AB:$AB,$B$48)+SUMIFS('Stored Data'!$J:$J,'Stored Data'!$C:$C,$C49,'Stored Data'!$K:$K,D$40,'Stored Data'!$AB:$AB,$B$48)+SUMIFS('Stored Data'!$M:$M,'Stored Data'!$C:$C,$C49,'Stored Data'!$N:$N,D$40,'Stored Data'!$AB:$AB,$B$48)+SUMIFS('Stored Data'!$P:$P,'Stored Data'!$C:$C,$C49,'Stored Data'!$Q:$Q,D$40,'Stored Data'!$AB:$AB,$B$48)+SUMIFS('Stored Data'!$S:$S,'Stored Data'!$C:$C,$C49,'Stored Data'!$T:$T,D$40,'Stored Data'!$AB:$AB,$B$48)+SUMIFS('Stored Data'!$V:$V,'Stored Data'!$C:$C,$C49,'Stored Data'!$W:$W,D$40,'Stored Data'!$AB:$AB,$B$48)","v":0},null,{"$f":"SUMIFS('Stored Data'!$D:$D,'Stored Data'!$C:$C,$C49,'Stored Data'!$E:$E,F$40,'Stored Data'!$AB:$AB,$B$48)+SUMIFS('Stored Data'!$G:$G,'Stored Data'!$C:$C,$C49,'Stored Data'!$H:$H,F$40,'Stored Data'!$AB:$AB,$B$48)+SUMIFS('Stored Data'!$J:$J,'Stored Data'!$C:$C,$C49,'Stored Data'!$K:$K,F$40,'Stored Data'!$AB:$AB,$B$48)+SUMIFS('Stored Data'!$M:$M,'Stored Data'!$C:$C,$C49,'Stored Data'!$N:$N,F$40,'Stored Data'!$AB:$AB,$B$48)+SUMIFS('Stored Data'!$P:$P,'Stored Data'!$C:$C,$C49,'Stored Data'!$Q:$Q,F$40,'Stored Data'!$AB:$AB,$B$48)+SUMIFS('Stored Data'!$S:$S,'Stored Data'!$C:$C,$C49,'Stored Data'!$T:$T,F$40,'Stored Data'!$AB:$AB,$B$48)+SUMIFS('Stored Data'!$V:$V,'Stored Data'!$C:$C,$C49,'Stored Data'!$W:$W,F$40,'Stored Data'!$AB:$AB,$B$48)","v":0},null,{"$f":"SUMIFS('Stored Data'!$D:$D,'Stored Data'!$C:$C,$C49,'Stored Data'!$E:$E,H$40,'Stored Data'!$AB:$AB,$B$48)+SUMIFS('Stored Data'!$G:$G,'Stored Data'!$C:$C,$C49,'Stored Data'!$H:$H,H$40,'Stored Data'!$AB:$AB,$B$48)+SUMIFS('Stored Data'!$J:$J,'Stored Data'!$C:$C,$C49,'Stored Data'!$K:$K,H$40,'Stored Data'!$AB:$AB,$B$48)+SUMIFS('Stored Data'!$M:$M,'Stored Data'!$C:$C,$C49,'Stored Data'!$N:$N,H$40,'Stored Data'!$AB:$AB,$B$48)+SUMIFS('Stored Data'!$P:$P,'Stored Data'!$C:$C,$C49,'Stored Data'!$Q:$Q,H$40,'Stored Data'!$AB:$AB,$B$48)+SUMIFS('Stored Data'!$S:$S,'Stored Data'!$C:$C,$C49,'Stored Data'!$T:$T,H$40,'Stored Data'!$AB:$AB,$B$48)+SUMIFS('Stored Data'!$V:$V,'Stored Data'!$C:$C,$C49,'Stored Data'!$W:$W,H$40,'Stored Data'!$AB:$AB,$B$48)","v":0},null,"NA",null,"NA",null,{"$f":"(SUMIFS('Stored Data'!$D:$D,'Stored Data'!$C:$C,$C49,'Stored Data'!$AB:$AB,$B$48)+SUMIFS('Stored Data'!$G:$G,'Stored Data'!$C:$C,$C49,'Stored Data'!$AB:$AB,$B$48)+SUMIFS('Stored Data'!$J:$J,'Stored Data'!$C:$C,$C49,'Stored Data'!$AB:$AB,$B$48)+SUMIFS('Stored Data'!$M:$M,'Stored Data'!$C:$C,$C49,'Stored Data'!$AB:$AB,$B$48)+SUMIFS('Stored Data'!$P:$P,'Stored Data'!$C:$C,$C49,'Stored Data'!$AB:$AB,$B$48)+SUMIFS('Stored Data'!$S:$S,'Stored Data'!$C:$C,$C49,'Stored Data'!$AB:$AB,$B$48)+SUMIFS('Stored Data'!$V:$V,'Stored Data'!$C:$C,$C49,'Stored Data'!$AB:$AB,$B$48))-SUM(D49:I49)","v":0}]
[null,null,"Aluminum",{"$f":"SUMIFS('Stored Data'!$D:$D,'Stored Data'!$C:$C,$C50,'Stored Data'!$E:$E,D$40,'Stored Data'!$AB:$AB,$B$48)+SUMIFS('Stored Data'!$G:$G,'Stored Data'!$C:$C,$C50,'Stored Data'!$H:$H,D$40,'Stored Data'!$AB:$AB,$B$48)+SUMIFS('Stored Data'!$J:$J,'Stored Data'!$C:$C,$C50,'Stored Data'!$K:$K,D$40,'Stored Data'!$AB:$AB,$B$48)+SUMIFS('Stored Data'!$M:$M,'Stored Data'!$C:$C,$C50,'Stored Data'!$N:$N,D$40,'Stored Data'!$AB:$AB,$B$48)+SUMIFS('Stored Data'!$P:$P,'Stored Data'!$C:$C,$C50,'Stored Data'!$Q:$Q,D$40,'Stored Data'!$AB:$AB,$B$48)+SUMIFS('Stored Data'!$S:$S,'Stored Data'!$C:$C,$C50,'Stored Data'!$T:$T,D$40,'Stored Data'!$AB:$AB,$B$48)+SUMIFS('Stored Data'!$V:$V,'Stored Data'!$C:$C,$C50,'Stored Data'!$W:$W,D$40,'Stored Data'!$AB:$AB,$B$48)","v":0},null,{"$f":"SUMIFS('Stored Data'!$D:$D,'Stored Data'!$C:$C,$C50,'Stored Data'!$E:$E,F$40,'Stored Data'!$AB:$AB,$B$48)+SUMIFS('Stored Data'!$G:$G,'Stored Data'!$C:$C,$C50,'Stored Data'!$H:$H,F$40,'Stored Data'!$AB:$AB,$B$48)+SUMIFS('Stored Data'!$J:$J,'Stored Data'!$C:$C,$C50,'Stored Data'!$K:$K,F$40,'Stored Data'!$AB:$AB,$B$48)+SUMIFS('Stored Data'!$M:$M,'Stored Data'!$C:$C,$C50,'Stored Data'!$N:$N,F$40,'Stored Data'!$AB:$AB,$B$48)+SUMIFS('Stored Data'!$P:$P,'Stored Data'!$C:$C,$C50,'Stored Data'!$Q:$Q,F$40,'Stored Data'!$AB:$AB,$B$48)+SUMIFS('Stored Data'!$S:$S,'Stored Data'!$C:$C,$C50,'Stored Data'!$T:$T,F$40,'Stored Data'!$AB:$AB,$B$48)+SUMIFS('Stored Data'!$V:$V,'Stored Data'!$C:$C,$C50,'Stored Data'!$W:$W,F$40,'Stored Data'!$AB:$AB,$B$48)","v":0},null,{"$f":"SUMIFS('Stored Data'!$D:$D,'Stored Data'!$C:$C,$C50,'Stored Data'!$E:$E,H$40,'Stored Data'!$AB:$AB,$B$48)+SUMIFS('Stored Data'!$G:$G,'Stored Data'!$C:$C,$C50,'Stored Data'!$H:$H,H$40,'Stored Data'!$AB:$AB,$B$48)+SUMIFS('Stored Data'!$J:$J,'Stored Data'!$C:$C,$C50,'Stored Data'!$K:$K,H$40,'Stored Data'!$AB:$AB,$B$48)+SUMIFS('Stored Data'!$M:$M,'Stored Data'!$C:$C,$C50,'Stored Data'!$N:$N,H$40,'Stored Data'!$AB:$AB,$B$48)+SUMIFS('Stored Data'!$P:$P,'Stored Data'!$C:$C,$C50,'Stored Data'!$Q:$Q,H$40,'Stored Data'!$AB:$AB,$B$48)+SUMIFS('Stored Data'!$S:$S,'Stored Data'!$C:$C,$C50,'Stored Data'!$T:$T,H$40,'Stored Data'!$AB:$AB,$B$48)+SUMIFS('Stored Data'!$V:$V,'Stored Data'!$C:$C,$C50,'Stored Data'!$W:$W,H$40,'Stored Data'!$AB:$AB,$B$48)","v":0},null,"NA",null,"NA",null,{"$f":"(SUMIFS('Stored Data'!$D:$D,'Stored Data'!$C:$C,$C50,'Stored Data'!$AB:$AB,$B$48)+SUMIFS('Stored Data'!$G:$G,'Stored Data'!$C:$C,$C50,'Stored Data'!$AB:$AB,$B$48)+SUMIFS('Stored Data'!$J:$J,'Stored Data'!$C:$C,$C50,'Stored Data'!$AB:$AB,$B$48)+SUMIFS('Stored Data'!$M:$M,'Stored Data'!$C:$C,$C50,'Stored Data'!$AB:$AB,$B$48)+SUMIFS('Stored Data'!$P:$P,'Stored Data'!$C:$C,$C50,'Stored Data'!$AB:$AB,$B$48)+SUMIFS('Stored Data'!$S:$S,'Stored Data'!$C:$C,$C50,'Stored Data'!$AB:$AB,$B$48)+SUMIFS('Stored Data'!$V:$V,'Stored Data'!$C:$C,$C50,'Stored Data'!$AB:$AB,$B$48))-SUM(D50:I50)","v":0}]
[null,null,"Steel",{"$f":"SUMIFS('Stored Data'!$D:$D,'Stored Data'!$C:$C,$C51,'Stored Data'!$E:$E,D$40,'Stored Data'!$AB:$AB,$B$48)+SUMIFS('Stored Data'!$G:$G,'Stored Data'!$C:$C,$C51,'Stored Data'!$H:$H,D$40,'Stored Data'!$AB:$AB,$B$48)+SUMIFS('Stored Data'!$J:$J,'Stored Data'!$C:$C,$C51,'Stored Data'!$K:$K,D$40,'Stored Data'!$AB:$AB,$B$48)+SUMIFS('Stored Data'!$M:$M,'Stored Data'!$C:$C,$C51,'Stored Data'!$N:$N,D$40,'Stored Data'!$AB:$AB,$B$48)+SUMIFS('Stored Data'!$P:$P,'Stored Data'!$C:$C,$C51,'Stored Data'!$Q:$Q,D$40,'Stored Data'!$AB:$AB,$B$48)+SUMIFS('Stored Data'!$S:$S,'Stored Data'!$C:$C,$C51,'Stored Data'!$T:$T,D$40,'Stored Data'!$AB:$AB,$B$48)+SUMIFS('Stored Data'!$V:$V,'Stored Data'!$C:$C,$C51,'Stored Data'!$W:$W,D$40,'Stored Data'!$AB:$AB,$B$48)","v":0},null,{"$f":"SUMIFS('Stored Data'!$D:$D,'Stored Data'!$C:$C,$C51,'Stored Data'!$E:$E,F$40,'Stored Data'!$AB:$AB,$B$48)+SUMIFS('Stored Data'!$G:$G,'Stored Data'!$C:$C,$C51,'Stored Data'!$H:$H,F$40,'Stored Data'!$AB:$AB,$B$48)+SUMIFS('Stored Data'!$J:$J,'Stored Data'!$C:$C,$C51,'Stored Data'!$K:$K,F$40,'Stored Data'!$AB:$AB,$B$48)+SUMIFS('Stored Data'!$M:$M,'Stored Data'!$C:$C,$C51,'Stored Data'!$N:$N,F$40,'Stored Data'!$AB:$AB,$B$48)+SUMIFS('Stored Data'!$P:$P,'Stored Data'!$C:$C,$C51,'Stored Data'!$Q:$Q,F$40,'Stored Data'!$AB:$AB,$B$48)+SUMIFS('Stored Data'!$S:$S,'Stored Data'!$C:$C,$C51,'Stored Data'!$T:$T,F$40,'Stored Data'!$AB:$AB,$B$48)+SUMIFS('Stored Data'!$V:$V,'Stored Data'!$C:$C,$C51,'Stored Data'!$W:$W,F$40,'Stored Data'!$AB:$AB,$B$48)","v":0},null,{"$f":"SUMIFS('Stored Data'!$D:$D,'Stored Data'!$C:$C,$C51,'Stored Data'!$E:$E,H$40,'Stored Data'!$AB:$AB,$B$48)+SUMIFS('Stored Data'!$G:$G,'Stored Data'!$C:$C,$C51,'Stored Data'!$H:$H,H$40,'Stored Data'!$AB:$AB,$B$48)+SUMIFS('Stored Data'!$J:$J,'Stored Data'!$C:$C,$C51,'Stored Data'!$K:$K,H$40,'Stored Data'!$AB:$AB,$B$48)+SUMIFS('Stored Data'!$M:$M,'Stored Data'!$C:$C,$C51,'Stored Data'!$N:$N,H$40,'Stored Data'!$AB:$AB,$B$48)+SUMIFS('Stored Data'!$P:$P,'Stored Data'!$C:$C,$C51,'Stored Data'!$Q:$Q,H$40,'Stored Data'!$AB:$AB,$B$48)+SUMIFS('Stored Data'!$S:$S,'Stored Data'!$C:$C,$C51,'Stored Data'!$T:$T,H$40,'Stored Data'!$AB:$AB,$B$48)+SUMIFS('Stored Data'!$V:$V,'Stored Data'!$C:$C,$C51,'Stored Data'!$W:$W,H$40,'Stored Data'!$AB:$AB,$B$48)","v":0},null,"NA",null,"NA",null,{"$f":"(SUMIFS('Stored Data'!$D:$D,'Stored Data'!$C:$C,$C51,'Stored Data'!$AB:$AB,$B$48)+SUMIFS('Stored Data'!$G:$G,'Stored Data'!$C:$C,$C51,'Stored Data'!$AB:$AB,$B$48)+SUMIFS('Stored Data'!$J:$J,'Stored Data'!$C:$C,$C51,'Stored Data'!$AB:$AB,$B$48)+SUMIFS('Stored Data'!$M:$M,'Stored Data'!$C:$C,$C51,'Stored Data'!$AB:$AB,$B$48)+SUMIFS('Stored Data'!$P:$P,'Stored Data'!$C:$C,$C51,'Stored Data'!$AB:$AB,$B$48)+SUMIFS('Stored Data'!$S:$S,'Stored Data'!$C:$C,$C51,'Stored Data'!$AB:$AB,$B$48)+SUMIFS('Stored Data'!$V:$V,'Stored Data'!$C:$C,$C51,'Stored Data'!$AB:$AB,$B$48))-SUM(D51:I51)","v":0}]
[null,null,"Container plastic",{"$f":"SUMIFS('Stored Data'!$D:$D,'Stored Data'!$C:$C,$C52,'Stored Data'!$E:$E,D$40,'Stored Data'!$AB:$AB,$B$48)+SUMIFS('Stored Data'!$G:$G,'Stored Data'!$C:$C,$C52,'Stored Data'!$H:$H,D$40,'Stored Data'!$AB:$AB,$B$48)+SUMIFS('Stored Data'!$J:$J,'Stored Data'!$C:$C,$C52,'Stored Data'!$K:$K,D$40,'Stored Data'!$AB:$AB,$B$48)+SUMIFS('Stored Data'!$M:$M,'Stored Data'!$C:$C,$C52,'Stored Data'!$N:$N,D$40,'Stored Data'!$AB:$AB,$B$48)+SUMIFS('Stored Data'!$P:$P,'Stored Data'!$C:$C,$C52,'Stored Data'!$Q:$Q,D$40,'Stored Data'!$AB:$AB,$B$48)+SUMIFS('Stored Data'!$S:$S,'Stored Data'!$C:$C,$C52,'Stored Data'!$T:$T,D$40,'Stored Data'!$AB:$AB,$B$48)+SUMIFS('Stored Data'!$V:$V,'Stored Data'!$C:$C,$C52,'Stored Data'!$W:$W,D$40,'Stored Data'!$AB:$AB,$B$48)","v":0},null,{"$f":"SUMIFS('Stored Data'!$D:$D,'Stored Data'!$C:$C,$C52,'Stored Data'!$E:$E,F$40,'Stored Data'!$AB:$AB,$B$48)+SUMIFS('Stored Data'!$G:$G,'Stored Data'!$C:$C,$C52,'Stored Data'!$H:$H,F$40,'Stored Data'!$AB:$AB,$B$48)+SUMIFS('Stored Data'!$J:$J,'Stored Data'!$C:$C,$C52,'Stored Data'!$K:$K,F$40,'Stored Data'!$AB:$AB,$B$48)+SUMIFS('Stored Data'!$M:$M,'Stored Data'!$C:$C,$C52,'Stored Data'!$N:$N,F$40,'Stored Data'!$AB:$AB,$B$48)+SUMIFS('Stored Data'!$P:$P,'Stored Data'!$C:$C,$C52,'Stored Data'!$Q:$Q,F$40,'Stored Data'!$AB:$AB,$B$48)+SUMIFS('Stored Data'!$S:$S,'Stored Data'!$C:$C,$C52,'Stored Data'!$T:$T,F$40,'Stored Data'!$AB:$AB,$B$48)+SUMIFS('Stored Data'!$V:$V,'Stored Data'!$C:$C,$C52,'Stored Data'!$W:$W,F$40,'Stored Data'!$AB:$AB,$B$48)","v":0},null,{"$f":"SUMIFS('Stored Data'!$D:$D,'Stored Data'!$C:$C,$C52,'Stored Data'!$E:$E,H$40,'Stored Data'!$AB:$AB,$B$48)+SUMIFS('Stored Data'!$G:$G,'Stored Data'!$C:$C,$C52,'Stored Data'!$H:$H,H$40,'Stored Data'!$AB:$AB,$B$48)+SUMIFS('Stored Data'!$J:$J,'Stored Data'!$C:$C,$C52,'Stored Data'!$K:$K,H$40,'Stored Data'!$AB:$AB,$B$48)+SUMIFS('Stored Data'!$M:$M,'Stored Data'!$C:$C,$C52,'Stored Data'!$N:$N,H$40,'Stored Data'!$AB:$AB,$B$48)+SUMIFS('Stored Data'!$P:$P,'Stored Data'!$C:$C,$C52,'Stored Data'!$Q:$Q,H$40,'Stored Data'!$AB:$AB,$B$48)+SUMIFS('Stored Data'!$S:$S,'Stored Data'!$C:$C,$C52,'Stored Data'!$T:$T,H$40,'Stored Data'!$AB:$AB,$B$48)+SUMIFS('Stored Data'!$V:$V,'Stored Data'!$C:$C,$C52,'Stored Data'!$W:$W,H$40,'Stored Data'!$AB:$AB,$B$48)","v":0},null,"NA",null,"NA",null,{"$f":"(SUMIFS('Stored Data'!$D:$D,'Stored Data'!$C:$C,$C52,'Stored Data'!$AB:$AB,$B$48)+SUMIFS('Stored Data'!$G:$G,'Stored Data'!$C:$C,$C52,'Stored Data'!$AB:$AB,$B$48)+SUMIFS('Stored Data'!$J:$J,'Stored Data'!$C:$C,$C52,'Stored Data'!$AB:$AB,$B$48)+SUMIFS('Stored Data'!$M:$M,'Stored Data'!$C:$C,$C52,'Stored Data'!$AB:$AB,$B$48)+SUMIFS('Stored Data'!$P:$P,'Stored Data'!$C:$C,$C52,'Stored Data'!$AB:$AB,$B$48)+SUMIFS('Stored Data'!$S:$S,'Stored Data'!$C:$C,$C52,'Stored Data'!$AB:$AB,$B$48)+SUMIFS('Stored Data'!$V:$V,'Stored Data'!$C:$C,$C52,'Stored Data'!$AB:$AB,$B$48))-SUM(D52:I52)","v":0}]
[null,null,"Other plastic",{"$f":"SUMIFS('Stored Data'!$D:$D,'Stored Data'!$C:$C,$C53,'Stored Data'!$E:$E,D$40,'Stored Data'!$AB:$AB,$B$48)+SUMIFS('Stored Data'!$G:$G,'Stored Data'!$C:$C,$C53,'Stored Data'!$H:$H,D$40,'Stored Data'!$AB:$AB,$B$48)+SUMIFS('Stored Data'!$J:$J,'Stored Data'!$C:$C,$C53,'Stored Data'!$K:$K,D$40,'Stored Data'!$AB:$AB,$B$48)+SUMIFS('Stored Data'!$M:$M,'Stored Data'!$C:$C,$C53,'Stored Data'!$N:$N,D$40,'Stored Data'!$AB:$AB,$B$48)+SUMIFS('Stored Data'!$P:$P,'Stored Data'!$C:$C,$C53,'Stored Data'!$Q:$Q,D$40,'Stored Data'!$AB:$AB,$B$48)+SUMIFS('Stored Data'!$S:$S,'Stored Data'!$C:$C,$C53,'Stored Data'!$T:$T,D$40,'Stored Data'!$AB:$AB,$B$48)+SUMIFS('Stored Data'!$V:$V,'Stored Data'!$C:$C,$C53,'Stored Data'!$W:$W,D$40,'Stored Data'!$AB:$AB,$B$48)","v":0},null,{"$f":"SUMIFS('Stored Data'!$D:$D,'Stored Data'!$C:$C,$C53,'Stored Data'!$E:$E,F$40,'Stored Data'!$AB:$AB,$B$48)+SUMIFS('Stored Data'!$G:$G,'Stored Data'!$C:$C,$C53,'Stored Data'!$H:$H,F$40,'Stored Data'!$AB:$AB,$B$48)+SUMIFS('Stored Data'!$J:$J,'Stored Data'!$C:$C,$C53,'Stored Data'!$K:$K,F$40,'Stored Data'!$AB:$AB,$B$48)+SUMIFS('Stored Data'!$M:$M,'Stored Data'!$C:$C,$C53,'Stored Data'!$N:$N,F$40,'Stored Data'!$AB:$AB,$B$48)+SUMIFS('Stored Data'!$P:$P,'Stored Data'!$C:$C,$C53,'Stored Data'!$Q:$Q,F$40,'Stored Data'!$AB:$AB,$B$48)+SUMIFS('Stored Data'!$S:$S,'Stored Data'!$C:$C,$C53,'Stored Data'!$T:$T,F$40,'Stored Data'!$AB:$AB,$B$48)+SUMIFS('Stored Data'!$V:$V,'Stored Data'!$C:$C,$C53,'Stored Data'!$W:$W,F$40,'Stored Data'!$AB:$AB,$B$48)","v":0},null,{"$f":"SUMIFS('Stored Data'!$D:$D,'Stored Data'!$C:$C,$C53,'Stored Data'!$E:$E,H$40,'Stored Data'!$AB:$AB,$B$48)+SUMIFS('Stored Data'!$G:$G,'Stored Data'!$C:$C,$C53,'Stored Data'!$H:$H,H$40,'Stored Data'!$AB:$AB,$B$48)+SUMIFS('Stored Data'!$J:$J,'Stored Data'!$C:$C,$C53,'Stored Data'!$K:$K,H$40,'Stored Data'!$AB:$AB,$B$48)+SUMIFS('Stored Data'!$M:$M,'Stored Data'!$C:$C,$C53,'Stored Data'!$N:$N,H$40,'Stored Data'!$AB:$AB,$B$48)+SUMIFS('Stored Data'!$P:$P,'Stored Data'!$C:$C,$C53,'Stored Data'!$Q:$Q,H$40,'Stored Data'!$AB:$AB,$B$48)+SUMIFS('Stored Data'!$S:$S,'Stored Data'!$C:$C,$C53,'Stored Data'!$T:$T,H$40,'Stored Data'!$AB:$AB,$B$48)+SUMIFS('Stored Data'!$V:$V,'Stored Data'!$C:$C,$C53,'Stored Data'!$W:$W,H$40,'Stored Data'!$AB:$AB,$B$48)","v":0},null,"NA",null,"NA",null,{"$f":"(SUMIFS('Stored Data'!$D:$D,'Stored Data'!$C:$C,$C53,'Stored Data'!$AB:$AB,$B$48)+SUMIFS('Stored Data'!$G:$G,'Stored Data'!$C:$C,$C53,'Stored Data'!$AB:$AB,$B$48)+SUMIFS('Stored Data'!$J:$J,'Stored Data'!$C:$C,$C53,'Stored Data'!$AB:$AB,$B$48)+SUMIFS('Stored Data'!$M:$M,'Stored Data'!$C:$C,$C53,'Stored Data'!$AB:$AB,$B$48)+SUMIFS('Stored Data'!$P:$P,'Stored Data'!$C:$C,$C53,'Stored Data'!$AB:$AB,$B$48)+SUMIFS('Stored Data'!$S:$S,'Stored Data'!$C:$C,$C53,'Stored Data'!$AB:$AB,$B$48)+SUMIFS('Stored Data'!$V:$V,'Stored Data'!$C:$C,$C53,'Stored Data'!$AB:$AB,$B$48))-SUM(D53:I53)","v":0}]
[null,null,"Glass",{"$f":"SUMIFS('Stored Data'!$D:$D,'Stored Data'!$C:$C,$C54,'Stored Data'!$E:$E,D$40,'Stored Data'!$AB:$AB,$B$48)+SUMIFS('Stored Data'!$G:$G,'Stored Data'!$C:$C,$C54,'Stored Data'!$H:$H,D$40,'Stored Data'!$AB:$AB,$B$48)+SUMIFS('Stored Data'!$J:$J,'Stored Data'!$C:$C,$C54,'Stored Data'!$K:$K,D$40,'Stored Data'!$AB:$AB,$B$48)+SUMIFS('Stored Data'!$M:$M,'Stored Data'!$C:$C,$C54,'Stored Data'!$N:$N,D$40,'Stored Data'!$AB:$AB,$B$48)+SUMIFS('Stored Data'!$P:$P,'Stored Data'!$C:$C,$C54,'Stored Data'!$Q:$Q,D$40,'Stored Data'!$AB:$AB,$B$48)+SUMIFS('Stored Data'!$S:$S,'Stored Data'!$C:$C,$C54,'Stored Data'!$T:$T,D$40,'Stored Data'!$AB:$AB,$B$48)+SUMIFS('Stored Data'!$V:$V,'Stored Data'!$C:$C,$C54,'Stored Data'!$W:$W,D$40,'Stored Data'!$AB:$AB,$B$48)","v":0},null,{"$f":"SUMIFS('Stored Data'!$D:$D,'Stored Data'!$C:$C,$C54,'Stored Data'!$E:$E,F$40,'Stored Data'!$AB:$AB,$B$48)+SUMIFS('Stored Data'!$G:$G,'Stored Data'!$C:$C,$C54,'Stored Data'!$H:$H,F$40,'Stored Data'!$AB:$AB,$B$48)+SUMIFS('Stored Data'!$J:$J,'Stored Data'!$C:$C,$C54,'Stored Data'!$K:$K,F$40,'Stored Data'!$AB:$AB,$B$48)+SUMIFS('Stored Data'!$M:$M,'Stored Data'!$C:$C,$C54,'Stored Data'!$N:$N,F$40,'Stored Data'!$AB:$AB,$B$48)+SUMIFS('Stored Data'!$P:$P,'Stored Data'!$C:$C,$C54,'Stored Data'!$Q:$Q,F$40,'Stored Data'!$AB:$AB,$B$48)+SUMIFS('Stored Data'!$S:$S,'Stored Data'!$C:$C,$C54,'Stored Data'!$T:$T,F$40,'Stored Data'!$AB:$AB,$B$48)+SUMIFS('Stored Data'!$V:$V,'Stored Data'!$C:$C,$C54,'Stored Data'!$W:$W,F$40,'Stored Data'!$AB:$AB,$B$48)","v":0},null,{"$f":"SUMIFS('Stored Data'!$D:$D,'Stored Data'!$C:$C,$C54,'Stored Data'!$E:$E,H$40,'Stored Data'!$AB:$AB,$B$48)+SUMIFS('Stored Data'!$G:$G,'Stored Data'!$C:$C,$C54,'Stored Data'!$H:$H,H$40,'Stored Data'!$AB:$AB,$B$48)+SUMIFS('Stored Data'!$J:$J,'Stored Data'!$C:$C,$C54,'Stored Data'!$K:$K,H$40,'Stored Data'!$AB:$AB,$B$48)+SUMIFS('Stored Data'!$M:$M,'Stored Data'!$C:$C,$C54,'Stored Data'!$N:$N,H$40,'Stored Data'!$AB:$AB,$B$48)+SUMIFS('Stored Data'!$P:$P,'Stored Data'!$C:$C,$C54,'Stored Data'!$Q:$Q,H$40,'Stored Data'!$AB:$AB,$B$48)+SUMIFS('Stored Data'!$S:$S,'Stored Data'!$C:$C,$C54,'Stored Data'!$T:$T,H$40,'Stored Data'!$AB:$AB,$B$48)+SUMIFS('Stored Data'!$V:$V,'Stored Data'!$C:$C,$C54,'Stored Data'!$W:$W,H$40,'Stored Data'!$AB:$AB,$B$48)","v":0},null,"NA",null,"NA",null,{"$f":"(SUMIFS('Stored Data'!$D:$D,'Stored Data'!$C:$C,$C54,'Stored Data'!$AB:$AB,$B$48)+SUMIFS('Stored Data'!$G:$G,'Stored Data'!$C:$C,$C54,'Stored Data'!$AB:$AB,$B$48)+SUMIFS('Stored Data'!$J:$J,'Stored Data'!$C:$C,$C54,'Stored Data'!$AB:$AB,$B$48)+SUMIFS('Stored Data'!$M:$M,'Stored Data'!$C:$C,$C54,'Stored Data'!$AB:$AB,$B$48)+SUMIFS('Stored Data'!$P:$P,'Stored Data'!$C:$C,$C54,'Stored Data'!$AB:$AB,$B$48)+SUMIFS('Stored Data'!$S:$S,'Stored Data'!$C:$C,$C54,'Stored Data'!$AB:$AB,$B$48)+SUMIFS('Stored Data'!$V:$V,'Stored Data'!$C:$C,$C54,'Stored Data'!$AB:$AB,$B$48))-SUM(D54:I54)","v":0}]
[null,null,"Other",{"$f":"SUMIFS('Stored Data'!$D:$D,'Stored Data'!$C:$C,$C55,'Stored Data'!$E:$E,D$40,'Stored Data'!$AB:$AB,$B$48)+SUMIFS('Stored Data'!$G:$G,'Stored Data'!$C:$C,$C55,'Stored Data'!$H:$H,D$40,'Stored Data'!$AB:$AB,$B$48)+SUMIFS('Stored Data'!$J:$J,'Stored Data'!$C:$C,$C55,'Stored Data'!$K:$K,D$40,'Stored Data'!$AB:$AB,$B$48)+SUMIFS('Stored Data'!$M:$M,'Stored Data'!$C:$C,$C55,'Stored Data'!$N:$N,D$40,'Stored Data'!$AB:$AB,$B$48)+SUMIFS('Stored Data'!$P:$P,'Stored Data'!$C:$C,$C55,'Stored Data'!$Q:$Q,D$40,'Stored Data'!$AB:$AB,$B$48)+SUMIFS('Stored Data'!$S:$S,'Stored Data'!$C:$C,$C55,'Stored Data'!$T:$T,D$40,'Stored Data'!$AB:$AB,$B$48)+SUMIFS('Stored Data'!$V:$V,'Stored Data'!$C:$C,$C55,'Stored Data'!$W:$W,D$40,'Stored Data'!$AB:$AB,$B$48)","v":0},null,{"$f":"SUMIFS('Stored Data'!$D:$D,'Stored Data'!$C:$C,$C55,'Stored Data'!$E:$E,F$40,'Stored Data'!$AB:$AB,$B$48)+SUMIFS('Stored Data'!$G:$G,'Stored Data'!$C:$C,$C55,'Stored Data'!$H:$H,F$40,'Stored Data'!$AB:$AB,$B$48)+SUMIFS('Stored Data'!$J:$J,'Stored Data'!$C:$C,$C55,'Stored Data'!$K:$K,F$40,'Stored Data'!$AB:$AB,$B$48)+SUMIFS('Stored Data'!$M:$M,'Stored Data'!$C:$C,$C55,'Stored Data'!$N:$N,F$40,'Stored Data'!$AB:$AB,$B$48)+SUMIFS('Stored Data'!$P:$P,'Stored Data'!$C:$C,$C55,'Stored Data'!$Q:$Q,F$40,'Stored Data'!$AB:$AB,$B$48)+SUMIFS('Stored Data'!$S:$S,'Stored Data'!$C:$C,$C55,'Stored Data'!$T:$T,F$40,'Stored Data'!$AB:$AB,$B$48)+SUMIFS('Stored Data'!$V:$V,'Stored Data'!$C:$C,$C55,'Stored Data'!$W:$W,F$40,'Stored Data'!$AB:$AB,$B$48)","v":0},null,{"$f":"SUMIFS('Stored Data'!$D:$D,'Stored Data'!$C:$C,$C55,'Stored Data'!$E:$E,H$40,'Stored Data'!$AB:$AB,$B$48)+SUMIFS('Stored Data'!$G:$G,'Stored Data'!$C:$C,$C55,'Stored Data'!$H:$H,H$40,'Stored Data'!$AB:$AB,$B$48)+SUMIFS('Stored Data'!$J:$J,'Stored Data'!$C:$C,$C55,'Stored Data'!$K:$K,H$40,'Stored Data'!$AB:$AB,$B$48)+SUMIFS('Stored Data'!$M:$M,'Stored Data'!$C:$C,$C55,'Stored Data'!$N:$N,H$40,'Stored Data'!$AB:$AB,$B$48)+SUMIFS('Stored Data'!$P:$P,'Stored Data'!$C:$C,$C55,'Stored Data'!$Q:$Q,H$40,'Stored Data'!$AB:$AB,$B$48)+SUMIFS('Stored Data'!$S:$S,'Stored Data'!$C:$C,$C55,'Stored Data'!$T:$T,H$40,'Stored Data'!$AB:$AB,$B$48)+SUMIFS('Stored Data'!$V:$V,'Stored Data'!$C:$C,$C55,'Stored Data'!$W:$W,H$40,'Stored Data'!$AB:$AB,$B$48)","v":0},null,"NA",null,"NA",null,{"$f":"(SUMIFS('Stored Data'!$D:$D,'Stored Data'!$C:$C,$C55,'Stored Data'!$AB:$AB,$B$48)+SUMIFS('Stored Data'!$G:$G,'Stored Data'!$C:$C,$C55,'Stored Data'!$AB:$AB,$B$48)+SUMIFS('Stored Data'!$J:$J,'Stored Data'!$C:$C,$C55,'Stored Data'!$AB:$AB,$B$48)+SUMIFS('Stored Data'!$M:$M,'Stored Data'!$C:$C,$C55,'Stored Data'!$AB:$AB,$B$48)+SUMIFS('Stored Data'!$P:$P,'Stored Data'!$C:$C,$C55,'Stored Data'!$AB:$AB,$B$48)+SUMIFS('Stored Data'!$S:$S,'Stored Data'!$C:$C,$C55,'Stored Data'!$AB:$AB,$B$48)+SUMIFS('Stored Data'!$V:$V,'Stored Data'!$C:$C,$C55,'Stored Data'!$AB:$AB,$B$48))-SUM(D55:I55)","v":0}]
[null,null,"Total",{"$f":"SUM(D48:E55)","v":0},null,{"$f":"SUM(F48:G55)","v":0},null,{"$f":"SUM(H48:I55)","v":0},null,"NA",null,"NA",null,{"$f":"SUM(N48:O55)","v":0}]
[null,null,null,"Landfill/solid waste handler",null,"Recycling",null,"Composting",null,"Food bank",null,"In sink disposal ",null,"Other"]
[null,"Plate Waste","Food waste",{"$f":"SUMIFS('Stored Data'!$D:$D,'Stored Data'!$C:$C,$C58,'Stored Data'!$E:$E,D$40,'Stored Data'!$AB:$AB,$B$58)+SUMIFS('Stored Data'!$G:$G,'Stored Data'!$C:$C,$C58,'Stored Data'!$H:$H,D$40,'Stored Data'!$AB:$AB,$B$58)+SUMIFS('Stored Data'!$J:$J,'Stored Data'!$C:$C,$C58,'Stored Data'!$K:$K,D$40,'Stored Data'!$AB:$AB,$B$58)+SUMIFS('Stored Data'!$M:$M,'Stored Data'!$C:$C,$C58,'Stored Data'!$N:$N,D$40,'Stored Data'!$AB:$AB,$B$58)+SUMIFS('Stored Data'!$P:$P,'Stored Data'!$C:$C,$C58,'Stored Data'!$Q:$Q,D$40,'Stored Data'!$AB:$AB,$B$58)+SUMIFS('Stored Data'!$S:$S,'Stored Data'!$C:$C,$C58,'Stored Data'!$T:$T,D$40,'Stored Data'!$AB:$AB,$B$58)+SUMIFS('Stored Data'!$V:$V,'Stored Data'!$C:$C,$C58,'Stored Data'!$W:$W,D$40,'Stored Data'!$AB:$AB,$B$58)","v":0},null,{"$f":"SUMIFS('Stored Data'!$D:$D,'Stored Data'!$C:$C,$C58,'Stored Data'!$E:$E,F$40,'Stored Data'!$AB:$AB,$B$58)+SUMIFS('Stored Data'!$G:$G,'Stored Data'!$C:$C,$C58,'Stored Data'!$H:$H,F$40,'Stored Data'!$AB:$AB,$B$58)+SUMIFS('Stored Data'!$J:$J,'Stored Data'!$C:$C,$C58,'Stored Data'!$K:$K,F$40,'Stored Data'!$AB:$AB,$B$58)+SUMIFS('Stored Data'!$M:$M,'Stored Data'!$C:$C,$C58,'Stored Data'!$N:$N,F$40,'Stored Data'!$AB:$AB,$B$58)+SUMIFS('Stored Data'!$P:$P,'Stored Data'!$C:$C,$C58,'Stored Data'!$Q:$Q,F$40,'Stored Data'!$AB:$AB,$B$58)+SUMIFS('Stored Data'!$S:$S,'Stored Data'!$C:$C,$C58,'Stored Data'!$T:$T,F$40,'Stored Data'!$AB:$AB,$B$58)+SUMIFS('Stored Data'!$V:$V,'Stored Data'!$C:$C,$C58,'Stored Data'!$W:$W,F$40,'Stored Data'!$AB:$AB,$B$58)","v":0},null,{"$f":"SUMIFS('Stored Data'!$D:$D,'Stored Data'!$C:$C,$C58,'Stored Data'!$E:$E,H$40,'Stored Data'!$AB:$AB,$B$58)+SUMIFS('Stored Data'!$G:$G,'Stored Data'!$C:$C,$C58,'Stored Data'!$H:$H,H$40,'Stored Data'!$AB:$AB,$B$58)+SUMIFS('Stored Data'!$J:$J,'Stored Data'!$C:$C,$C58,'Stored Data'!$K:$K,H$40,'Stored Data'!$AB:$AB,$B$58)+SUMIFS('Stored Data'!$M:$M,'Stored Data'!$C:$C,$C58,'Stored Data'!$N:$N,H$40,'Stored Data'!$AB:$AB,$B$58)+SUMIFS('Stored Data'!$P:$P,'Stored Data'!$C:$C,$C58,'Stored Data'!$Q:$Q,H$40,'Stored Data'!$AB:$AB,$B$58)+SUMIFS('Stored Data'!$S:$S,'Stored Data'!$C:$C,$C58,'Stored Data'!$T:$T,H$40,'Stored Data'!$AB:$AB,$B$58)+SUMIFS('Stored Data'!$V:$V,'Stored Data'!$C:$C,$C58,'Stored Data'!$W:$W,H$40,'Stored Data'!$AB:$AB,$B$58)","v":0},null,{"$f":"SUMIFS('Stored Data'!$D:$D,'Stored Data'!$C:$C,$C58,'Stored Data'!$E:$E,J$40,'Stored Data'!$AB:$AB,$B$58)+SUMIFS('Stored Data'!$G:$G,'Stored Data'!$C:$C,$C58,'Stored Data'!$H:$H,J$40,'Stored Data'!$AB:$AB,$B$58)+SUMIFS('Stored Data'!$J:$J,'Stored Data'!$C:$C,$C58,'Stored Data'!$K:$K,J$40,'Stored Data'!$AB:$AB,$B$58)+SUMIFS('Stored Data'!$M:$M,'Stored Data'!$C:$C,$C58,'Stored Data'!$N:$N,J$40,'Stored Data'!$AB:$AB,$B$58)+SUMIFS('Stored Data'!$P:$P,'Stored Data'!$C:$C,$C58,'Stored Data'!$Q:$Q,J$40,'Stored Data'!$AB:$AB,$B$58)+SUMIFS('Stored Data'!$S:$S,'Stored Data'!$C:$C,$C58,'Stored Data'!$T:$T,J$40,'Stored Data'!$AB:$AB,$B$58)+SUMIFS('Stored Data'!$V:$V,'Stored Data'!$C:$C,$C58,'Stored Data'!$W:$W,J$40,'Stored Data'!$AB:$AB,$B$58)","v":0},null,{"$f":"SUMIFS('Stored Data'!$D:$D,'Stored Data'!$C:$C,$C58,'Stored Data'!$E:$E,L$40,'Stored Data'!$AB:$AB,$B$58)+SUMIFS('Stored Data'!$G:$G,'Stored Data'!$C:$C,$C58,'Stored Data'!$H:$H,L$40,'Stored Data'!$AB:$AB,$B$58)+SUMIFS('Stored Data'!$J:$J,'Stored Data'!$C:$C,$C58,'Stored Data'!$K:$K,L$40,'Stored Data'!$AB:$AB,$B$58)+SUMIFS('Stored Data'!$M:$M,'Stored Data'!$C:$C,$C58,'Stored Data'!$N:$N,L$40,'Stored Data'!$AB:$AB,$B$58)+SUMIFS('Stored Data'!$P:$P,'Stored Data'!$C:$C,$C58,'Stored Data'!$Q:$Q,L$40,'Stored Data'!$AB:$AB,$B$58)+SUMIFS('Stored Data'!$S:$S,'Stored Data'!$C:$C,$C58,'Stored Data'!$T:$T,L$40,'Stored Data'!$AB:$AB,$B$58)+SUMIFS('Stored Data'!$V:$V,'Stored Data'!$C:$C,$C58,'Stored Data'!$W:$W,L$40,'Stored Data'!$AB:$AB,$B$58)","v":0},null,{"$f":"(SUMIFS('Stored Data'!$D:$D,'Stored Data'!$C:$C,$C58,'Stored Data'!$AB:$AB,$B$58)+SUMIFS('Stored Data'!$G:$G,'Stored Data'!$C:$C,$C58,'Stored Data'!$AB:$AB,$B$58)+SUMIFS('Stored Data'!$J:$J,'Stored Data'!$C:$C,$C58,'Stored Data'!$AB:$AB,$B$58)+SUMIFS('Stored Data'!$M:$M,'Stored Data'!$C:$C,$C58,'Stored Data'!$AB:$AB,$B$58)+SUMIFS('Stored Data'!$P:$P,'Stored Data'!$C:$C,$C58,'Stored Data'!$AB:$AB,$B$58)+SUMIFS('Stored Data'!$S:$S,'Stored Data'!$C:$C,$C58,'Stored Data'!$AB:$AB,$B$58)+SUMIFS('Stored Data'!$V:$V,'Stored Data'!$C:$C,$C58,'Stored Data'!$AB:$AB,$B$58))-SUM(D58:M58)","v":0}]
[null,null,"Paper cups and straws",{"$f":"SUMIFS('Stored Data'!$D:$D,'Stored Data'!$C:$C,$C59,'Stored Data'!$E:$E,D$40,'Stored Data'!$AB:$AB,$B$58)+SUMIFS('Stored Data'!$G:$G,'Stored Data'!$C:$C,$C59,'Stored Data'!$H:$H,D$40,'Stored Data'!$AB:$AB,$B$58)+SUMIFS('Stored Data'!$J:$J,'Stored Data'!$C:$C,$C59,'Stored Data'!$K:$K,D$40,'Stored Data'!$AB:$AB,$B$58)+SUMIFS('Stored Data'!$M:$M,'Stored Data'!$C:$C,$C59,'Stored Data'!$N:$N,D$40,'Stored Data'!$AB:$AB,$B$58)+SUMIFS('Stored Data'!$P:$P,'Stored Data'!$C:$C,$C59,'Stored Data'!$Q:$Q,D$40,'Stored Data'!$AB:$AB,$B$58)+SUMIFS('Stored Data'!$S:$S,'Stored Data'!$C:$C,$C59,'Stored Data'!$T:$T,D$40,'Stored Data'!$AB:$AB,$B$58)+SUMIFS('Stored Data'!$V:$V,'Stored Data'!$C:$C,$C59,'Stored Data'!$W:$W,D$40,'Stored Data'!$AB:$AB,$B$58)","v":0},null,{"$f":"SUMIFS('Stored Data'!$D:$D,'Stored Data'!$C:$C,$C59,'Stored Data'!$E:$E,F$40,'Stored Data'!$AB:$AB,$B$58)+SUMIFS('Stored Data'!$G:$G,'Stored Data'!$C:$C,$C59,'Stored Data'!$H:$H,F$40,'Stored Data'!$AB:$AB,$B$58)+SUMIFS('Stored Data'!$J:$J,'Stored Data'!$C:$C,$C59,'Stored Data'!$K:$K,F$40,'Stored Data'!$AB:$AB,$B$58)+SUMIFS('Stored Data'!$M:$M,'Stored Data'!$C:$C,$C59,'Stored Data'!$N:$N,F$40,'Stored Data'!$AB:$AB,$B$58)+SUMIFS('Stored Data'!$P:$P,'Stored Data'!$C:$C,$C59,'Stored Data'!$Q:$Q,F$40,'Stored Data'!$AB:$AB,$B$58)+SUMIFS('Stored Data'!$S:$S,'Stored Data'!$C:$C,$C59,'Stored Data'!$T:$T,F$40,'Stored Data'!$AB:$AB,$B$58)+SUMIFS('Stored Data'!$V:$V,'Stored Data'!$C:$C,$C59,'Stored Data'!$W:$W,F$40,'Stored Data'!$AB:$AB,$B$58)","v":0},null,{"$f":"SUMIFS('Stored Data'!$D:$D,'Stored Data'!$C:$C,$C59,'Stored Data'!$E:$E,H$40,'Stored Data'!$AB:$AB,$B$58)+SUMIFS('Stored Data'!$G:$G,'Stored Data'!$C:$C,$C59,'Stored Data'!$H:$H,H$40,'Stored Data'!$AB:$AB,$B$58)+SUMIFS('Stored Data'!$J:$J,'Stored Data'!$C:$C,$C59,'Stored Data'!$K:$K,H$40,'Stored Data'!$AB:$AB,$B$58)+SUMIFS('Stored Data'!$M:$M,'Stored Data'!$C:$C,$C59,'Stored Data'!$N:$N,H$40,'Stored Data'!$AB:$AB,$B$58)+SUMIFS('Stored Data'!$P:$P,'Stored Data'!$C:$C,$C59,'Stored Data'!$Q:$Q,H$40,'Stored Data'!$AB:$AB,$B$58)+SUMIFS('Stored Data'!$S:$S,'Stored Data'!$C:$C,$C59,'Stored Data'!$T:$T,H$40,'Stored Data'!$AB:$AB,$B$58)+SUMIFS('Stored Data'!$V:$V,'Stored Data'!$C:$C,$C59,'Stored Data'!$W:$W,H$40,'Stored Data'!$AB:$AB,$B$58)","v":0},null,{"$f":"SUMIFS('Stored Data'!$D:$D,'Stored Data'!$C:$C,$C59,'Stored Data'!$E:$E,J$40,'Stored Data'!$AB:$AB,$B$58)+SUMIFS('Stored Data'!$G:$G,'Stored Data'!$C:$C,$C59,'Stored Data'!$H:$H,J$40,'Stored Data'!$AB:$AB,$B$58)+SUMIFS('Stored Data'!$J:$J,'Stored Data'!$C:$C,$C59,'Stored Data'!$K:$K,J$40,'Stored Data'!$AB:$AB,$B$58)+SUMIFS('Stored Data'!$M:$M,'Stored Data'!$C:$C,$C59,'Stored Data'!$N:$N,J$40,'Stored Data'!$AB:$AB,$B$58)+SUMIFS('Stored Data'!$P:$P,'Stored Data'!$C:$C,$C59,'Stored Data'!$Q:$Q,J$40,'Stored Data'!$AB:$AB,$B$58)+SUMIFS('Stored Data'!$S:$S,'Stored Data'!$C:$C,$C59,'Stored Data'!$T:$T,J$40,'Stored Data'!$AB:$AB,$B$58)+SUMIFS('Stored Data'!$V:$V,'Stored Data'!$C:$C,$C59,'Stored Data'!$W:$W,J$40,'Stored Data'!$AB:$AB,$B$58)","v":0},null,{"$f":"SUMIFS('Stored Data'!$D:$D,'Stored Data'!$C:$C,$C59,'Stored Data'!$E:$E,L$40,'Stored Data'!$AB:$AB,$B$58)+SUMIFS('Stored Data'!$G:$G,'Stored Data'!$C:$C,$C59,'Stored Data'!$H:$H,L$40,'Stored Data'!$AB:$AB,$B$58)+SUMIFS('Stored Data'!$J:$J,'Stored Data'!$C:$C,$C59,'Stored Data'!$K:$K,L$40,'Stored Data'!$AB:$AB,$B$58)+SUMIFS('Stored Data'!$M:$M,'Stored Data'!$C:$C,$C59,'Stored Data'!$N:$N,L$40,'Stored Data'!$AB:$AB,$B$58)+SUMIFS('Stored Data'!$P:$P,'Stored Data'!$C:$C,$C59,'Stored Data'!$Q:$Q,L$40,'Stored Data'!$AB:$AB,$B$58)+SUMIFS('Stored Data'!$S:$S,'Stored Data'!$C:$C,$C59,'Stored Data'!$T:$T,L$40,'Stored Data'!$AB:$AB,$B$58)+SUMIFS('Stored Data'!$V:$V,'Stored Data'!$C:$C,$C59,'Stored Data'!$W:$W,L$40,'Stored Data'!$AB:$AB,$B$58)","v":0},null,{"$f":"(SUMIFS('Stored Data'!$D:$D,'Stored Data'!$C:$C,$C59,'Stored Data'!$AB:$AB,$B$58)+SUMIFS('Stored Data'!$G:$G,'Stored Data'!$C:$C,$C59,'Stored Data'!$AB:$AB,$B$58)+SUMIFS('Stored Data'!$J:$J,'Stored Data'!$C:$C,$C59,'Stored Data'!$AB:$AB,$B$58)+SUMIFS('Stored Data'!$M:$M,'Stored Data'!$C:$C,$C59,'Stored Data'!$AB:$AB,$B$58)+SUMIFS('Stored Data'!$P:$P,'Stored Data'!$C:$C,$C59,'Stored Data'!$AB:$AB,$B$58)+SUMIFS('Stored Data'!$S:$S,'Stored Data'!$C:$C,$C59,'Stored Data'!$AB:$AB,$B$58)+SUMIFS('Stored Data'!$V:$V,'Stored Data'!$C:$C,$C59,'Stored Data'!$AB:$AB,$B$58))-SUM(D59:M59)","v":0}]
[null,null,"To-go containers",{"$f":"SUMIFS('Stored Data'!$D:$D,'Stored Data'!$C:$C,$C60,'Stored Data'!$E:$E,D$40,'Stored Data'!$AB:$AB,$B$58)+SUMIFS('Stored Data'!$G:$G,'Stored Data'!$C:$C,$C60,'Stored Data'!$H:$H,D$40,'Stored Data'!$AB:$AB,$B$58)+SUMIFS('Stored Data'!$J:$J,'Stored Data'!$C:$C,$C60,'Stored Data'!$K:$K,D$40,'Stored Data'!$AB:$AB,$B$58)+SUMIFS('Stored Data'!$M:$M,'Stored Data'!$C:$C,$C60,'Stored Data'!$N:$N,D$40,'Stored Data'!$AB:$AB,$B$58)+SUMIFS('Stored Data'!$P:$P,'Stored Data'!$C:$C,$C60,'Stored Data'!$Q:$Q,D$40,'Stored Data'!$AB:$AB,$B$58)+SUMIFS('Stored Data'!$S:$S,'Stored Data'!$C:$C,$C60,'Stored Data'!$T:$T,D$40,'Stored Data'!$AB:$AB,$B$58)+SUMIFS('Stored Data'!$V:$V,'Stored Data'!$C:$C,$C60,'Stored Data'!$W:$W,D$40,'Stored Data'!$AB:$AB,$B$58)","v":0},null,{"$f":"SUMIFS('Stored Data'!$D:$D,'Stored Data'!$C:$C,$C60,'Stored Data'!$E:$E,F$40,'Stored Data'!$AB:$AB,$B$58)+SUMIFS('Stored Data'!$G:$G,'Stored Data'!$C:$C,$C60,'Stored Data'!$H:$H,F$40,'Stored Data'!$AB:$AB,$B$58)+SUMIFS('Stored Data'!$J:$J,'Stored Data'!$C:$C,$C60,'Stored Data'!$K:$K,F$40,'Stored Data'!$AB:$AB,$B$58)+SUMIFS('Stored Data'!$M:$M,'Stored Data'!$C:$C,$C60,'Stored Data'!$N:$N,F$40,'Stored Data'!$AB:$AB,$B$58)+SUMIFS('Stored Data'!$P:$P,'Stored Data'!$C:$C,$C60,'Stored Data'!$Q:$Q,F$40,'Stored Data'!$AB:$AB,$B$58)+SUMIFS('Stored Data'!$S:$S,'Stored Data'!$C:$C,$C60,'Stored Data'!$T:$T,F$40,'Stored Data'!$AB:$AB,$B$58)+SUMIFS('Stored Data'!$V:$V,'Stored Data'!$C:$C,$C60,'Stored Data'!$W:$W,F$40,'Stored Data'!$AB:$AB,$B$58)","v":0},null,{"$f":"SUMIFS('Stored Data'!$D:$D,'Stored Data'!$C:$C,$C60,'Stored Data'!$E:$E,H$40,'Stored Data'!$AB:$AB,$B$58)+SUMIFS('Stored Data'!$G:$G,'Stored Data'!$C:$C,$C60,'Stored Data'!$H:$H,H$40,'Stored Data'!$AB:$AB,$B$58)+SUMIFS('Stored Data'!$J:$J,'Stored Data'!$C:$C,$C60,'Stored Data'!$K:$K,H$40,'Stored Data'!$AB:$AB,$B$58)+SUMIFS('Stored Data'!$M:$M,'Stored Data'!$C:$C,$C60,'Stored Data'!$N:$N,H$40,'Stored Data'!$AB:$AB,$B$58)+SUMIFS('Stored Data'!$P:$P,'Stored Data'!$C:$C,$C60,'Stored Data'!$Q:$Q,H$40,'Stored Data'!$AB:$AB,$B$58)+SUMIFS('Stored Data'!$S:$S,'Stored Data'!$C:$C,$C60,'Stored Data'!$T:$T,H$40,'Stored Data'!$AB:$AB,$B$58)+SUMIFS('Stored Data'!$V:$V,'Stored Data'!$C:$C,$C60,'Stored Data'!$W:$W,H$40,'Stored Data'!$AB:$AB,$B$58)","v":0},null,{"$f":"SUMIFS('Stored Data'!$D:$D,'Stored Data'!$C:$C,$C60,'Stored Data'!$E:$E,J$40,'Stored Data'!$AB:$AB,$B$58)+SUMIFS('Stored Data'!$G:$G,'Stored Data'!$C:$C,$C60,'Stored Data'!$H:$H,J$40,'Stored Data'!$AB:$AB,$B$58)+SUMIFS('Stored Data'!$J:$J,'Stored Data'!$C:$C,$C60,'Stored Data'!$K:$K,J$40,'Stored Data'!$AB:$AB,$B$58)+SUMIFS('Stored Data'!$M:$M,'Stored Data'!$C:$C,$C60,'Stored Data'!$N:$N,J$40,'Stored Data'!$AB:$AB,$B$58)+SUMIFS('Stored Data'!$P:$P,'Stored Data'!$C:$C,$C60,'Stored Data'!$Q:$Q,J$40,'Stored Data'!$AB:$AB,$B$58)+SUMIFS('Stored Data'!$S:$S,'Stored Data'!$C:$C,$C60,'Stored Data'!$T:$T,J$40,'Stored Data'!$AB:$AB,$B$58)+SUMIFS('Stored Data'!$V:$V,'Stored Data'!$C:$C,$C60,'Stored Data'!$W:$W,J$40,'Stored Data'!$AB:$AB,$B$58)","v":0},null,{"$f":"SUMIFS('Stored Data'!$D:$D,'Stored Data'!$C:$C,$C60,'Stored Data'!$E:$E,L$40,'Stored Data'!$AB:$AB,$B$58)+SUMIFS('Stored Data'!$G:$G,'Stored Data'!$C:$C,$C60,'Stored Data'!$H:$H,L$40,'Stored Data'!$AB:$AB,$B$58)+SUMIFS('Stored Data'!$J:$J,'Stored Data'!$C:$C,$C60,'Stored Data'!$K:$K,L$40,'Stored Data'!$AB:$AB,$B$58)+SUMIFS('Stored Data'!$M:$M,'Stored Data'!$C:$C,$C60,'Stored Data'!$N:$N,L$40,'Stored Data'!$AB:$AB,$B$58)+SUMIFS('Stored Data'!$P:$P,'Stored Data'!$C:$C,$C60,'Stored Data'!$Q:$Q,L$40,'Stored Data'!$AB:$AB,$B$58)+SUMIFS('Stored Data'!$S:$S,'Stored Data'!$C:$C,$C60,'Stored Data'!$T:$T,L$40,'Stored Data'!$AB:$AB,$B$58)+SUMIFS('Stored Data'!$V:$V,'Stored Data'!$C:$C,$C60,'Stored Data'!$W:$W,L$40,'Stored Data'!$AB:$AB,$B$58)","v":0},null,{"$f":"(SUMIFS('Stored Data'!$D:$D,'Stored Data'!$C:$C,$C60,'Stored Data'!$AB:$AB,$B$58)+SUMIFS('Stored Data'!$G:$G,'Stored Data'!$C:$C,$C60,'Stored Data'!$AB:$AB,$B$58)+SUMIFS('Stored Data'!$J:$J,'Stored Data'!$C:$C,$C60,'Stored Data'!$AB:$AB,$B$58)+SUMIFS('Stored Data'!$M:$M,'Stored Data'!$C:$C,$C60,'Stored Data'!$AB:$AB,$B$58)+SUMIFS('Stored Data'!$P:$P,'Stored Data'!$C:$C,$C60,'Stored Data'!$AB:$AB,$B$58)+SUMIFS('Stored Data'!$S:$S,'Stored Data'!$C:$C,$C60,'Stored Data'!$AB:$AB,$B$58)+SUMIFS('Stored Data'!$V:$V,'Stored Data'!$C:$C,$C60,'Stored Data'!$AB:$AB,$B$58))-SUM(D60:M60)","v":0}]
[null,null,"Disposable utensils",{"$f":"SUMIFS('Stored Data'!$D:$D,'Stored Data'!$C:$C,$C61,'Stored Data'!$E:$E,D$40,'Stored Data'!$AB:$AB,$B$58)+SUMIFS('Stored Data'!$G:$G,'Stored Data'!$C:$C,$C61,'Stored Data'!$H:$H,D$40,'Stored Data'!$AB:$AB,$B$58)+SUMIFS('Stored Data'!$J:$J,'Stored Data'!$C:$C,$C61,'Stored Data'!$K:$K,D$40,'Stored Data'!$AB:$AB,$B$58)+SUMIFS('Stored Data'!$M:$M,'Stored Data'!$C:$C,$C61,'Stored Data'!$N:$N,D$40,'Stored Data'!$AB:$AB,$B$58)+SUMIFS('Stored Data'!$P:$P,'Stored Data'!$C:$C,$C61,'Stored Data'!$Q:$Q,D$40,'Stored Data'!$AB:$AB,$B$58)+SUMIFS('Stored Data'!$S:$S,'Stored Data'!$C:$C,$C61,'Stored Data'!$T:$T,D$40,'Stored Data'!$AB:$AB,$B$58)+SUMIFS('Stored Data'!$V:$V,'Stored Data'!$C:$C,$C61,'Stored Data'!$W:$W,D$40,'Stored Data'!$AB:$AB,$B$58)","v":0},null,{"$f":"SUMIFS('Stored Data'!$D:$D,'Stored Data'!$C:$C,$C61,'Stored Data'!$E:$E,F$40,'Stored Data'!$AB:$AB,$B$58)+SUMIFS('Stored Data'!$G:$G,'Stored Data'!$C:$C,$C61,'Stored Data'!$H:$H,F$40,'Stored Data'!$AB:$AB,$B$58)+SUMIFS('Stored Data'!$J:$J,'Stored Data'!$C:$C,$C61,'Stored Data'!$K:$K,F$40,'Stored Data'!$AB:$AB,$B$58)+SUMIFS('Stored Data'!$M:$M,'Stored Data'!$C:$C,$C61,'Stored Data'!$N:$N,F$40,'Stored Data'!$AB:$AB,$B$58)+SUMIFS('Stored Data'!$P:$P,'Stored Data'!$C:$C,$C61,'Stored Data'!$Q:$Q,F$40,'Stored Data'!$AB:$AB,$B$58)+SUMIFS('Stored Data'!$S:$S,'Stored Data'!$C:$C,$C61,'Stored Data'!$T:$T,F$40,'Stored Data'!$AB:$AB,$B$58)+SUMIFS('Stored Data'!$V:$V,'Stored Data'!$C:$C,$C61,'Stored Data'!$W:$W,F$40,'Stored Data'!$AB:$AB,$B$58)","v":0},null,{"$f":"SUMIFS('Stored Data'!$D:$D,'Stored Data'!$C:$C,$C61,'Stored Data'!$E:$E,H$40,'Stored Data'!$AB:$AB,$B$58)+SUMIFS('Stored Data'!$G:$G,'Stored Data'!$C:$C,$C61,'Stored Data'!$H:$H,H$40,'Stored Data'!$AB:$AB,$B$58)+SUMIFS('Stored Data'!$J:$J,'Stored Data'!$C:$C,$C61,'Stored Data'!$K:$K,H$40,'Stored Data'!$AB:$AB,$B$58)+SUMIFS('Stored Data'!$M:$M,'Stored Data'!$C:$C,$C61,'Stored Data'!$N:$N,H$40,'Stored Data'!$AB:$AB,$B$58)+SUMIFS('Stored Data'!$P:$P,'Stored Data'!$C:$C,$C61,'Stored Data'!$Q:$Q,H$40,'Stored Data'!$AB:$AB,$B$58)+SUMIFS('Stored Data'!$S:$S,'Stored Data'!$C:$C,$C61,'Stored Data'!$T:$T,H$40,'Stored Data'!$AB:$AB,$B$58)+SUMIFS('Stored Data'!$V:$V,'Stored Data'!$C:$C,$C61,'Stored Data'!$W:$W,H$40,'Stored Data'!$AB:$AB,$B$58)","v":0},null,{"$f":"SUMIFS('Stored Data'!$D:$D,'Stored Data'!$C:$C,$C61,'Stored Data'!$E:$E,J$40,'Stored Data'!$AB:$AB,$B$58)+SUMIFS('Stored Data'!$G:$G,'Stored Data'!$C:$C,$C61,'Stored Data'!$H:$H,J$40,'Stored Data'!$AB:$AB,$B$58)+SUMIFS('Stored Data'!$J:$J,'Stored Data'!$C:$C,$C61,'Stored Data'!$K:$K,J$40,'Stored Data'!$AB:$AB,$B$58)+SUMIFS('Stored Data'!$M:$M,'Stored Data'!$C:$C,$C61,'Stored Data'!$N:$N,J$40,'Stored Data'!$AB:$AB,$B$58)+SUMIFS('Stored Data'!$P:$P,'Stored Data'!$C:$C,$C61,'Stored Data'!$Q:$Q,J$40,'Stored Data'!$AB:$AB,$B$58)+SUMIFS('Stored Data'!$S:$S,'Stored Data'!$C:$C,$C61,'Stored Data'!$T:$T,J$40,'Stored Data'!$AB:$AB,$B$58)+SUMIFS('Stored Data'!$V:$V,'Stored Data'!$C:$C,$C61,'Stored Data'!$W:$W,J$40,'Stored Data'!$AB:$AB,$B$58)","v":0},null,{"$f":"SUMIFS('Stored Data'!$D:$D,'Stored Data'!$C:$C,$C61,'Stored Data'!$E:$E,L$40,'Stored Data'!$AB:$AB,$B$58)+SUMIFS('Stored Data'!$G:$G,'Stored Data'!$C:$C,$C61,'Stored Data'!$H:$H,L$40,'Stored Data'!$AB:$AB,$B$58)+SUMIFS('Stored Data'!$J:$J,'Stored Data'!$C:$C,$C61,'Stored Data'!$K:$K,L$40,'Stored Data'!$AB:$AB,$B$58)+SUMIFS('Stored Data'!$M:$M,'Stored Data'!$C:$C,$C61,'Stored Data'!$N:$N,L$40,'Stored Data'!$AB:$AB,$B$58)+SUMIFS('Stored Data'!$P:$P,'Stored Data'!$C:$C,$C61,'Stored Data'!$Q:$Q,L$40,'Stored Data'!$AB:$AB,$B$58)+SUMIFS('Stored Data'!$S:$S,'Stored Data'!$C:$C,$C61,'Stored Data'!$T:$T,L$40,'Stored Data'!$AB:$AB,$B$58)+SUMIFS('Stored Data'!$V:$V,'Stored Data'!$C:$C,$C61,'Stored Data'!$W:$W,L$40,'Stored Data'!$AB:$AB,$B$58)","v":0},null,{"$f":"(SUMIFS('Stored Data'!$D:$D,'Stored Data'!$C:$C,$C61,'Stored Data'!$AB:$AB,$B$58)+SUMIFS('Stored Data'!$G:$G,'Stored Data'!$C:$C,$C61,'Stored Data'!$AB:$AB,$B$58)+SUMIFS('Stored Data'!$J:$J,'Stored Data'!$C:$C,$C61,'Stored Data'!$AB:$AB,$B$58)+SUMIFS('Stored Data'!$M:$M,'Stored Data'!$C:$C,$C61,'Stored Data'!$AB:$AB,$B$58)+SUMIFS('Stored Data'!$P:$P,'Stored Data'!$C:$C,$C61,'Stored Data'!$AB:$AB,$B$58)+SUMIFS('Stored Data'!$S:$S,'Stored Data'!$C:$C,$C61,'Stored Data'!$AB:$AB,$B$58)+SUMIFS('Stored Data'!$V:$V,'Stored Data'!$C:$C,$C61,'Stored Data'!$AB:$AB,$B$58))-SUM(D61:M61)","v":0}]
[null,null,"Total",{"$f":"SUM(D58:E61)","v":0},null,{"$f":"SUM(F58:G61)","v":0},null,{"$f":"SUM(H58:I61)","v":0},null,{"$f":"SUM(J58:K61)","v":0},null,{"$f":"SUM(L58:M61)","v":0},null,{"$f":"SUM(N58:O61)","v":0}]
[]
[null,"Graphed Results"]

{"sheet":"Stored Data","index":7,"n_rows":3,"n_cols":2,"rows_kept":3,"cut":false,"hidden":false,"merged":[[2,1,2,11]]}
[]
[null,"Stored Data"]
[null,"This sheet contains data originally entered on the Data Entry sheet and saved after clicking the \"Store Data\" button. The stored data on this sheet can be edited below and any edits will be reflected in summary tables and charts. If you wish to clear all stored data on this sheet, click the \"Clear All Stored Data\" button above."]

{"sheet":"Sources","index":8,"n_rows":8,"n_cols":4,"rows_kept":8,"cut":false,"hidden":false,"merged":[[3,1,7,1]]}
[]
[null,"Tab","Source","Website"]
[]
[null,"Conversion Helper","Eco-Dumpster.com","http://www.eco-dumpster.com/rates.html"]
[null,null,"CalRecycle - Conversion Factors: Glass, Plastic, Paper, and Cardboard","http://www.calrecycle.ca.gov/LGCentral/Library/DSG/IRecycl.htm"]
[null,null,"CalRecycle - Conversion Factors: Organics","http://www.calrecycle.ca.gov/LGCentral/Library/DSG/IOrganic.htm"]
[null,null,"CalRecycle - Conversion Factors: Metals","http://www.calrecycle.ca.gov/LGCentral/Library/DSG/IMetal.htm"]
[null,null,"EPA iWARM Tool","http://www.epa.gov/osw/conserve/tools/iwarm/"]

{"sheet":"Background Calcs","index":9,"n_rows":73,"n_cols":14,"rows_kept":73,"cut":false,"hidden":true,"merged":[]}
[]
[]
[null,null,null,null,null,null,null,1,null,null,null,"Number of venues chosen",1]
[1,{"$f":"TODAY()+VLOOKUP(WEEKDAY(TODAY()),$I$6:$J$12,2,FALSE)","v":"2016-12-19"},null,"Date selected",{"$f":"TEXT(VLOOKUP(DateTest,$A$4:$B$13,2,FALSE),\"m/d/yyyy\")","v":"12/19/2016"},null,null,null,null,null,null,null,null,1]
[2,{"$f":"B4-7","v":"2016-12-12"},null,null,null,null,null,null,null,null,null,null,null,2]
[3,"2016-12-05",null,null,null,null,null,null,1,1,null,null,null,3]
[4,"2016-11-28",null,null,null,null,null,null,2,0,null,null,null,4]
[5,"2016-11-21",null,null,null,null,null,null,3,6,null,null,null,5]
[6,"2016-11-14",null,null,null,null,null,null,4,5]
[7,"2016-11-07",null,null,null,null,null,null,5,4]
[8,"2016-10-31",null,null,null,null,null,null,6,3]
[9,"2016-10-24",null,null,null,null,null,null,7,2]
[10,"2016-10-17",null,null,null,null,"NOTE: WHEN DELETING ADDED ROWS, THE VALUES BELOW SHOULD BE MANUALLY RESET TO ZERO."]
[null,null,null,null,null,null,"Number of kitchen waste rows added",0]
[null,null,null,null,null,null,"Number of packaging waste rows added",0]
[null,null,null,null,null,null,"Number of plate waste rows added",1]
[]
[null,{"$f":"\"STORED DATA for Food Waste Audit for Week Starting Monday, \"&TEXT(VLOOKUP(DateTest,'Background Calcs'!$A$4:$B$13,2,FALSE),\"mmmm d, yyyy\")","v":"STORED DATA for Food Waste Audit for Week Starting Monday, December 19, 2016"}]
[]
[]
[null,"List of weekly data already stored","List of weekly data already stored"]
[1]
[2]
[3]
[4]
[5]
[6]
[7]
[8]
[9]
[10]
[11]
[12]
[13]
[14]
[15]
[16]
[17]
[18]
[19]
[20]
[21]
[22]
[23]
[24]
[25]
[26]
[27]
[28]
[29]
[30]
[31]
[32]
[33]
[34]
[35]
[36]
[37]
[38]
[39]
[40]
[41]
[42]
[43]
[44]
[45]
[46]
[47]
[48]
[49]
[50]
[51]
[52]

{"sheet":"Conversion Factors","index":10,"n_rows":47,"n_cols":7,"rows_kept":47,"cut":false,"hidden":true,"merged":[[45,1,46,1],[4,1,6,1],[7,1,8,1],[9,1,10,1],[11,1,12,1],[13,1,14,1],[17,1,25,1],[26,1,30,1],[31,1,35,1],[36,1,40,1],[41,1,42,1]]}
[]
[null,"Fixed Conversion Factors"]
[]
[null,"Kitchen Food Waste","Waste Name","Unit","Weight per Unit (lbs)","Number of Units","Weight (lbs)"]
[null,"Protein","meat, ground","cubic foot",52.5,1,{"$f":"E5*F5","v":52.5}]
[]
[null,null,null,null,null,null,{"$f":"E7*F7","v":0}]
[null,"Grain","bread, bulk","cubic foot",18,1,18]
[null,null,null,null,null,null,0]
[null,"Fruit and Vegetable","produce waste, mixed","cubic yard",1443,1,1443]
[null,null,null,null,null,null,0]
[null,"Dairy","whole milk","gallon",8.6,1,8.6]
[null,null,null,null,null,null,0]
[null,"Other","olive oil","cubic foot",57.1,1,57.1]
[null,null,null,null,null,null,0]
[]
[null,"Kitchen Packaging Waste","Waste Name","Unit","Weight per Unit (lbs)","Number of Units","Weight (lbs)"]
[null,"Paper/Cardboard","egg flats","one dozen",0.12,1,{"$f":"E18*F18","v":0.12}]
[null,null,"paper sacks","25# size",0.5,1,{"$f":"E19*F19","v":0.5}]
[null,null,"paper sacks","50# dry goods",1,1,1]
[null,null,"beverage case","6 pack",0.2,1,0.2]
[null,null,"cereal box","average",0.15,1,0.15]
[null,null,"cardboard beverage case","4 six-packs, full case",0.99,1,0.99]
[null,null,"cardboard box, large","48\" x 48\" x 60\"",4,1,4]
[null,null,"cardboard boxes, stacked","cubic yard",50,1,50]
[null,null,null,null,null,null,0]
[null,"Aluminum/Steel","aluminum foil, loose","cubic yard",48.1,1,48.1]
[null,null,"aluminum cans, crushed","case (24 cans)",0.89,1,0.89]
[null,null,"aluminum can","12-oz can",0.03,1,0.03]
[null,null,"steel soup can","15.5-oz can",0.11,1,0.11]
[null,null,null,null,null,null,0]
[null,"Plastic","gallon milk/juice HDPE container","gallon container",0.22,1,0.22]
[null,null,"8 oz juice HDPE container","8 oz container",0.1,1,0.1]
[null,null,"2 liter PET bottle","2 liter bottle",0.13,1,0.13]
[null,null,"gallon mayo container","1 gallon container",0.42,1,0.42]
[null,null,null,null,null,null,0]
[null,"Glass","gallon jug","each",2.4500000000000002,1,2.4500000000000002]
[null,null,"beer bottle","each",0.53,1,0.53]
[null,null,"12 oz beverage","case (24 bottles)",22,1,22]
[null,null,"wine bottle","each",1.08,1,{"$f":"E40*F40","v":1.08}]
[null,null,null,null,null,null,{"$f":"E41*F41","v":0}]
[null,"Other",null,null,null,null,0]
[null,null,null,null,null,null,0]
[]
[null,"Plate Waste","Waste Name","Unit","Weight per Unit (lbs)","Number of Units","Weight (lbs)"]
[null,"Plate Waste","18 yard dumpster","average",3000,1,{"$f":"E46*F46","v":3000}]
[null,null,null,null,null,null,{"$f":"E47*F47","v":0}]